Local authority department which incurred the expenditure,Service Division,Cost Centre,Summary of the Purpose of Expenditure,Expense Type,Expense Code,Detailed Expense Type,Date of Transaction,Transaction Number,Beneficiary,Merchant Category Number,Merchant Category,Gross Amount,VAT,Net Amount
Regeneration and Local Services,Economic Development and Housing,30553,Europe Direct Scheme,Supplies and Services,384926,Miscellaneous Expenses,01-Apr-17,5917733423,ADROLL,7311,International visits,4.21,0,4.21
Regeneration and Local Services,Economic Development and Housing,30553,Europe Direct Scheme,Supplies and Services,384926,Miscellaneous Expenses,01-Apr-17,5917733427,CROWN RIVERS,5812,International visits,2.55,0,2.55
Regeneration and Local Services,Economic Development and Housing,30553,Europe Direct Scheme,Supplies and Services,384926,Miscellaneous Expenses,01-Apr-17,5917733429,PRET A MANGER,5812,International visits,4.6,0,4.6
Children and Young Peoples Services,Head of Looked After Provision Permanence and Care Leavers,85341,High Etherley Satelite Home,Supplies and Services,324117,Provisions,01-Apr-17,5917733519,TESCO STORES 6329,5411,Catering costs - provisions,16.12,0,16.12
Children and Young Peoples Services,Head of Looked After Provision Permanence and Care Leavers,85341,High Etherley Satelite Home,Supplies and Services,324117,Provisions,01-Apr-17,5917733521,TESCO STORES 6329,5411,Catering costs - provisions,3.55,0,3.55
Children and Young Peoples Services,Head of Looked After Provision Permanence and Care Leavers,85957,Secure Management,Supplies and Services,324117,Provisions,01-Apr-17,5917733607,TESCO STORES 6329,5411,Catering costs - provisions,73.57,0,73.57
Regeneration and Local Services,Spatial Policy Planning Assets & Environment,31200,North Pennines Core,Supplies and Services,348037,Subsistence,01-Apr-17,5917733685,CAFE FRESH AT BOWLEES,5814,Subsistence,9.1,0,9.1
Resources,Resources Management,69000,Resources Management,Supplies and Services,324117,Provisions,01-Apr-17,5917733883,SAINSBURYS (2303),5411,Catering costs - provisions,8.75,0,8.75
Regeneration and Local Services,Direct Services,21235,Catering - Wharton Park,Supplies and Services,324117,Provisions,01-Apr-17,5917734281,BRAKE BROS LTD,5811,Catering costs - provisions,409.08,68.18,340.9
Regeneration and Local Services,Direct Services,21235,Catering - Wharton Park,Supplies and Services,324117,Provisions,01-Apr-17,000005917734281 - 1,BRAKE BROS LTD,5811,Catering costs - provisions,54.78,,54.78
Regeneration and Local Services,Economic Development and Housing,30699,Business Growth and Innovation General,Supplies and Services,304403,Equipment and Materials,02-Apr-17,5917733347,ADOBE CREATIVE CLOUD,5734,Other consumables,45.73,7.62,38.11
Regeneration and Local Services,Economic Development and Housing,30699,Business Growth and Innovation General,Supplies and Services,312011,Newspapers Books and Periodicals,02-Apr-17,5917733351,FASTHOSTS INTERNET,4816,Books-school library,59.99,10,49.99
Children and Young Peoples Services,Head of Looked After Provision Permanence and Care Leavers,85333,Coxhoe Satelite Home,Supplies and Services,304259,Equipment and Materials,02-Apr-17,5917733461,PAYPAL INFINITEAIR,5941,Equipment-purchase and rental,23.85,0,23.85
Children and Young Peoples Services,Head of Looked After Provision Permanence and Care Leavers,85333,Coxhoe Satelite Home,Supplies and Services,304403,Equipment and Materials,02-Apr-17,5917733463,PAYPAL PETEANDLOUI,5999,Other consumables,63.3,0,63.3
Regeneration and Local Services,Culture & Sport,11219,Office Services,Third Party Payments,430100,Rendered by Private Contractors,02-Apr-17,5917733481,MAILCHIMP,7399,Payments to sub-contractors,56.87,0,56.87
Children and Young Peoples Services,Head of Looked After Provision Permanence and Care Leavers,85341,High Etherley Satelite Home,Supplies and Services,324117,Provisions,02-Apr-17,5917733523,TESCO STORES 6329,5411,Catering costs - provisions,5.95,0,5.95
Regeneration and Local Services,Economic Development and Housing,30553,Europe Direct Scheme,Supplies and Services,384926,Miscellaneous Expenses,03-Apr-17,5917733433,ADROLL,7311,International visits,0.12,0,0.12
Resources,I.C.T. Services,65481,Technical Services,Supplies and Services,372009,Subscriptions,03-Apr-17,5917734253,TELERIK,7372,Subscriptions,94.35,0,94.35
Children and Young Peoples Services,Head of Education,71801,Selby Cottage Childcare Centre,Supplies and Services,328041,Clothing Uniforms and Laundry,03-Apr-17,5924778099,POUNDLAND LTD 1330,5310,Clothing uniforms and laundry,12.05,0,12.05
Children and Young Peoples Services,Head of Education,71801,Selby Cottage Childcare Centre,Supplies and Services,324117,Provisions,03-Apr-17,5924778101,TESCO STORES 2278,5411,Catering costs - provisions,6.9,0,6.9
Children and Young Peoples Services,Head of Education,71801,Selby Cottage Childcare Centre,Supplies and Services,324117,Provisions,03-Apr-17,5924778105,ASDA HOME SHOPPING,5411,Catering costs - provisions,116.97,0,116.97
Children and Young Peoples Services,Head of Early Help Assessment and Safeguarding,85100,Child Protection & Disabilty Strategic Manager,Supplies and Services,384199,Miscellaneous Expenses,03-Apr-17,5924778109,SUNDERLAND CC,9399,Other hired and contracted services,20,0,20
Children and Young Peoples Services,Head of Early Help Assessment and Safeguarding,85100,Child Protection & Disabilty Strategic Manager,Supplies and Services,384199,Miscellaneous Expenses,03-Apr-17,5924778113,STOCKTON BOROUGH COUNC,9399,Other hired and contracted services,11,0,11
Children and Young Peoples Services,Head of Early Help Assessment and Safeguarding,88093,Newton Aycliffe 0 - 5,Supplies and Services,304403,Equipment and Materials,03-Apr-17,5924778119,ASDA HOME SHOPPING,5411,Other consumables,0.03,0,0.03
Children and Young Peoples Services,Head of Early Help Assessment and Safeguarding,88093,Newton Aycliffe 0 - 5,Supplies and Services,304403,Equipment and Materials,03-Apr-17,5924778121,ASDA HOME SHOPPING,5411,Other consumables,28,0,28
Regeneration and Local Services,Economic Development and Housing,30699,Business Growth and Innovation General,Third Party Payments,430100,Rendered by Private Contractors,03-Apr-17,5924778149,EB SCIENCE INNOVATION,7399,Payments to sub-contractors,60,10,50
Regeneration and Local Services,Economic Development and Housing,30737,Durham Works Flexible Fund,Supplies and Services,304403,Equipment and Materials,03-Apr-17,5924778165,GRO HM PASSPORT OFFICE,9399,Other consumables,23.4,0,23.4
Regeneration and Local Services,Economic Development and Housing,30737,Durham Works Flexible Fund,Supplies and Services,304403,Equipment and Materials,03-Apr-17,5924778169,ASDA STORES LTD,5411,Other consumables,46.04,0,46.04
Regeneration and Local Services,Economic Development and Housing,30737,Durham Works Flexible Fund,Supplies and Services,304403,Equipment and Materials,03-Apr-17,5924778171,ASDA STORES LTD,5411,Other consumables,10,0,10
Regeneration and Local Services,Direct Services,21242,Catering - County Hall,Supplies and Services,324117,Provisions,03-Apr-17,5924778175,WWW.ADELIEFOODS.CO.UK,5499,Catering costs - provisions,190.13,0,190.13
Regeneration and Local Services,Direct Services,21242,Catering - County Hall,Supplies and Services,324117,Provisions,03-Apr-17,5924778177,WWW.ADELIEFOODS.CO.UK,5499,Catering costs - provisions,93.37,0,93.37
Regeneration and Local Services,Direct Services,21242,Catering - County Hall,Supplies and Services,324117,Provisions,03-Apr-17,5924778181,WWW.ADELIEFOODS.CO.UK,5499,Catering costs - provisions,46.83,0,46.83
Regeneration and Local Services,Direct Services,21242,Catering - County Hall,Supplies and Services,324117,Provisions,03-Apr-17,5924778183,FREEMAN CATERING BUTCH,5422,Catering costs - provisions,174.86,0,174.86
Regeneration and Local Services,Direct Services,21242,Catering - County Hall,Supplies and Services,324117,Provisions,03-Apr-17,5924778187,FREEMAN CATERING BUTCH,5422,Catering costs - provisions,83,0,83
Regeneration and Local Services,Direct Services,21242,Catering - County Hall,Supplies and Services,324117,Provisions,03-Apr-17,5924778189,JR HOLLAND FOODSERVICE,5422,Catering costs - provisions,103.39,0,103.39
Regeneration and Local Services,Direct Services,21242,Catering - County Hall,Supplies and Services,324117,Provisions,03-Apr-17,5924778193,JR HOLLAND FOODSERVICE,5422,Catering costs - provisions,13.52,0,13.52
Regeneration and Local Services,Culture & Sport,54812,Gala Theatre - Catering etc,Supplies and Services,324117,Provisions,03-Apr-17,5924778199,FREEMAN CATERING BUTCH,5422,Catering costs - provisions,16.2,0,16.2
Regeneration and Local Services,Direct Services,10561,Fleet - Morrison Busty Fleet,Transport,215013,Running Costs of Vehicles,03-Apr-17,5924778227,POST OFFICE COUNTER,9402,Vehicle Excise Duty (VED),652.5,0,652.5
Children and Young Peoples Services,Head of Early Help Assessment and Safeguarding,88063,Bishop Auckland 0 - 5,Supplies and Services,324117,Provisions,03-Apr-17,5924778237,ASDA HOME SHOPPING,5411,Catering costs - provisions,44.03,0,44.03
Regeneration and Local Services,Economic Development and Housing,30749,Employability - Youth Contract,Supplies and Services,304259,Equipment and Materials,03-Apr-17,5924778239,SCREWFIX DIRECT,5211,Equipment-purchase and rental,262.98,43.83,219.15
Regeneration and Local Services,Economic Development and Housing,30749,Employability - Youth Contract,Supplies and Services,304259,Equipment and Materials,03-Apr-17,000005924778239 - 1,SCREWFIX DIRECT,5211,Equipment-purchase and rental,20.41,,20.41
Children and Young Peoples Services,Head of Education,71732,Dean Bank Childcare,Supplies and Services,324117,Provisions,03-Apr-17,5924778253,ASDA HOME SHOPPING,5411,Catering costs - provisions,51.69,0,51.69
Children and Young Peoples Services,Head of Looked After Provision Permanence and Care Leavers,85952,Secure Education,Supplies and Services,312011,Newspapers Books and Periodicals,03-Apr-17,5924778297,WATERSTONES.COM,5942,Books-school library,7.75,0,7.75
Regeneration and Local Services,Culture & Sport,11060,Hardwick Park Catering,Supplies and Services,324117,Provisions,03-Apr-17,5924778309,FREEMAN CATERING BUTCH,5422,Catering costs - provisions,23.39,0,23.39
Regeneration and Local Services,Culture & Sport,11060,Hardwick Park Catering,Supplies and Services,324117,Provisions,03-Apr-17,5924778313,FREEMAN CATERING BUTCH,5422,Catering costs - provisions,12.99,0,12.99
Regeneration and Local Services,Culture & Sport,11060,Hardwick Park Catering,Supplies and Services,324117,Provisions,03-Apr-17,5924778315,JR HOLLAND FOODSERVICE,5422,Catering costs - provisions,7.33,0,7.33
Regeneration and Local Services,Economic Development and Housing,30762,Organisational Training & Development,Employees,40149,Recruitment Instruction and Training,03-Apr-17,5924778323,CITB,8220,Training-all costs,30,5,25
Regeneration and Local Services,Economic Development and Housing,30762,Organisational Training & Development,Employees,40149,Recruitment Instruction and Training,03-Apr-17,5924778327,CITB,8220,Training-all costs,30,5,25
Regeneration and Local Services,Direct Services,21234,Catering - Locomotion,Supplies and Services,324117,Provisions,03-Apr-17,5924778333,WWW.ADELIEFOODS.CO.UK,5499,Catering costs - provisions,112.66,0,112.66
Regeneration and Local Services,Direct Services,21234,Catering - Locomotion,Supplies and Services,324117,Provisions,03-Apr-17,5924778337,WWW.ADELIEFOODS.CO.UK,5499,Catering costs - provisions,39.12,0,39.12
Regeneration and Local Services,Direct Services,21234,Catering - Locomotion,Supplies and Services,324117,Provisions,03-Apr-17,5924778339,WWW.ADELIEFOODS.CO.UK,5499,Catering costs - provisions,21.36,0,21.36
Regeneration and Local Services,Direct Services,10525,Catering - Green Lane,Supplies and Services,324117,Provisions,03-Apr-17,5924778373,WWW.ADELIEFOODS.CO.UK,5499,Catering costs - provisions,42.74,0,42.74
Regeneration and Local Services,Direct Services,10525,Catering - Green Lane,Supplies and Services,324117,Provisions,03-Apr-17,5924778377,WWW.ADELIEFOODS.CO.UK,5499,Catering costs - provisions,42.14,0,42.14
Regeneration and Local Services,Direct Services,10525,Catering - Green Lane,Supplies and Services,324117,Provisions,03-Apr-17,5924778379,WWW.ADELIEFOODS.CO.UK,5499,Catering costs - provisions,9.85,0,9.85
Regeneration and Local Services,Direct Services,10525,Catering - Green Lane,Supplies and Services,324117,Provisions,03-Apr-17,5924778383,FREEMAN CATERING BUTCH,5422,Catering costs - provisions,106.96,0,106.96
Regeneration and Local Services,Direct Services,10525,Catering - Green Lane,Supplies and Services,324117,Provisions,03-Apr-17,5924778385,FREEMAN CATERING BUTCH,5422,Catering costs - provisions,64.42,0,64.42
Regeneration and Local Services,Direct Services,10525,Catering - Green Lane,Supplies and Services,324117,Provisions,03-Apr-17,5924778389,WWW.ADELIEFOODS.CO.UK,5499,Catering costs - provisions,-3.39,0,-3.39
Regeneration and Local Services,Direct Services,10367,C&G - South Grounds Maintenance,Supplies and Services,324117,Provisions,03-Apr-17,5924778457,J M RAINE,5399,Catering costs - provisions,73.99,0,73.99
Regeneration and Local Services,Direct Services,10367,C&G - South Grounds Maintenance,Supplies and Services,324117,Provisions,03-Apr-17,5924778461,J M RAINE,5399,Catering costs - provisions,52.2,0,52.2
Regeneration and Local Services,Direct Services,10900,Fleet - Meadowfield Fleet,Transport,215013,Running Costs of Vehicles,03-Apr-17,5924778485,DVSA MOT COMP 2,9399,Vehicle Excise Duty (VED),410,0,410
Regeneration and Local Services,Transport and Contracted Services,31704,Care Connect - CCTV Countywide,Supplies and Services,384956,Miscellaneous Expenses,03-Apr-17,5924778517,SECURITY INDUSTRY,7393,Licences,220,0,220
Regeneration and Local Services,Transport and Contracted Services,31701,Care Connect All Localities,Supplies and Services,344033,Telephones,03-Apr-17,5924778521,BT BILL PAYMENT 2,4812,Telephones general-all costs,4.06,0.68,3.38
Regeneration and Local Services,Direct Services,21324,Catering - Meadowfield,Supplies and Services,324117,Provisions,03-Apr-17,5924778527,WWW.ADELIEFOODS.CO.UK,5499,Catering costs - provisions,44.65,0,44.65
Regeneration and Local Services,Direct Services,21324,Catering - Meadowfield,Supplies and Services,324117,Provisions,03-Apr-17,5924778529,WWW.ADELIEFOODS.CO.UK,5499,Catering costs - provisions,35.75,0,35.75
Regeneration and Local Services,Direct Services,21324,Catering - Meadowfield,Supplies and Services,324117,Provisions,03-Apr-17,5924778533,FREEMAN CATERING BUTCH,5422,Catering costs - provisions,57.15,0,57.15
Regeneration and Local Services,Direct Services,21324,Catering - Meadowfield,Supplies and Services,324117,Provisions,03-Apr-17,5924778535,FREEMAN CATERING BUTCH,5422,Catering costs - provisions,53.21,0,53.21
Regeneration and Local Services,Culture & Sport,11086,Positive Futures,Supplies and Services,324117,Provisions,03-Apr-17,5924778583,ASDA STORES LTD,5411,Catering costs - provisions,12.27,0,12.27
Regeneration and Local Services,Economic Development and Housing,30737,Durham Works Flexible Fund,Supplies and Services,324117,Provisions,03-Apr-17,5924778613,ASDA STORES,5411,Catering costs - provisions,74,0,74
Regeneration and Local Services,Direct Services,21235,Catering - Wharton Park,Supplies and Services,324117,Provisions,03-Apr-17,5924778623,JR HOLLAND FOODSERVICE,5422,Catering costs - provisions,9.46,0,9.46
Regeneration and Local Services,Culture & Sport,11060,Hardwick Park Catering,Supplies and Services,304245,Equipment and Materials,03-Apr-17,5924778635,PORTER AND WOODMAN,5947,Materials,193.02,32.17,160.85
Regeneration and Local Services,Culture & Sport,10605,Woodhouse Close Leisure Complex,Supplies and Services,324117,Provisions,03-Apr-17,5924778637,FREEMAN CATERING BUTCH,5422,Catering costs - provisions,49.8,0,49.8
Regeneration and Local Services,Culture & Sport,10605,Woodhouse Close Leisure Complex,Supplies and Services,324117,Provisions,03-Apr-17,5924778639,JR HOLLAND FOODSERVICE,5422,Catering costs - provisions,52,0,52
Regeneration and Local Services,Economic Development and Housing,30737,Durham Works Flexible Fund,Transport,235057,Public Transport,03-Apr-17,5924778643,WWW.SIMPLYGO.COM,4131,Staff travelling,89,0,89
Regeneration and Local Services,Economic Development and Housing,30554,International Relations,Transport,235057,Public Transport,03-Apr-17,5924778651,SNBRU AIR,3029,Staff travelling,"1,026.24",0,1026.24
Regeneration and Local Services,Culture & Sport,54815,Gala Theatre Stage School,Supplies and Services,304403,Equipment and Materials,03-Apr-17,5928729813,FLASHINGBLINKYLIGHTS.C,5065,Other consumables,199.09,0,199.09
Regeneration and Local Services,Culture & Sport,54399,Local Delivery-Libraries,Supplies and Services,312011,Newspapers Books and Periodicals,03-Apr-17,5928730021,AMAZON UK RETAIL AMAZO,5999,Books-school library,9.99,0,9.99
Regeneration and Local Services,Culture & Sport,54399,Local Delivery-Libraries,Supplies and Services,312011,Newspapers Books and Periodicals,03-Apr-17,5928730025,AMAZON UK RETAIL AMAZO,5999,Books-school library,20.98,0,20.98
Regeneration and Local Services,Culture & Sport,54399,Local Delivery-Libraries,Supplies and Services,312011,Newspapers Books and Periodicals,03-Apr-17,5928730027,AMAZON UK RETAIL AMAZO,5999,Books-school library,17.98,0,17.98
Children and Young Peoples Services,Head of Education,79599,Psychological-HQ,Supplies and Services,340001,Postages,03-Apr-17,5928730205,POST OFFICE SHOP,9402,Postages,123.99,0,123.99
Regeneration and Local Services,Direct Services,10383,C&G - South Street Cleansing,Transport,215995,Running Costs of Vehicles,03-Apr-17,5932886891,SNOWBALLS (RAILWAY,5533,Vehicle running expenses,21.77,3.63,18.14
Regeneration and Local Services,Culture & Sport,54812,Gala Theatre - Catering etc,Supplies and Services,324117,Provisions,03-Apr-17,6036408131,BATLEYS PERTH,5300,Catering costs - provisions,39.54,6.59,32.95
Regeneration and Local Services,Culture & Sport,54812,Gala Theatre - Catering etc,Supplies and Services,324117,Provisions,03-Apr-17,000006036408131 - 1,BATLEYS PERTH,5300,Catering costs - provisions,42.78,,42.78
Regeneration and Local Services,Culture & Sport,11060,Hardwick Park Catering,Supplies and Services,324117,Provisions,03-Apr-17,6036408289,BATLEYS PERTH,5300,Catering costs - provisions,106.86,17.81,89.05
Regeneration and Local Services,Culture & Sport,11060,Hardwick Park Catering,Supplies and Services,324117,Provisions,03-Apr-17,000006036408289 - 1,BATLEYS PERTH,5300,Catering costs - provisions,106.78,,106.78
Children and Young Peoples Services,Head of Education,71801,Selby Cottage Childcare Centre,Supplies and Services,324117,Provisions,04-Apr-17,5928729501,TESCO STORES 2278,5411,Catering costs - provisions,27.47,0,27.47
Regeneration and Local Services,Economic Development and Housing,31576,B& B - Temp Accom,Supplies and Services,364320,Grants to Voluntary Organisations,04-Apr-17,5928729509,DAYS INN,7011,Accommodation assistance,90,15,75
Children and Young Peoples Services,Head of Looked After Provision Permanence and Care Leavers,85957,Secure Management,Supplies and Services,304259,Equipment and Materials,04-Apr-17,5928729541,SCREWFIX DIRECT,5211,Equipment-purchase and rental,36.55,6.09,30.46
Children and Young Peoples Services,Head of Looked After Provision Permanence and Care Leavers,85342,9 Cedar Drive Aycliffe,Supplies and Services,324117,Provisions,04-Apr-17,5928729549,ALDI,5411,Catering costs - provisions,19.86,0,19.86
Children and Young Peoples Services,Head of Looked After Provision Permanence and Care Leavers,85342,9 Cedar Drive Aycliffe,Supplies and Services,304259,Equipment and Materials,04-Apr-17,5928729551,WILKO RETAIL LIMIT,5722,Equipment-purchase and rental,19.15,0,19.15
Children and Young Peoples Services,Head of Looked After Provision Permanence and Care Leavers,85342,9 Cedar Drive Aycliffe,Supplies and Services,304259,Equipment and Materials,04-Apr-17,5928729553,WILKO RETAIL LIMIT,5722,Equipment-purchase and rental,4.5,0,4.5
Children and Young Peoples Services,Head of Looked After Provision Permanence and Care Leavers,85342,9 Cedar Drive Aycliffe,Supplies and Services,324117,Provisions,04-Apr-17,5928729557,TESCO STORES 2916,5411,Catering costs - provisions,191.16,0,191.16
Resources,Financial Services,65166,Finance - Post Entry Training,Employees,40149,Recruitment Instruction and Training,04-Apr-17,5928729587,WWW.CIPS.ORG,8699,Training-all costs,132.6,0,132.6
Regeneration and Local Services,Direct Services,21242,Catering - County Hall,Supplies and Services,324117,Provisions,04-Apr-17,5928729599,WWW.ADELIEFOODS.CO.UK,5499,Catering costs - provisions,153.11,0,153.11
Regeneration and Local Services,Direct Services,21242,Catering - County Hall,Supplies and Services,324117,Provisions,04-Apr-17,5928729605,WWW.ADELIEFOODS.CO.UK,5499,Catering costs - provisions,77.78,0,77.78
Regeneration and Local Services,Direct Services,21242,Catering - County Hall,Supplies and Services,324117,Provisions,04-Apr-17,5928729607,BRAMBLES FOODS LTD,5499,Catering costs - provisions,431.27,0,431.27
Regeneration and Local Services,Direct Services,21242,Catering - County Hall,Supplies and Services,324117,Provisions,04-Apr-17,5928729611,JR HOLLAND FOODSERVICE,5422,Catering costs - provisions,63.02,0,63.02
Regeneration and Local Services,Direct Services,21242,Catering - County Hall,Supplies and Services,324117,Provisions,04-Apr-17,5928729619,JR HOLLAND FOODSERVICE,5422,Catering costs - provisions,6.58,0,6.58
Regeneration and Local Services,Culture & Sport,54812,Gala Theatre - Catering etc,Supplies and Services,324117,Provisions,04-Apr-17,5928729627,JR HOLLAND FOODSERVICE,5422,Catering costs - provisions,23.98,0,23.98
Children and Young Peoples Services,Head of Looked After Provision Permanence and Care Leavers,85351,Framwellgate Moor CU,Supplies and Services,324117,Provisions,04-Apr-17,5928729671,ASDA HOME SHOPPING,5411,Catering costs - provisions,160.43,0,160.43
Children and Young Peoples Services,Head of Looked After Provision Permanence and Care Leavers,85351,Framwellgate Moor CU,Supplies and Services,324117,Provisions,04-Apr-17,5928729673,ASDA HOME SHOPPING,5411,Catering costs - provisions,-1.14,0,-1.14
Children and Young Peoples Services,Head of Early Help Assessment and Safeguarding,88083,Ferryhill 0 - 5,Supplies and Services,308011,Furniture,04-Apr-17,5928729677,ASDA GEORGE COM LEEDS,5411,Furniture repair and replacement,83.5,0,83.5
Children and Young Peoples Services,Head of Early Help Assessment and Safeguarding,88037,One Point YEI,Supplies and Services,304403,Equipment and Materials,04-Apr-17,5928729715,GRO HM PASSPORT OFFICE,9399,Other consumables,9.25,0,9.25
Children and Young Peoples Services,Head of Looked After Provision Permanence and Care Leavers,85957,Secure Management,Supplies and Services,328041,Clothing Uniforms and Laundry,04-Apr-17,5928729727,M and M Direct Ltd,5941,Clothing uniforms and laundry,29.98,0,29.98
Children and Young Peoples Services,Head of Looked After Provision Permanence and Care Leavers,85957,Secure Management,Supplies and Services,328041,Clothing Uniforms and Laundry,04-Apr-17,5928729729,WWW.BLACKS.CO.UK,5941,Clothing uniforms and laundry,84.99,0,84.99
Children and Young Peoples Services,Head of Looked After Provision Permanence and Care Leavers,85957,Secure Management,Supplies and Services,328041,Clothing Uniforms and Laundry,04-Apr-17,5928729731,VERY.CO.UK,5964,Clothing uniforms and laundry,65,0,65
Children and Young Peoples Services,Head of Looked After Provision Permanence and Care Leavers,85957,Secure Management,Supplies and Services,328041,Clothing Uniforms and Laundry,04-Apr-17,5928729735,VERY.CO.UK,5964,Clothing uniforms and laundry,16,0,16
Children and Young Peoples Services,Head of Looked After Provision Permanence and Care Leavers,85957,Secure Management,Supplies and Services,328041,Clothing Uniforms and Laundry,04-Apr-17,5928729737,VERY.CO.UK,5964,Clothing uniforms and laundry,10,0,10
Children and Young Peoples Services,Head of Looked After Provision Permanence and Care Leavers,85957,Secure Management,Supplies and Services,328041,Clothing Uniforms and Laundry,04-Apr-17,5928729741,VERY.CO.UK,5964,Clothing uniforms and laundry,3.99,0,3.99
Regeneration and Local Services,Direct Services,10367,C&G - South Grounds Maintenance,Supplies and Services,304999,Equipment and Materials,04-Apr-17,5928729763,GUSTHARTS CHAINSAW CTR,7699,Misc equipment tools and materials,226.8,37.8,189
Regeneration and Local Services,Direct Services,10301,C&G - North Grounds Maintenance,Supplies and Services,328041,Clothing Uniforms and Laundry,04-Apr-17,5928729769,THOMAS OWEN & SONS /N/,5611,Clothing uniforms and laundry,269.23,0,269.23
Regeneration and Local Services,Direct Services,10301,C&G - North Grounds Maintenance,Supplies and Services,328041,Clothing Uniforms and Laundry,04-Apr-17,5928729773,THOMAS OWEN & SONS /N/,5611,Clothing uniforms and laundry,267.29,0,267.29
Regeneration and Local Services,Direct Services,10301,C&G - North Grounds Maintenance,Supplies and Services,328041,Clothing Uniforms and Laundry,04-Apr-17,5928729777,THOMAS OWEN & SONS /N/,5611,Clothing uniforms and laundry,252.6,0,252.6
Regeneration and Local Services,Direct Services,10301,C&G - North Grounds Maintenance,Supplies and Services,312011,Newspapers Books and Periodicals,04-Apr-17,5928729781,GRALANDS WOODWORK SUPP,5251,Books-school library,7.97,0,7.97
Regeneration and Local Services,Direct Services,10301,C&G - North Grounds Maintenance,Third Party Payments,430100,Rendered by Private Contractors,04-Apr-17,5928729785,JOHN WARREN (ANIMAL BY,7399,Payments to sub-contractors,9.6,0,9.6
Regeneration and Local Services,Culture & Sport,11060,Hardwick Park Catering,Supplies and Services,324117,Provisions,04-Apr-17,5928729791,JR HOLLAND FOODSERVICE,5422,Catering costs - provisions,26.53,0,26.53
Regeneration and Local Services,Culture & Sport,11060,Hardwick Park Catering,Supplies and Services,324117,Provisions,04-Apr-17,5928729797,JR HOLLAND FOODSERVICE,5422,Catering costs - provisions,4.7,0,4.7
Regeneration and Local Services,Culture & Sport,11060,Hardwick Park Catering,Supplies and Services,324117,Provisions,04-Apr-17,5928729801,JR HOLLAND FOODSERVICE,5422,Catering costs - provisions,-4.16,0,-4.16
Resources,I.C.T. Services,65335,Implementation,Supplies and Services,304639,Equipment and Materials,04-Apr-17,5928729807,WWW.ALIEXPRESS.COM,5964,Technicians-supplies,10.47,0,10.47
Regeneration and Local Services,Economic Development and Housing,30762,Organisational Training & Development,Employees,40149,Recruitment Instruction and Training,04-Apr-17,5928729825,CITB,8220,Training-all costs,30,5,25
Regeneration and Local Services,Economic Development and Housing,30762,Organisational Training & Development,Employees,40149,Recruitment Instruction and Training,04-Apr-17,5928729831,CITB,8220,Training-all costs,30,5,25
Regeneration and Local Services,Economic Development and Housing,30762,Organisational Training & Development,Employees,40149,Recruitment Instruction and Training,04-Apr-17,5928729835,CITB,8220,Training-all costs,30,5,25
Regeneration and Local Services,Economic Development and Housing,30762,Organisational Training & Development,Employees,40149,Recruitment Instruction and Training,04-Apr-17,5928729839,CITB,8220,Training-all costs,30,5,25
Regeneration and Local Services,Economic Development and Housing,30762,Organisational Training & Development,Employees,40149,Recruitment Instruction and Training,04-Apr-17,5928729843,CITB,8220,Training-all costs,30,5,25
Children and Young Peoples Services,Head of Looked After Provision Permanence and Care Leavers,85551,Short Break Services-Park Hse Sher,Supplies and Services,332047,Printing Stationery and Gen Off Exps,04-Apr-17,5928729849,RYMAN,5943,Stationery,15.99,0,15.99
Regeneration and Local Services,Direct Services,21234,Catering - Locomotion,Supplies and Services,324117,Provisions,04-Apr-17,5928729855,WWW.ADELIEFOODS.CO.UK,5499,Catering costs - provisions,129.15,0,129.15
Regeneration and Local Services,Direct Services,21234,Catering - Locomotion,Supplies and Services,324117,Provisions,04-Apr-17,5928729859,WWW.ADELIEFOODS.CO.UK,5499,Catering costs - provisions,37.64,0,37.64
Regeneration and Local Services,Direct Services,21234,Catering - Locomotion,Supplies and Services,324117,Provisions,04-Apr-17,5928729863,BRAMBLES FOODS LTD,5499,Catering costs - provisions,98.42,0,98.42
Regeneration and Local Services,Direct Services,21234,Catering - Locomotion,Supplies and Services,324117,Provisions,04-Apr-17,5928729867,JR HOLLAND FOODSERVICE,5422,Catering costs - provisions,41.05,0,41.05
Regeneration and Local Services,Economic Development and Housing,31576,B& B - Temp Accom,Supplies and Services,364320,Grants to Voluntary Organisations,04-Apr-17,5928729881,DAYS INN,7011,Accommodation assistance,45,7.5,37.5
Regeneration and Local Services,Direct Services,10525,Catering - Green Lane,Supplies and Services,324117,Provisions,04-Apr-17,5928729921,BRAMBLES FOODS LTD,5499,Catering costs - provisions,75.38,0,75.38
Regeneration and Local Services,Direct Services,10525,Catering - Green Lane,Supplies and Services,324117,Provisions,04-Apr-17,5928729925,JR HOLLAND FOODSERVICE,5422,Catering costs - provisions,-1.98,0,-1.98
Regeneration and Local Services,Economic Development and Housing,30749,Employability - Youth Contract,Transport,230031,Contract Hire,04-Apr-17,5928729983,WWW.SIMPLYGO.COM,4131,Pupils-transport to play fields etc,6.4,0,6.4
Regeneration and Local Services,Economic Development and Housing,30749,Employability - Youth Contract,Transport,230031,Contract Hire,04-Apr-17,5928729991,ARRIVA NORTH EAST,4131,Pupils-transport to play fields etc,4.1,0,4.1
Regeneration and Local Services,Economic Development and Housing,30749,Employability - Youth Contract,Transport,230031,Contract Hire,04-Apr-17,5928729995,ARRIVA NORTH EAST,4131,Pupils-transport to play fields etc,14,0,14
Regeneration and Local Services,Culture & Sport,54399,Local Delivery-Libraries,Supplies and Services,312011,Newspapers Books and Periodicals,04-Apr-17,5928730019,Amazon UK Marketplace,5942,Books-school library,2.81,0,2.81
Regeneration and Local Services,Direct Services,10301,C&G - North Grounds Maintenance,Supplies and Services,324117,Provisions,04-Apr-17,5928730045,J VAN VLIET GATESHEAD,5399,Catering costs - provisions,180.48,30.08,150.4
Regeneration and Local Services,Culture & Sport,54235,Bp Auckland Town Hall Cafe,Supplies and Services,324117,Provisions,04-Apr-17,5928730077,BRAMBLES FOODS LTD,5499,Catering costs - provisions,98.08,0,98.08
Regeneration and Local Services,Culture & Sport,54235,Bp Auckland Town Hall Cafe,Supplies and Services,324117,Provisions,04-Apr-17,5928730081,JR HOLLAND FOODSERVICE,5422,Catering costs - provisions,11.92,0,11.92
Regeneration and Local Services,Transport and Contracted Services,31701,Care Connect All Localities,Supplies and Services,344033,Telephones,04-Apr-17,5928730085,CBF/MBLOX LTD.,4812,Telephones general-all costs,61.8,0,61.8
Regeneration and Local Services,Direct Services,21324,Catering - Meadowfield,Supplies and Services,324117,Provisions,04-Apr-17,5928730089,BRAMBLES FOODS LTD,5499,Catering costs - provisions,112.04,0,112.04
Regeneration and Local Services,Culture & Sport,11086,Positive Futures,Supplies and Services,324117,Provisions,04-Apr-17,5928730133,ASDA SUPERSTORE 4987,5411,Catering costs - provisions,21.72,0,21.72
Adult and Health Services,Planning & Service Strategy,54630,Comm Marketing and Information,Supplies and Services,336005,Advertising,04-Apr-17,5928730179,FACEBK 2PD72CNSS2,7311,Advertising other than for staff,530.26,0,530.26
Regeneration and Local Services,Spatial Policy Planning Assets & Environment,31090,Horden Dene,Supplies and Services,352001,Conference Expenses,04-Apr-17,5928730183,WWW.SCARBOROUGHMUSEUMT,8398,Conferencesseminars fees etc,70,0,70
Regeneration and Local Services,Economic Development and Housing,31500,Housing Solutions - Core Team,Supplies and Services,338064,Services,04-Apr-17,5928730185,DISCLOSURE SCOT,9399,Disclosure & Barring (DBS) Fees,25,0,25
Resources,Legal & Democratic Services,67910,Democratic Representation,Supplies and Services,372009,Subscriptions,04-Apr-17,5928730189,WWW.ICO.GOV.UK,9399,Subscriptions,35,0,35
Resources,Legal & Democratic Services,67910,Democratic Representation,Supplies and Services,372009,Subscriptions,04-Apr-17,5928730191,WWW.ICO.GOV.UK,9399,Subscriptions,35,0,35
Children and Young Peoples Services,Head of Early Help Assessment and Safeguarding,71404,Laurel Avenue Childrens Centre,Supplies and Services,324117,Provisions,04-Apr-17,5928730195,TESCO STORES 2371,5411,Catering costs - provisions,29.48,0,29.48
Resources,I.C.T. Services,65432,Web Development Group,Supplies and Services,342033,Computers and Communications,04-Apr-17,5932886877,TELERIK,7372,Computer hardware,401.5,0,401.5
Children and Young Peoples Services,Head of Looked After Provision Permanence and Care Leavers,85342,9 Cedar Drive Aycliffe,Employees,40149,Recruitment Instruction and Training,04-Apr-17,5932886909,PARENTPAY E-COM R,8220,Training-all costs,30,0,30
Regeneration and Local Services,Economic Development and Housing,30699,Business Growth and Innovation General,Supplies and Services,304403,Equipment and Materials,04-Apr-17,5932886917,MEETEDGAR MONTHLY,5734,Other consumables,39.45,0,39.45
Children and Young Peoples Services,Head of Looked After Provision Permanence and Care Leavers,85957,Secure Management,Supplies and Services,328041,Clothing Uniforms and Laundry,04-Apr-17,5932887009,SPORTSDIRECT.COM,5941,Clothing uniforms and laundry,152.96,25.49,127.47
Regeneration and Local Services,Culture & Sport,54399,Local Delivery-Libraries,Supplies and Services,312011,Newspapers Books and Periodicals,04-Apr-17,5932887141,AMAZON UK RETAIL AMAZO,5999,Books-school library,15.38,0,15.38
Regeneration and Local Services,Culture & Sport,54399,Local Delivery-Libraries,Supplies and Services,312011,Newspapers Books and Periodicals,04-Apr-17,5932887143,AMAZON UK RETAIL AMAZO,5999,Books-school library,218.74,0,218.74
Children and Young Peoples Services,Head of Early Help Assessment and Safeguarding,88037,One Point YEI,Supplies and Services,304403,Equipment and Materials,04-Apr-17,6019434037,GRO HM PASSPORT OFFICE,9399,Other consumables,-9.25,0,-9.25
Regeneration and Local Services,Direct Services,21242,Catering - County Hall,Supplies and Services,324117,Provisions,04-Apr-17,6036408053,BATLEYS PERTH,5300,Catering costs - provisions,310.56,51.76,258.8
Regeneration and Local Services,Direct Services,21242,Catering - County Hall,Supplies and Services,324117,Provisions,04-Apr-17,000006036408053 - 1,BATLEYS PERTH,5300,Catering costs - provisions,83.37,,83.37
Regeneration and Local Services,Culture & Sport,11060,Hardwick Park Catering,Supplies and Services,324117,Provisions,04-Apr-17,6036408297,BATLEYS PERTH,5300,Catering costs - provisions,190.86,31.81,159.05
Regeneration and Local Services,Culture & Sport,11060,Hardwick Park Catering,Supplies and Services,324117,Provisions,04-Apr-17,000006036408297 - 1,BATLEYS PERTH,5300,Catering costs - provisions,145.83,,145.83
Regeneration and Local Services,Direct Services,21234,Catering - Locomotion,Supplies and Services,324117,Provisions,04-Apr-17,6036408429,BATLEYS PERTH,5300,Catering costs - provisions,231.24,38.54,192.7
Regeneration and Local Services,Direct Services,21234,Catering - Locomotion,Supplies and Services,324117,Provisions,04-Apr-17,000006036408429 - 1,BATLEYS PERTH,5300,Catering costs - provisions,14.9,,14.9
Regeneration and Local Services,Direct Services,21324,Catering - Meadowfield,Supplies and Services,324117,Provisions,04-Apr-17,6036408701,BATLEYS PERTH,5300,Catering costs - provisions,150.54,25.09,125.45
Regeneration and Local Services,Direct Services,21324,Catering - Meadowfield,Supplies and Services,324117,Provisions,04-Apr-17,000006036408701 - 1,BATLEYS PERTH,5300,Catering costs - provisions,83.38,,83.38
Regeneration and Local Services,Culture & Sport,54815,Gala Theatre Stage School,Supplies and Services,304403,Equipment and Materials,05-Apr-17,5928729819,FLASHINGBLINKYLIGHTS.C,5065,Other consumables,5.47,0,5.47
Regeneration and Local Services,Direct Services,21242,Catering - County Hall,Supplies and Services,324117,Provisions,05-Apr-17,5932886853,SAINSBURYS LOC (4320),5411,Catering costs - provisions,8.1,0,8.1
Children and Young Peoples Services,Head of Education,71801,Selby Cottage Childcare Centre,Supplies and Services,324117,Provisions,05-Apr-17,5932886869,ASDA HOME SHOPPING,5411,Catering costs - provisions,5,0,5
Regeneration and Local Services,Direct Services,10814,Bldg Serv - R&M General,Supplies and Services,344033,Telephones,05-Apr-17,5932886873,Amazon UK Marketplace,5942,Telephones general-all costs,187.5,0,187.5
Regeneration and Local Services,Economic Development and Housing,31576,B& B - Temp Accom,Supplies and Services,364320,Grants to Voluntary Organisations,05-Apr-17,5932886883,DAYS INN,7011,Accommodation assistance,49,8.17,40.83
Children and Young Peoples Services,Head of Looked After Provision Permanence and Care Leavers,85957,Secure Management,Supplies and Services,304221,Equipment and Materials,05-Apr-17,5932886895,FAST ENGINEERING LTD,8911,Direct materials,92.4,15.4,77
Regeneration and Local Services,Direct Services,10367,C&G - South Grounds Maintenance,Supplies and Services,304259,Equipment and Materials,05-Apr-17,5932886923,SCREWFIX,5211,Equipment-purchase and rental,57.73,9.62,48.11
Children and Young Peoples Services,Head of Early Help Assessment and Safeguarding,71440,Barnard Castle One Point Hub,Supplies and Services,328041,Clothing Uniforms and Laundry,05-Apr-17,5932886933,ORIGINAL FACTORY S,5311,Clothing uniforms and laundry,3,0,3
Regeneration and Local Services,Direct Services,21242,Catering - County Hall,Supplies and Services,324117,Provisions,05-Apr-17,5932886937,JR HOLLAND FOODSERVICE,5422,Catering costs - provisions,85.83,0,85.83
Regeneration and Local Services,Direct Services,21242,Catering - County Hall,Supplies and Services,324117,Provisions,05-Apr-17,5932886941,JR HOLLAND FOODSERVICE,5422,Catering costs - provisions,62.58,0,62.58
Regeneration and Local Services,Direct Services,21242,Catering - County Hall,Supplies and Services,324117,Provisions,05-Apr-17,5932886943,JR HOLLAND FOODSERVICE,5422,Catering costs - provisions,31.35,0,31.35
Children and Young Peoples Services,Head of Looked After Provision Permanence and Care Leavers,85361,LAC & Permanence Team 1,Supplies and Services,304259,Equipment and Materials,05-Apr-17,5932886953,GRO HM PASSPORT OFFICE,9399,Equipment-purchase and rental,23.4,0,23.4
Children and Young Peoples Services,Head of Looked After Provision Permanence and Care Leavers,85361,LAC & Permanence Team 1,Supplies and Services,304259,Equipment and Materials,05-Apr-17,5932886955,GRO HM PASSPORT OFFICE,9399,Equipment-purchase and rental,46.8,0,46.8
Children and Young Peoples Services,Head of Early Help Assessment and Safeguarding,88063,Bishop Auckland 0 - 5,Supplies and Services,324117,Provisions,05-Apr-17,5932886967,ASDA HOME SHOPPING,5411,Catering costs - provisions,13.38,2.23,11.15
Children and Young Peoples Services,Head of Early Help Assessment and Safeguarding,88063,Bishop Auckland 0 - 5,Supplies and Services,324117,Provisions,05-Apr-17,000005932886967 - 1,ASDA HOME SHOPPING,5411,Catering costs - provisions,46.41,,46.41
Children and Young Peoples Services,Head of Early Help Assessment and Safeguarding,88063,Bishop Auckland 0 - 5,Supplies and Services,324117,Provisions,05-Apr-17,5932886971,ASDA HOME SHOPPING,5411,Catering costs - provisions,-0.3,0,-0.3
Regeneration and Local Services,Economic Development and Housing,30749,Employability - Youth Contract,Transport,235057,Public Transport,05-Apr-17,5932886973,ARRIVA NORTH EAST,4131,Staff travelling,6.5,0,6.5
Children and Young Peoples Services,Head of Education,71732,Dean Bank Childcare,Supplies and Services,328041,Clothing Uniforms and Laundry,05-Apr-17,5932886989,B&M RETAIL LTD,5310,Clothing uniforms and laundry,31.93,0,31.93
Children and Young Peoples Services,Head of Looked After Provision Permanence and Care Leavers,85957,Secure Management,Supplies and Services,324117,Provisions,05-Apr-17,5932887013,TESCO STORES 6329,5411,Catering costs - provisions,111.61,0,111.61
Children and Young Peoples Services,Head of Looked After Provision Permanence and Care Leavers,85955,Auckland,Supplies and Services,304403,Equipment and Materials,05-Apr-17,5932887015,AMZ Fun Collectables,5999,Other consumables,-13.99,0,-13.99
Regeneration and Local Services,Culture & Sport,11060,Hardwick Park Catering,Supplies and Services,324117,Provisions,05-Apr-17,5932887021,JR HOLLAND FOODSERVICE,5422,Catering costs - provisions,116.64,0,116.64
Regeneration and Local Services,Culture & Sport,11060,Hardwick Park Catering,Supplies and Services,324117,Provisions,05-Apr-17,5932887025,JR HOLLAND FOODSERVICE,5422,Catering costs - provisions,67.52,0,67.52
Resources,I.C.T. Services,65335,Implementation,Supplies and Services,304639,Equipment and Materials,05-Apr-17,5932887035,AMZ replacebase,4816,Technicians-supplies,20.15,0,20.15
Regeneration and Local Services,Economic Development and Housing,30762,Organisational Training & Development,Employees,40149,Recruitment Instruction and Training,05-Apr-17,5932887047,NCS VUE CITB HS&E REV,8299,Training-all costs,487.5,0,487.5
Regeneration and Local Services,Economic Development and Housing,30762,Organisational Training & Development,Employees,40149,Recruitment Instruction and Training,05-Apr-17,5932887051,CITB,8220,Training-all costs,30,5,25
Regeneration and Local Services,Economic Development and Housing,31576,B& B - Temp Accom,Supplies and Services,364320,Grants to Voluntary Organisations,05-Apr-17,5932887053,DAYS INN,7011,Accommodation assistance,236,39.33,196.67
Regeneration and Local Services,Direct Services,10525,Catering - Green Lane,Supplies and Services,324117,Provisions,05-Apr-17,5932887069,JR HOLLAND FOODSERVICE,5422,Catering costs - provisions,29.47,0,29.47
Children and Young Peoples Services,Head of Looked After Provision Permanence and Care Leavers,85352,Tow Law CU,Supplies and Services,324117,Provisions,05-Apr-17,5932887087,TESCO STORES 2371,5411,Catering costs - provisions,164.66,0,164.66
Regeneration and Local Services,Economic Development and Housing,30749,Employability - Youth Contract,Employees,40149,Recruitment Instruction and Training,05-Apr-17,5932887121,PACEY COMMERCIAL SERVI,8398,Training-all costs,5,0,5
Resources,Resources Management,69000,Resources Management,Supplies and Services,324117,Provisions,05-Apr-17,5932887127,TESCO STORES 2371,5411,Catering costs - provisions,15.45,0,15.45
Regeneration and Local Services,Direct Services,10301,C&G - North Grounds Maintenance,Supplies and Services,304403,Equipment and Materials,05-Apr-17,5932887147,BESCOL,5231,Other consumables,60.22,10.04,50.18
Regeneration and Local Services,Direct Services,10301,C&G - North Grounds Maintenance,Supplies and Services,312011,Newspapers Books and Periodicals,05-Apr-17,5932887149,GRALANDS WOODWORK SUPP,5251,Books-school library,152.95,25.49,127.46
Regeneration and Local Services,Culture & Sport,54235,Bp Auckland Town Hall Cafe,Supplies and Services,324117,Provisions,05-Apr-17,5932887161,JR HOLLAND FOODSERVICE,5422,Catering costs - provisions,25.33,0,25.33
Regeneration and Local Services,Direct Services,21324,Catering - Meadowfield,Supplies and Services,324117,Provisions,05-Apr-17,5932887163,JR HOLLAND FOODSERVICE,5422,Catering costs - provisions,31.96,0,31.96
Regeneration and Local Services,Direct Services,21324,Catering - Meadowfield,Supplies and Services,324117,Provisions,05-Apr-17,5932887167,JR HOLLAND FOODSERVICE,5422,Catering costs - provisions,13.87,0,13.87
Regeneration and Local Services,Economic Development and Housing,30737,Durham Works Flexible Fund,Supplies and Services,304259,Equipment and Materials,05-Apr-17,5932887235,SCREWFIX DIRECT,5211,Equipment-purchase and rental,42.99,0,42.99
Children and Young Peoples Services,Head of Early Help Assessment and Safeguarding,85100,Child Protection & Disabilty Strategic Manager,Supplies and Services,332047,Printing Stationery and Gen Off Exps,05-Apr-17,5932887259,STOCKTON BOROUGH COUNC,9399,Stationery,41,0,41
Regeneration and Local Services,Direct Services,21235,Catering - Wharton Park,Supplies and Services,324117,Provisions,05-Apr-17,5932887263,JR HOLLAND FOODSERVICE,5422,Catering costs - provisions,18.42,0,18.42
Regeneration and Local Services,Culture & Sport,11060,Hardwick Park Catering,Supplies and Services,304245,Equipment and Materials,05-Apr-17,5932887271,AMAZON UK RETAIL AMAZO,5999,Materials,59,0,59
Regeneration and Local Services,Culture & Sport,10605,Woodhouse Close Leisure Complex,Supplies and Services,324117,Provisions,05-Apr-17,5932887279,JR HOLLAND FOODSERVICE,5422,Catering costs - provisions,25.09,0,25.09
Regeneration and Local Services,Culture & Sport,54399,Local Delivery-Libraries,Supplies and Services,312011,Newspapers Books and Periodicals,05-Apr-17,5937428527,AMAZON UK RETAIL AMAZO,5999,Books-school library,72.8,0,72.8
Children and Young Peoples Services,Head of Looked After Provision Permanence and Care Leavers,85361,LAC & Permanence Team 1,Supplies and Services,304259,Equipment and Materials,05-Apr-17,5942849521,GRO HM PASSPORT OFFICE,9399,Equipment-purchase and rental,-23.4,0,-23.4
Regeneration and Local Services,Culture & Sport,11060,Hardwick Park Catering,Supplies and Services,324117,Provisions,05-Apr-17,6036408391,BATLEYS PERTH,5300,Catering costs - provisions,-0.76,-0.13,-0.63
Regeneration and Local Services,Culture & Sport,10605,Woodhouse Close Leisure Complex,Supplies and Services,324117,Provisions,05-Apr-17,6036408865,BATLEYS PERTH,5300,Catering costs - provisions,94.32,15.72,78.6
Regeneration and Local Services,Culture & Sport,10605,Woodhouse Close Leisure Complex,Supplies and Services,324117,Provisions,05-Apr-17,000006036408865 - 1,BATLEYS PERTH,5300,Catering costs - provisions,101.94,,101.94
Resources,I.C.T. Services,65432,Web Development Group,Supplies and Services,342033,Computers and Communications,06-Apr-17,5932886879,TELERIK,7372,Computer hardware,11.04,0,11.04
Regeneration and Local Services,Economic Development and Housing,30699,Business Growth and Innovation General,Supplies and Services,304403,Equipment and Materials,06-Apr-17,5932886921,MEETEDGAR MONTHLY,5734,Other consumables,1.08,0,1.08
Children and Young Peoples Services,Head of Education,71801,Selby Cottage Childcare Centre,Supplies and Services,324117,Provisions,06-Apr-17,5937428333,TESCO STORES 2278,5411,Catering costs - provisions,15.3,0,15.3
Children and Young Peoples Services,Head of Early Help Assessment and Safeguarding,88033,Durham 0 - 5,Supplies and Services,304259,Equipment and Materials,06-Apr-17,5937428337,GRO HM PASSPORT OFFICE,9399,Equipment-purchase and rental,9.25,0,9.25
Regeneration and Local Services,Economic Development and Housing,31576,B& B - Temp Accom,Supplies and Services,364320,Grants to Voluntary Organisations,06-Apr-17,5937428339,DAYS INN,7011,Accommodation assistance,49,8.17,40.83
Regeneration and Local Services,Economic Development and Housing,31576,B& B - Temp Accom,Supplies and Services,364320,Grants to Voluntary Organisations,06-Apr-17,5937428341,DAYS INN,7011,Accommodation assistance,49,8.17,40.83
Regeneration and Local Services,Economic Development and Housing,31576,B& B - Temp Accom,Supplies and Services,364320,Grants to Voluntary Organisations,06-Apr-17,5937428343,DAYS INN,7011,Accommodation assistance,49,8.17,40.83
Regeneration and Local Services,Economic Development and Housing,31576,B& B - Temp Accom,Supplies and Services,364320,Grants to Voluntary Organisations,06-Apr-17,5937428345,DAYS INN,7011,Accommodation assistance,147,24.5,122.5
Regeneration and Local Services,Economic Development and Housing,30699,Business Growth and Innovation General,Supplies and Services,336005,Advertising,06-Apr-17,5937428363,ADROLL,7311,Advertising other than for staff,25.14,0,25.14
Regeneration and Local Services,Economic Development and Housing,30699,Business Growth and Innovation General,Supplies and Services,312011,Newspapers Books and Periodicals,06-Apr-17,5937428365,FASTHOSTS INTERNET,4816,Books-school library,15.58,2.6,12.98
Regeneration and Local Services,Economic Development and Housing,30699,Business Growth and Innovation General,Supplies and Services,312011,Newspapers Books and Periodicals,06-Apr-17,5937428367,FASTHOSTS INTERNET,4816,Books-school library,12.59,2.1,10.49
Children and Young Peoples Services,Head of Early Help Assessment and Safeguarding,71440,Barnard Castle One Point Hub,Supplies and Services,312011,Newspapers Books and Periodicals,06-Apr-17,5937428377,Amazon UK Marketplace,5942,Books-school library,13,0,13
Children and Young Peoples Services,Head of Early Help Assessment and Safeguarding,71440,Barnard Castle One Point Hub,Supplies and Services,312011,Newspapers Books and Periodicals,06-Apr-17,5937428379,Amazon EU,5969,Books-school library,16.37,0,16.37
Children and Young Peoples Services,Head of Early Help Assessment and Safeguarding,71440,Barnard Castle One Point Hub,Supplies and Services,308011,Furniture,06-Apr-17,5937428381,WORLDSTORES LTD,5719,Furniture repair and replacement,426.95,0,426.95
Children and Young Peoples Services,Head of Early Help Assessment and Safeguarding,71440,Barnard Castle One Point Hub,Supplies and Services,312011,Newspapers Books and Periodicals,06-Apr-17,5937428383,Amazon EU,5969,Books-school library,43.2,0,43.2
Children and Young Peoples Services,Head of Early Help Assessment and Safeguarding,71440,Barnard Castle One Point Hub,Supplies and Services,328041,Clothing Uniforms and Laundry,06-Apr-17,5937428385,ARGOS RETAIL GROUP,5310,Clothing uniforms and laundry,49.99,0,49.99
Regeneration and Local Services,Direct Services,21242,Catering - County Hall,Supplies and Services,324117,Provisions,06-Apr-17,5937428389,JR HOLLAND FOODSERVICE,5422,Catering costs - provisions,75.02,0,75.02
Regeneration and Local Services,Direct Services,21242,Catering - County Hall,Supplies and Services,324117,Provisions,06-Apr-17,5937428391,JR HOLLAND FOODSERVICE,5422,Catering costs - provisions,13.16,0,13.16
Regeneration and Local Services,Culture & Sport,54812,Gala Theatre - Catering etc,Supplies and Services,324117,Provisions,06-Apr-17,5937428393,JR HOLLAND FOODSERVICE,5422,Catering costs - provisions,71.64,0,71.64
Regeneration and Local Services,Direct Services,21242,Catering - County Hall,Supplies and Services,312011,Newspapers Books and Periodicals,06-Apr-17,5937428401,HOME BARGAINS,5251,Books-school library,17.79,2.97,14.82
Regeneration and Local Services,Economic Development and Housing,30708,VCD - Marketing & Information,Supplies and Services,336005,Advertising,06-Apr-17,5937428443,GOOGLE ADWS9716261465,5968,Advertising other than for staff,"1,000.00",0,1000
Children and Young Peoples Services,Head of Looked After Provision Permanence and Care Leavers,85957,Secure Management,Supplies and Services,324117,Provisions,06-Apr-17,5937428463,TESCO STORES 6329,5411,Catering costs - provisions,102.91,0,102.91
Regeneration and Local Services,Direct Services,10301,C&G - North Grounds Maintenance,Supplies and Services,304403,Equipment and Materials,06-Apr-17,5937428471,BESCOL,5231,Other consumables,27.5,4.58,22.92
Regeneration and Local Services,Direct Services,10301,C&G - North Grounds Maintenance,Supplies and Services,304259,Equipment and Materials,06-Apr-17,5937428475,HARELAW SAWMILL,5211,Equipment-purchase and rental,174.52,29.09,145.43
Regeneration and Local Services,Culture & Sport,11060,Hardwick Park Catering,Supplies and Services,324117,Provisions,06-Apr-17,5937428477,JR HOLLAND FOODSERVICE,5422,Catering costs - provisions,39.48,0,39.48
Regeneration and Local Services,Culture & Sport,11060,Hardwick Park Catering,Supplies and Services,324117,Provisions,06-Apr-17,5937428479,JR HOLLAND FOODSERVICE,5422,Catering costs - provisions,6.94,0,6.94
Resources,Corporate Finance,69810,Health and Safety,Supplies and Services,364320,Grants to Voluntary Organisations,06-Apr-17,5937428491,HILTON,3504,Accommodation assistance,125,0,125
Regeneration and Local Services,Economic Development and Housing,31500,Housing Solutions - Core Team,Supplies and Services,384999,Miscellaneous Expenses,06-Apr-17,5937428501,WARD BROS(PLANT HIRE)L,7394,Other expenses,100,16.67,83.33
Regeneration and Local Services,Direct Services,10367,C&G - South Grounds Maintenance,Supplies and Services,304259,Equipment and Materials,06-Apr-17,5937428505,TUDOR ENVIRONMENTAL,5261,Equipment-purchase and rental,378.97,63.16,315.81
Regeneration and Local Services,Direct Services,10367,C&G - South Grounds Maintenance,Supplies and Services,304259,Equipment and Materials,06-Apr-17,5937428507,TUDOR ENVIRONMENTAL,5261,Equipment-purchase and rental,492.4,82.07,410.33
Regeneration and Local Services,Direct Services,10367,C&G - South Grounds Maintenance,Supplies and Services,304259,Equipment and Materials,06-Apr-17,5937428509,TUDOR ENVIRONMENTAL,5261,Equipment-purchase and rental,367.31,61.22,306.09
Regeneration and Local Services,Culture & Sport,54399,Local Delivery-Libraries,Supplies and Services,312011,Newspapers Books and Periodicals,06-Apr-17,5937428523,Amazon UK Marketplace,5942,Books-school library,5.72,0,5.72
Regeneration and Local Services,Direct Services,10301,C&G - North Grounds Maintenance,Supplies and Services,324117,Provisions,06-Apr-17,5937428529,J VAN VLIET GATESHEAD,5399,Catering costs - provisions,177.6,29.6,148
Regeneration and Local Services,Direct Services,10301,C&G - North Grounds Maintenance,Supplies and Services,304403,Equipment and Materials,06-Apr-17,5937428531,BESCOL,5231,Other consumables,10.38,1.73,8.65
Regeneration and Local Services,Culture & Sport,54235,Bp Auckland Town Hall Cafe,Supplies and Services,324117,Provisions,06-Apr-17,5937428541,JR HOLLAND FOODSERVICE,5422,Catering costs - provisions,6.84,0,6.84
Regeneration and Local Services,Transport and Contracted Services,31701,Care Connect All Localities,Supplies and Services,344033,Telephones,06-Apr-17,5937428543,BT BILL PAYMENT 2,4812,Telephones general-all costs,-8.78,0,-8.78
Regeneration and Local Services,Transport and Contracted Services,31701,Care Connect All Localities,Supplies and Services,344033,Telephones,06-Apr-17,5937428545,BT BILL PAYMENT 2,4812,Telephones general-all costs,-9.51,0,-9.51
Children and Young Peoples Services,Head of Looked After Provision Permanence and Care Leavers,85333,Coxhoe Satelite Home,Supplies and Services,324117,Provisions,06-Apr-17,5937428551,TESCO STORES 2371,5411,Catering costs - provisions,104.11,0,104.11
Children and Young Peoples Services,Head of Looked After Provision Permanence and Care Leavers,85333,Coxhoe Satelite Home,Supplies and Services,328041,Clothing Uniforms and Laundry,06-Apr-17,5937428553,B & M RETAIL,5310,Clothing uniforms and laundry,60.12,0,60.12
Regeneration and Local Services,Direct Services,10301,C&G - North Grounds Maintenance,Supplies and Services,304259,Equipment and Materials,06-Apr-17,5937428555,SCREWFIX,5211,Equipment-purchase and rental,144.99,24.17,120.82
Regeneration and Local Services,Culture & Sport,11086,Positive Futures,Supplies and Services,324117,Provisions,06-Apr-17,5937428573,CO-OP GROUP 010490,5411,Catering costs - provisions,9.92,0,9.92
Regeneration and Local Services,Technical Services,10984,Training and Development,Employees,40149,Recruitment Instruction and Training,06-Apr-17,5937428575,THE INSTITUTION OF,8699,Training-all costs,130.5,0,130.5
Children and Young Peoples Services,Head of Early Help Assessment and Safeguarding,88083,Ferryhill 0 - 5,Supplies and Services,324117,Provisions,06-Apr-17,5937428577,ASDA SUPERSTORE 4987,5411,Catering costs - provisions,30.23,0,30.23
Regeneration and Local Services,Culture & Sport,11191,Wellbeing4Life,Supplies and Services,324117,Provisions,06-Apr-17,5937428585,SAINSBURYS 0776,5411,Catering costs - provisions,71.28,0,71.28
Regeneration and Local Services,Culture & Sport,11191,Wellbeing4Life,Supplies and Services,304259,Equipment and Materials,06-Apr-17,5937428587,WILKO DURHAM 426,5722,Equipment-purchase and rental,17.6,0,17.6
Regeneration and Local Services,Economic Development and Housing,30737,Durham Works Flexible Fund,Supplies and Services,324117,Provisions,06-Apr-17,5937428591,ONE STOP 2969,5411,Catering costs - provisions,59,0,59
Regeneration and Local Services,Economic Development and Housing,30737,Durham Works Flexible Fund,Supplies and Services,304259,Equipment and Materials,06-Apr-17,5937428595,SCREWFIX DIRECT,5211,Equipment-purchase and rental,47.99,8,39.99
Regeneration and Local Services,Economic Development and Housing,30737,Durham Works Flexible Fund,Supplies and Services,304259,Equipment and Materials,06-Apr-17,5937428597,SCREWFIX DIRECT,5211,Equipment-purchase and rental,-42.99,0,-42.99
Regeneration and Local Services,Economic Development and Housing,30676,Business Development - Durham City Promotions,Supplies and Services,332047,Printing Stationery and Gen Off Exps,06-Apr-17,5937428609,BUYITDIRECT CO UK,5734,Stationery,"2,027.94",0,2027.94
Resources,I.C.T. Services,65303,Design & Print - Design,Supplies and Services,384956,Miscellaneous Expenses,06-Apr-17,5937428611,APPY PIE,5734,Licences,48,0,48
Children and Young Peoples Services,Head of Early Help Assessment and Safeguarding,71404,Laurel Avenue Childrens Centre,Supplies and Services,312011,Newspapers Books and Periodicals,06-Apr-17,5937428613,Amazon UK Marketplace,5942,Books-school library,24.4,0,24.4
Children and Young Peoples Services,Head of Early Help Assessment and Safeguarding,71404,Laurel Avenue Childrens Centre,Supplies and Services,328041,Clothing Uniforms and Laundry,06-Apr-17,5937428615,B & M RETAIL,5310,Clothing uniforms and laundry,3.98,0,3.98
Regeneration and Local Services,Culture & Sport,26591,Hardwick Park,Supplies and Services,384999,Miscellaneous Expenses,06-Apr-17,5937428625,WWW.ANGELWHOLESALE.CO.,5641,Other expenses,99,16.5,82.5
Regeneration and Local Services,Economic Development and Housing,30737,Durham Works Flexible Fund,Supplies and Services,328041,Clothing Uniforms and Laundry,06-Apr-17,5937428639,MATALAN,5691,Clothing uniforms and laundry,53.05,0,53.05
Children and Young Peoples Services,Head of Looked After Provision Permanence and Care Leavers,85957,Secure Management,Supplies and Services,304403,Equipment and Materials,06-Apr-17,5942849411,WWW.MOONPIG.COM LTD,5947,Other consumables,30,0,30
Regeneration and Local Services,Economic Development and Housing,30737,Durham Works Flexible Fund,Supplies and Services,328041,Clothing Uniforms and Laundry,06-Apr-17,5942849867,WWW.ARGOS.CO.UK,5310,Clothing uniforms and laundry,26.93,0,26.93
Regeneration and Local Services,Economic Development and Housing,30737,Durham Works Flexible Fund,Supplies and Services,328041,Clothing Uniforms and Laundry,06-Apr-17,5942849869,WWW.ARGOS.CO.UK,5310,Clothing uniforms and laundry,20.94,0,20.94
Regeneration and Local Services,Direct Services,21242,Catering - County Hall,Supplies and Services,324117,Provisions,06-Apr-17,6036408065,BATLEYS PERTH,5300,Catering costs - provisions,340.92,56.82,284.1
Regeneration and Local Services,Direct Services,21242,Catering - County Hall,Supplies and Services,324117,Provisions,06-Apr-17,000006036408065 - 1,BATLEYS PERTH,5300,Catering costs - provisions,227.99,,227.99
Regeneration and Local Services,Culture & Sport,11060,Hardwick Park Catering,Supplies and Services,324117,Provisions,06-Apr-17,6036408301,BATLEYS PERTH,5300,Catering costs - provisions,394.92,65.82,329.1
Regeneration and Local Services,Culture & Sport,11060,Hardwick Park Catering,Supplies and Services,324117,Provisions,06-Apr-17,000006036408301 - 1,BATLEYS PERTH,5300,Catering costs - provisions,182.3,,182.3
Regeneration and Local Services,Culture & Sport,11060,Hardwick Park Catering,Supplies and Services,324117,Provisions,06-Apr-17,6036408307,BATLEYS PERTH,5300,Catering costs - provisions,11.25,0,11.25
Regeneration and Local Services,Direct Services,21235,Catering - Wharton Park,Supplies and Services,324117,Provisions,06-Apr-17,6036408825,BATLEYS PERTH,5300,Catering costs - provisions,247.38,41.23,206.15
Regeneration and Local Services,Direct Services,21235,Catering - Wharton Park,Supplies and Services,324117,Provisions,06-Apr-17,000006036408825 - 1,BATLEYS PERTH,5300,Catering costs - provisions,8.2,,8.2
Regeneration and Local Services,Direct Services,21235,Catering - Wharton Park,Supplies and Services,324117,Provisions,06-Apr-17,6036408829,BATLEYS PERTH,5300,Catering costs - provisions,22.09,0,22.09
Regeneration and Local Services,Economic Development and Housing,30699,Business Growth and Innovation General,Supplies and Services,336005,Advertising,07-Apr-17,5937428369,ADROLL,7311,Advertising other than for staff,0.69,0,0.69
Regeneration and Local Services,Direct Services,21242,Catering - County Hall,Supplies and Services,324117,Provisions,07-Apr-17,5942849359,MAKRO SELF SERVICE WAS,5300,Catering costs - provisions,176.75,0,176.75
Regeneration and Local Services,Direct Services,21242,Catering - County Hall,Supplies and Services,324117,Provisions,07-Apr-17,5942849363,MAKRO SELF SERVICE WAS,5300,Catering costs - provisions,-34.03,0,-34.03
Children and Young Peoples Services,Head of Education,54640,Durham Learning Resources,Supplies and Services,312011,Newspapers Books and Periodicals,07-Apr-17,5942849365,"Amazon Svcs Europe,SAR",5942,Books-school library,14.45,0,14.45
Children and Young Peoples Services,Head of Education,54640,Durham Learning Resources,Supplies and Services,312011,Newspapers Books and Periodicals,07-Apr-17,5942849367,Amazon UK Marketplace,5942,Books-school library,6.65,0,6.65
Resources,I.C.T. Services,65461,Business Support,Supplies and Services,342033,Computers and Communications,07-Apr-17,5942849377,Amazon UK Marketplace,5942,Computer hardware,5.88,0,5.88
Regeneration and Local Services,Economic Development and Housing,31576,B& B - Temp Accom,Supplies and Services,364320,Grants to Voluntary Organisations,07-Apr-17,5942849379,DAYS INN,7011,Accommodation assistance,49,0,49
Regeneration and Local Services,Economic Development and Housing,31576,B& B - Temp Accom,Supplies and Services,364320,Grants to Voluntary Organisations,07-Apr-17,5942849383,DAYS INN,7011,Accommodation assistance,98,16.33,81.67
Regeneration and Local Services,Economic Development and Housing,31576,B& B - Temp Accom,Supplies and Services,364320,Grants to Voluntary Organisations,07-Apr-17,5942849385,DAYS INN,7011,Accommodation assistance,98,16.33,81.67
Regeneration and Local Services,Economic Development and Housing,31500,Housing Solutions - Core Team,Supplies and Services,364320,Grants to Voluntary Organisations,07-Apr-17,5942849393,PREMIER INN,3811,Accommodation assistance,175,0,175
Children and Young Peoples Services,Head of Looked After Provision Permanence and Care Leavers,85957,Secure Management,Supplies and Services,304259,Equipment and Materials,07-Apr-17,5942849415,SCREWFIX DIRECT,5211,Equipment-purchase and rental,27.99,4.67,23.32
Children and Young Peoples Services,Head of Early Help Assessment and Safeguarding,71440,Barnard Castle One Point Hub,Supplies and Services,328041,Clothing Uniforms and Laundry,07-Apr-17,5942849453,WWW.ARGOS.CO.UK,5310,Clothing uniforms and laundry,346.77,0,346.77
Regeneration and Local Services,Economic Development and Housing,30737,Durham Works Flexible Fund,Transport,230031,Contract Hire,07-Apr-17,5942849457,WWW.SIMPLYGO.COM,4131,Pupils-transport to play fields etc,7.8,0,7.8
Regeneration and Local Services,Economic Development and Housing,30737,Durham Works Flexible Fund,Transport,230031,Contract Hire,07-Apr-17,5942849459,WWW.SIMPLYGO.COM,4131,Pupils-transport to play fields etc,68,0,68
Regeneration and Local Services,Direct Services,21242,Catering - County Hall,Supplies and Services,324117,Provisions,07-Apr-17,5942849461,JR HOLLAND FOODSERVICE,5422,Catering costs - provisions,58.78,0,58.78
Regeneration and Local Services,Direct Services,21242,Catering - County Hall,Supplies and Services,324117,Provisions,07-Apr-17,5942849465,JR HOLLAND FOODSERVICE,5422,Catering costs - provisions,13.16,0,13.16
Resources,I.C.T. Services,70704,ICT School Services - DLG,Supplies and Services,372009,Subscriptions,07-Apr-17,5942849479,WEB NETWORKSOLUTIONS,5968,Subscriptions,9.68,0,9.68
Children and Young Peoples Services,Head of Looked After Provision Permanence and Care Leavers,85361,LAC & Permanence Team 1,Supplies and Services,304999,Equipment and Materials,07-Apr-17,5942849513,KARTING NORTH EAST,7933,Misc equipment tools and materials,35.1,0,35.1
Children and Young Peoples Services,Head of Looked After Provision Permanence and Care Leavers,85361,LAC & Permanence Team 1,Supplies and Services,304259,Equipment and Materials,07-Apr-17,5942849515,GRO HM PASSPORT OFFICE,9399,Equipment-purchase and rental,9.25,0,9.25
Children and Young Peoples Services,Head of Looked After Provision Permanence and Care Leavers,85361,LAC & Permanence Team 1,Supplies and Services,304403,Equipment and Materials,07-Apr-17,5942849519,EUREKA MUSEUM,5734,Other consumables,70,0,70
Children and Young Peoples Services,Head of Early Help Assessment and Safeguarding,88082,Ferryhill Youth Work,Supplies and Services,384871,Miscellaneous Expenses,07-Apr-17,5942849525,FLAMINGLAND,7033,Training-other activities,595,99.17,495.83
Regeneration and Local Services,Economic Development and Housing,30749,Employability - Youth Contract,Supplies and Services,304259,Equipment and Materials,07-Apr-17,5942849561,SCREWFIX,5211,Equipment-purchase and rental,103.96,17.33,86.63
Regeneration and Local Services,Economic Development and Housing,30737,Durham Works Flexible Fund,Transport,230031,Contract Hire,07-Apr-17,5942849603,WWW.SIMPLYGO.COM,4131,Pupils-transport to play fields etc,89,0,89
Regeneration and Local Services,Economic Development and Housing,30737,Durham Works Flexible Fund,Supplies and Services,328041,Clothing Uniforms and Laundry,07-Apr-17,5942849605,ASDA STORES,5411,Clothing uniforms and laundry,27.55,0,27.55
Children and Young Peoples Services,Head of Looked After Provision Permanence and Care Leavers,85957,Secure Management,Supplies and Services,324117,Provisions,07-Apr-17,5942849609,TESCO STORES 6329,5411,Catering costs - provisions,91.89,0,91.89
Regeneration and Local Services,Culture & Sport,10919,Countryside Management - Site Management,Supplies and Services,304259,Equipment and Materials,07-Apr-17,5942849619,SCREWFIX,5211,Equipment-purchase and rental,14.78,2.46,12.32
Regeneration and Local Services,Culture & Sport,11060,Hardwick Park Catering,Supplies and Services,324117,Provisions,07-Apr-17,5942849629,JR HOLLAND FOODSERVICE,5422,Catering costs - provisions,24.58,0,24.58
Resources,I.C.T. Services,65335,Implementation,Supplies and Services,304639,Equipment and Materials,07-Apr-17,5942849649,AMZ replacebase,4816,Technicians-supplies,149.15,0,149.15
Regeneration and Local Services,Direct Services,21234,Catering - Locomotion,Supplies and Services,324117,Provisions,07-Apr-17,5942849655,JR HOLLAND FOODSERVICE,5422,Catering costs - provisions,38.12,0,38.12
Regeneration and Local Services,Economic Development and Housing,31576,B& B - Temp Accom,Supplies and Services,364320,Grants to Voluntary Organisations,07-Apr-17,5942849659,PREMIER INN,3811,Accommodation assistance,349,58.17,290.83
Regeneration and Local Services,Direct Services,10525,Catering - Green Lane,Supplies and Services,324117,Provisions,07-Apr-17,5942849667,JR HOLLAND FOODSERVICE,5422,Catering costs - provisions,49.86,0,49.86
Regeneration and Local Services,Direct Services,10367,C&G - South Grounds Maintenance,Supplies and Services,304999,Equipment and Materials,07-Apr-17,5942849697,NEW ROW FARM NURSERIES,5193,Misc equipment tools and materials,437.12,72.85,364.27
Regeneration and Local Services,Direct Services,10367,C&G - South Grounds Maintenance,Supplies and Services,304999,Equipment and Materials,07-Apr-17,5942849701,NEW ROW FARM NURSERIES,5193,Misc equipment tools and materials,177.12,29.52,147.6
Regeneration and Local Services,Economic Development and Housing,30749,Employability - Youth Contract,Supplies and Services,332048,Printing Stationery and Gen Off Exps,07-Apr-17,5942849703,GATESHEAD COUNCIL MOTO,9399,Administrative stationery etc,18,0,18
Regeneration and Local Services,Culture & Sport,54399,Local Delivery-Libraries,Supplies and Services,312011,Newspapers Books and Periodicals,07-Apr-17,5942849733,Amazon UK Marketplace,5942,Books-school library,14.86,0,14.86
Regeneration and Local Services,Transport and Contracted Services,31701,Care Connect All Localities,Supplies and Services,344033,Telephones,07-Apr-17,5942849787,BT BILL PAYMENT 2,4812,Telephones general-all costs,-4.68,0,-4.68
Regeneration and Local Services,Transport and Contracted Services,31701,Care Connect All Localities,Supplies and Services,344033,Telephones,07-Apr-17,5942849791,BT BILL PAYMENT 2,4812,Telephones general-all costs,-11.81,0,-11.81
Regeneration and Local Services,Direct Services,21324,Catering - Meadowfield,Supplies and Services,324117,Provisions,07-Apr-17,5942849797,JR HOLLAND FOODSERVICE,5422,Catering costs - provisions,84.05,0,84.05
Regeneration and Local Services,Direct Services,21324,Catering - Meadowfield,Supplies and Services,324117,Provisions,07-Apr-17,5942849801,JR HOLLAND FOODSERVICE,5422,Catering costs - provisions,9.87,0,9.87
Children and Young Peoples Services,Head of Looked After Provision Permanence and Care Leavers,85333,Coxhoe Satelite Home,Supplies and Services,328041,Clothing Uniforms and Laundry,07-Apr-17,5942849807,POUNDWORLD RETAIL,5310,Clothing uniforms and laundry,25.1,0,25.1
Regeneration and Local Services,Direct Services,10301,C&G - North Grounds Maintenance,Supplies and Services,304999,Equipment and Materials,07-Apr-17,5942849811,GUSTHARTS CHAINSAW CTR,7699,Misc equipment tools and materials,296.46,49.41,247.05
Children and Young Peoples Services,Head of Looked After Provision Permanence and Care Leavers,85331,New Lea Childrens Home,Transport,235057,Public Transport,07-Apr-17,5942849855,WWW.SIMPLYGO.COM,4131,Staff travelling,15.5,0,15.5
Children and Young Peoples Services,Head of Looked After Provision Permanence and Care Leavers,85331,New Lea Childrens Home,Supplies and Services,304259,Equipment and Materials,07-Apr-17,5942849859,WILKO.COM,5722,Equipment-purchase and rental,29.5,0,29.5
Regeneration and Local Services,Economic Development and Housing,30737,Durham Works Flexible Fund,Supplies and Services,328041,Clothing Uniforms and Laundry,07-Apr-17,5942849865,INDUSTRIAL WORKWEAR LI,5137,Clothing uniforms and laundry,105.55,17.59,87.96
Children and Young Peoples Services,Head of Early Help Assessment and Safeguarding,71404,Laurel Avenue Childrens Centre,Supplies and Services,312011,Newspapers Books and Periodicals,07-Apr-17,5942849873,Amazon UK Marketplace,5942,Books-school library,26.8,0,26.8
Children and Young Peoples Services,Head of Early Help Assessment and Safeguarding,71404,Laurel Avenue Childrens Centre,Supplies and Services,324117,Provisions,07-Apr-17,5942849877,ALDI,5411,Catering costs - provisions,17.49,0,17.49
Children and Young Peoples Services,Head of Early Help Assessment and Safeguarding,71404,Laurel Avenue Childrens Centre,Supplies and Services,312011,Newspapers Books and Periodicals,07-Apr-17,5942849879,HOME BARGAINS,5251,Books-school library,6.22,0,6.22
Regeneration and Local Services,Direct Services,21235,Catering - Wharton Park,Supplies and Services,324117,Provisions,07-Apr-17,5942849885,JR HOLLAND FOODSERVICE,5422,Catering costs - provisions,42.14,0,42.14
Regeneration and Local Services,Transport and Contracted Services,31701,Care Connect All Localities,Supplies and Services,312011,Newspapers Books and Periodicals,07-Apr-17,5942849889,Amazon UK Marketplace,5942,Books-school library,3.98,0,3.98
Children and Young Peoples Services,Head of Early Help Assessment and Safeguarding,71693,Brandon Childrens Centre,Supplies and Services,324117,Provisions,07-Apr-17,5942849921,SAINSBURYS 0776,5411,Catering costs - provisions,58.45,0,58.45
Children and Young Peoples Services,Head of Early Help Assessment and Safeguarding,71693,Brandon Childrens Centre,Supplies and Services,304259,Equipment and Materials,07-Apr-17,5942849923,WILKO DURHAM 426,5722,Equipment-purchase and rental,20.7,0,20.7
Regeneration and Local Services,Direct Services,21242,Catering - County Hall,Supplies and Services,324117,Provisions,07-Apr-17,6036408067,BATLEYS PERTH,5300,Catering costs - provisions,169.2,28.2,141
Regeneration and Local Services,Direct Services,21242,Catering - County Hall,Supplies and Services,324117,Provisions,07-Apr-17,000006036408067 - 1,BATLEYS PERTH,5300,Catering costs - provisions,215.53,,215.53
Regeneration and Local Services,Direct Services,21242,Catering - County Hall,Supplies and Services,324117,Provisions,07-Apr-17,6036408073,BATLEYS PERTH,5300,Catering costs - provisions,29.56,0,29.56
Regeneration and Local Services,Direct Services,21242,Catering - County Hall,Supplies and Services,324117,Provisions,07-Apr-17,6036408077,BATLEYS PERTH,5300,Catering costs - provisions,147.12,24.52,122.6
Children and Young Peoples Services,Head of Looked After Provision Permanence and Care Leavers,85361,LAC & Permanence Team 1,Supplies and Services,304259,Equipment and Materials,07-Apr-17,6036408173,GRO HM PASSPORT OFFICE,9399,Equipment-purchase and rental,-9.25,0,-9.25
Regeneration and Local Services,Culture & Sport,11060,Hardwick Park Catering,Supplies and Services,324117,Provisions,07-Apr-17,6036408309,BATLEYS PERTH,5300,Catering costs - provisions,178.8,29.8,149
Regeneration and Local Services,Culture & Sport,11060,Hardwick Park Catering,Supplies and Services,324117,Provisions,07-Apr-17,000006036408309 - 1,BATLEYS PERTH,5300,Catering costs - provisions,207.36,,207.36
Regeneration and Local Services,Culture & Sport,11060,Hardwick Park Catering,Supplies and Services,324117,Provisions,07-Apr-17,6036408315,BATLEYS PERTH,5300,Catering costs - provisions,17.65,0,17.65
Regeneration and Local Services,Direct Services,21234,Catering - Locomotion,Supplies and Services,324117,Provisions,07-Apr-17,6036408433,BATLEYS PERTH,5300,Catering costs - provisions,187.56,31.26,156.3
Regeneration and Local Services,Direct Services,21234,Catering - Locomotion,Supplies and Services,324117,Provisions,07-Apr-17,000006036408433 - 1,BATLEYS PERTH,5300,Catering costs - provisions,35.19,,35.19
Regeneration and Local Services,Direct Services,21234,Catering - Locomotion,Supplies and Services,324117,Provisions,07-Apr-17,6036408435,BATLEYS PERTH,5300,Catering costs - provisions,5.52,0,5.52
Regeneration and Local Services,Direct Services,10525,Catering - Green Lane,Supplies and Services,324117,Provisions,07-Apr-17,6036408481,BATLEYS PERTH,5300,Catering costs - provisions,47.58,7.93,39.65
Regeneration and Local Services,Direct Services,10525,Catering - Green Lane,Supplies and Services,324117,Provisions,07-Apr-17,000006036408481 - 1,BATLEYS PERTH,5300,Catering costs - provisions,56.73,,56.73
Children and Young Peoples Services,Head of Education,54640,Durham Learning Resources,Supplies and Services,304403,Equipment and Materials,08-Apr-17,5942849371,AMAZON UK RETAIL AMAZO,5999,Other consumables,10.66,0,10.66
Regeneration and Local Services,Culture & Sport,54233,Bp Auckland Town Hall Library,Supplies and Services,312011,Newspapers Books and Periodicals,08-Apr-17,5942849471,Amazon UK Marketplace,5942,Books-school library,61.69,0,61.69
Children and Young Peoples Services,Head of Early Help Assessment and Safeguarding,71441,Bishop Auckland One Point Hub,Supplies and Services,324117,Provisions,08-Apr-17,5942849553,TESCO STORES 2916,5411,Catering costs - provisions,17,0,17
Children and Young Peoples Services,Head of Looked After Provision Permanence and Care Leavers,85957,Secure Management,Supplies and Services,324117,Provisions,08-Apr-17,5942849613,TESCO STORES 6329,5411,Catering costs - provisions,89.13,0,89.13
Regeneration and Local Services,Culture & Sport,54399,Local Delivery-Libraries,Supplies and Services,312011,Newspapers Books and Periodicals,08-Apr-17,5942849737,AMAZON UK RETAIL AMAZO,5999,Books-school library,9.99,0,9.99
Children and Young Peoples Services,Head of Looked After Provision Permanence and Care Leavers,85331,New Lea Childrens Home,Supplies and Services,332047,Printing Stationery and Gen Off Exps,08-Apr-17,5942849863,WWW.STAPLES.CO.UK,5943,Stationery,5.56,0,5.56
Children and Young Peoples Services,Head of Looked After Provision Permanence and Care Leavers,85342,9 Cedar Drive Aycliffe,Supplies and Services,304259,Equipment and Materials,09-Apr-17,5942849417,WILKO RETAIL LIMIT,5722,Equipment-purchase and rental,2,0,2
Children and Young Peoples Services,Head of Looked After Provision Permanence and Care Leavers,85342,9 Cedar Drive Aycliffe,Supplies and Services,348037,Subsistence,09-Apr-17,5942849419,GREGGS,5812,Subsistence,3.55,0,3.55
Children and Young Peoples Services,Head of Looked After Provision Permanence and Care Leavers,85333,Coxhoe Satelite Home,Supplies and Services,304259,Equipment and Materials,09-Apr-17,5942849531,PAYPAL INFINITEAIR,5941,Equipment-purchase and rental,35.85,0,35.85
Children and Young Peoples Services,Head of Early Help Assessment and Safeguarding,88063,Bishop Auckland 0 - 5,Supplies and Services,304259,Equipment and Materials,09-Apr-17,5942849555,WILKO RETAIL LIMIT,5722,Equipment-purchase and rental,25.48,0,25.48
Resources,Resources Management,69000,Resources Management,Supplies and Services,324117,Provisions,09-Apr-17,5942849713,CO-OP GROUP 010830,5411,Catering costs - provisions,4,0,4
Children and Young Peoples Services,Head of Looked After Provision Permanence and Care Leavers,85351,Framwellgate Moor CU,Supplies and Services,338099,Services,09-Apr-17,5949936845,HAVEN HOLIDAYS,7033,Other services,421,0,421
Resources,I.C.T. Services,70704,ICT School Services - DLG,Supplies and Services,372009,Subscriptions,10-Apr-17,5942849481,WEB NETWORKSOLUTIONS,5968,Subscriptions,0.27,0,0.27
Children and Young Peoples Services,Head of Education,71801,Selby Cottage Childcare Centre,Supplies and Services,324117,Provisions,10-Apr-17,5949936767,ASDA HOME SHOPPING,5411,Catering costs - provisions,37.93,0,37.93
Children and Young Peoples Services,Head of Looked After Provision Permanence and Care Leavers,85957,Secure Management,Supplies and Services,304259,Equipment and Materials,10-Apr-17,5949936791,SCREWFIX DIRECT,5211,Equipment-purchase and rental,10.38,0,10.38
Regeneration and Local Services,Direct Services,21242,Catering - County Hall,Supplies and Services,324117,Provisions,10-Apr-17,5949936817,FREEMAN CATERING BUTCH,5422,Catering costs - provisions,133.79,0,133.79
Regeneration and Local Services,Direct Services,21242,Catering - County Hall,Supplies and Services,324117,Provisions,10-Apr-17,5949936821,FREEMAN CATERING BUTCH,5422,Catering costs - provisions,27.18,0,27.18
Regeneration and Local Services,Direct Services,21242,Catering - County Hall,Supplies and Services,324117,Provisions,10-Apr-17,5949936825,FREEMAN CATERING BUTCH,5422,Catering costs - provisions,12.87,0,12.87
Regeneration and Local Services,Direct Services,21242,Catering - County Hall,Supplies and Services,324117,Provisions,10-Apr-17,5949936827,JR HOLLAND FOODSERVICE,5422,Catering costs - provisions,89.17,0,89.17
Regeneration and Local Services,Direct Services,21242,Catering - County Hall,Supplies and Services,324117,Provisions,10-Apr-17,5949936831,JR HOLLAND FOODSERVICE,5422,Catering costs - provisions,13.52,0,13.52
Resources,I.C.T. Services,70704,ICT School Services - DLG,Supplies and Services,372009,Subscriptions,10-Apr-17,5949936833,NOMINET UK,7379,Subscriptions,9,1.5,7.5
Resources,I.C.T. Services,65464,Domains,Supplies and Services,372009,Subscriptions,10-Apr-17,5949936837,NOMINET UK,7379,Subscriptions,94.5,15.75,78.75
Children and Young Peoples Services,Head of Early Help Assessment and Safeguarding,88094,Newton Aycliffe 5 - 19,Supplies and Services,384871,Miscellaneous Expenses,10-Apr-17,5949936853,Amazon UK Marketplace,5942,Training-other activities,53.98,0,53.98
Children and Young Peoples Services,Head of Early Help Assessment and Safeguarding,88094,Newton Aycliffe 5 - 19,Supplies and Services,384871,Miscellaneous Expenses,10-Apr-17,5949936855,Amazon UK Marketplace,5942,Training-other activities,48.58,0,48.58
Regeneration and Local Services,Economic Development and Housing,31576,B& B - Temp Accom,Supplies and Services,352001,Conference Expenses,10-Apr-17,5949936857,DAYS INN,7011,Conferencesseminars fees etc,80,0,80
Regeneration and Local Services,Economic Development and Housing,31576,B& B - Temp Accom,Supplies and Services,352001,Conference Expenses,10-Apr-17,5949936861,DAYS INN,7011,Conferencesseminars fees etc,200,0,200
Regeneration and Local Services,Direct Services,10864,Fleet - Hackworth Road Fleet,Transport,215013,Running Costs of Vehicles,10-Apr-17,5949936867,DVLA VEHICLE TAX,9399,Vehicle Excise Duty (VED),167.5,0,167.5
Regeneration and Local Services,Direct Services,10561,Fleet - Morrison Busty Fleet,Transport,215013,Running Costs of Vehicles,10-Apr-17,5949936871,DVLA VEHICLE TAX,9399,Vehicle Excise Duty (VED),167.5,0,167.5
Regeneration and Local Services,Direct Services,10864,Fleet - Hackworth Road Fleet,Transport,215013,Running Costs of Vehicles,10-Apr-17,5949936873,DVLA VEHICLE TAX,9399,Vehicle Excise Duty (VED),167.5,0,167.5
Regeneration and Local Services,Direct Services,10900,Fleet - Meadowfield Fleet,Transport,215013,Running Costs of Vehicles,10-Apr-17,5949936875,DVLA VEHICLE TAX,9399,Vehicle Excise Duty (VED),167.5,0,167.5
Regeneration and Local Services,Direct Services,10551,Fleet - Chilton Fleet,Transport,215013,Running Costs of Vehicles,10-Apr-17,5949936877,DVLA VEHICLE TAX,9399,Vehicle Excise Duty (VED),167.5,0,167.5
Regeneration and Local Services,Direct Services,10561,Fleet - Morrison Busty Fleet,Transport,215013,Running Costs of Vehicles,10-Apr-17,5949936881,DVLA VEHICLE TAX,9399,Vehicle Excise Duty (VED),212.5,0,212.5
Regeneration and Local Services,Direct Services,10551,Fleet - Chilton Fleet,Transport,215013,Running Costs of Vehicles,10-Apr-17,5949936883,DVLA VEHICLE TAX,9399,Vehicle Excise Duty (VED),167.5,0,167.5
Regeneration and Local Services,Direct Services,10900,Fleet - Meadowfield Fleet,Transport,215013,Running Costs of Vehicles,10-Apr-17,5949936885,DVLA VEHICLE TAX,9399,Vehicle Excise Duty (VED),242.5,0,242.5
Regeneration and Local Services,Direct Services,10900,Fleet - Meadowfield Fleet,Transport,215013,Running Costs of Vehicles,10-Apr-17,5949936887,DVLA VEHICLE TAX,9399,Vehicle Excise Duty (VED),167.5,0,167.5
Regeneration and Local Services,Direct Services,10864,Fleet - Hackworth Road Fleet,Transport,215013,Running Costs of Vehicles,10-Apr-17,5949936889,DVLA VEHICLE TAX,9399,Vehicle Excise Duty (VED),167.5,0,167.5
Regeneration and Local Services,Direct Services,10900,Fleet - Meadowfield Fleet,Transport,215013,Running Costs of Vehicles,10-Apr-17,5949936893,DVLA VEHICLE TAX,9399,Vehicle Excise Duty (VED),167.5,0,167.5
Regeneration and Local Services,Direct Services,10900,Fleet - Meadowfield Fleet,Transport,215013,Running Costs of Vehicles,10-Apr-17,5949936895,DVLA VEHICLE TAX,9399,Vehicle Excise Duty (VED),167.5,0,167.5
Regeneration and Local Services,Direct Services,10900,Fleet - Meadowfield Fleet,Transport,215013,Running Costs of Vehicles,10-Apr-17,5949936897,DVLA VEHICLE TAX,9399,Vehicle Excise Duty (VED),242.5,0,242.5
Regeneration and Local Services,Direct Services,10367,C&G - South Grounds Maintenance,Supplies and Services,304259,Equipment and Materials,10-Apr-17,5949936899,MKM PETERLEE,5211,Equipment-purchase and rental,17.28,2.88,14.4
Children and Young Peoples Services,Head of Early Help Assessment and Safeguarding,88063,Bishop Auckland 0 - 5,Supplies and Services,324117,Provisions,10-Apr-17,5949936903,ASDA HOME SHOPPING,5411,Catering costs - provisions,7.08,1.18,5.9
Children and Young Peoples Services,Head of Early Help Assessment and Safeguarding,88063,Bishop Auckland 0 - 5,Supplies and Services,324117,Provisions,10-Apr-17,000005949936903 - 1,ASDA HOME SHOPPING,5411,Catering costs - provisions,53.8,,53.8
Regeneration and Local Services,Economic Development and Housing,30749,Employability - Youth Contract,Transport,235057,Public Transport,10-Apr-17,5949936905,WWW.SIMPLYGO.COM,4131,Staff travelling,24.9,0,24.9
Children and Young Peoples Services,Head of Early Help Assessment and Safeguarding,71641,Horden Childrens Centre,Supplies and Services,328041,Clothing Uniforms and Laundry,10-Apr-17,5949936907,ARGOS RETAIL GROUP,5310,Clothing uniforms and laundry,29.99,0,29.99
Children and Young Peoples Services,Head of Looked After Provision Permanence and Care Leavers,85332,Middlestone Moor CU,Supplies and Services,324117,Provisions,10-Apr-17,5949936919,TESCO STORES 2371,5411,Catering costs - provisions,115.56,0,115.56
Regeneration and Local Services,Economic Development and Housing,30737,Durham Works Flexible Fund,Transport,230031,Contract Hire,10-Apr-17,5949936921,WWW.SIMPLYGO.COM,4131,Pupils-transport to play fields etc,6.4,0,6.4
Children and Young Peoples Services,Head of Looked After Provision Permanence and Care Leavers,85956,Lumley,Supplies and Services,384999,Miscellaneous Expenses,10-Apr-17,5949936925,Amazon UK Marketplace,5942,Other expenses,39.95,0,39.95
Regeneration and Local Services,Direct Services,10367,C&G - South Grounds Maintenance,Supplies and Services,304259,Equipment and Materials,10-Apr-17,5949936933,MKM PETERLEE,5211,Equipment-purchase and rental,27.4,4.57,22.83
Regeneration and Local Services,Direct Services,10301,C&G - North Grounds Maintenance,Third Party Payments,430100,Rendered by Private Contractors,10-Apr-17,5949936939,JOHN WARREN (ANIMAL BY,7399,Payments to sub-contractors,9.6,0,9.6
Regeneration and Local Services,Spatial Policy Planning Assets & Environment,31222,North Pennines Allen Valleys Landscape Partnership,Supplies and Services,324117,Provisions,10-Apr-17,5949936941,ALLENDALE CO-OPERATIVE,5499,Catering costs - provisions,6.59,0,6.59
Regeneration and Local Services,Culture & Sport,11060,Hardwick Park Catering,Supplies and Services,324117,Provisions,10-Apr-17,5949936943,FREEMAN CATERING BUTCH,5422,Catering costs - provisions,37.53,0,37.53
Regeneration and Local Services,Culture & Sport,11060,Hardwick Park Catering,Supplies and Services,324117,Provisions,10-Apr-17,5949936947,FREEMAN CATERING BUTCH,5422,Catering costs - provisions,30.55,0,30.55
Regeneration and Local Services,Culture & Sport,11060,Hardwick Park Catering,Supplies and Services,324117,Provisions,10-Apr-17,5949936951,FREEMAN CATERING BUTCH,5422,Catering costs - provisions,11.59,0,11.59
Regeneration and Local Services,Culture & Sport,11060,Hardwick Park Catering,Supplies and Services,324117,Provisions,10-Apr-17,5949936953,JR HOLLAND FOODSERVICE,5422,Catering costs - provisions,42.88,0,42.88
Children and Young Peoples Services,Head of Looked After Provision Permanence and Care Leavers,85551,Short Break Services-Park Hse Sher,Supplies and Services,332047,Printing Stationery and Gen Off Exps,10-Apr-17,5949936955,RYMAN,5943,Stationery,3.99,0,3.99
Regeneration and Local Services,Direct Services,10525,Catering - Green Lane,Supplies and Services,324117,Provisions,10-Apr-17,5949936959,FREEMAN CATERING BUTCH,5422,Catering costs - provisions,16.68,0,16.68
Children and Young Peoples Services,Head of Looked After Provision Permanence and Care Leavers,85333,Coxhoe Satelite Home,Supplies and Services,324117,Provisions,10-Apr-17,5949936979,ASDA SUPERSTORE 4987,5411,Catering costs - provisions,157.15,0,157.15
Regeneration and Local Services,Culture & Sport,54235,Bp Auckland Town Hall Cafe,Supplies and Services,324117,Provisions,10-Apr-17,5949937007,JR HOLLAND FOODSERVICE,5422,Catering costs - provisions,15.89,0,15.89
Regeneration and Local Services,Direct Services,21324,Catering - Meadowfield,Supplies and Services,324117,Provisions,10-Apr-17,5949937009,FREEMAN CATERING BUTCH,5422,Catering costs - provisions,67.56,0,67.56
Regeneration and Local Services,Direct Services,21324,Catering - Meadowfield,Supplies and Services,324117,Provisions,10-Apr-17,5949937013,FREEMAN CATERING BUTCH,5422,Catering costs - provisions,45.33,0,45.33
Regeneration and Local Services,Culture & Sport,11086,Positive Futures,Supplies and Services,324117,Provisions,10-Apr-17,5949937039,CO-OP GROUP 010508,5411,Catering costs - provisions,15.99,0,15.99
Children and Young Peoples Services,Head of Looked After Provision Permanence and Care Leavers,85331,New Lea Childrens Home,Supplies and Services,312011,Newspapers Books and Periodicals,10-Apr-17,5949937055,Amazon UK Marketplace,5942,Books-school library,7.99,0,7.99
Regeneration and Local Services,Spatial Policy Planning Assets & Environment,31090,Horden Dene,Supplies and Services,352001,Conference Expenses,10-Apr-17,5949937067,EB TYNE AMPWEAR HERIT,7399,Conferencesseminars fees etc,20,0,20
Resources,I.C.T. Services,65487,ICT Telephony Recharges,Supplies and Services,344033,Telephones,10-Apr-17,5949937069,AMZ i-Tronixs,5999,Telephones general-all costs,-119.7,0,-119.7
Regeneration and Local Services,Direct Services,21235,Catering - Wharton Park,Supplies and Services,324117,Provisions,10-Apr-17,5949937077,JR HOLLAND FOODSERVICE,5422,Catering costs - provisions,15.38,0,15.38
Regeneration and Local Services,Culture & Sport,10605,Woodhouse Close Leisure Complex,Supplies and Services,324117,Provisions,10-Apr-17,5949937083,JR HOLLAND FOODSERVICE,5422,Catering costs - provisions,41.12,0,41.12
Regeneration and Local Services,Culture & Sport,11230,Operations Locality 2,Supplies and Services,312011,Newspapers Books and Periodicals,10-Apr-17,5949937099,CHARLES DICKENS (SPENN,5251,Books-school library,10.95,0,10.95
Regeneration and Local Services,Culture & Sport,11230,Operations Locality 2,Supplies and Services,324117,Provisions,10-Apr-17,5949937101,ASDA SUPERSTORE 4987,5411,Catering costs - provisions,64.84,0,64.84
Regeneration and Local Services,Spatial Policy Planning Assets & Environment,31200,North Pennines Core,Supplies and Services,340001,Postages,10-Apr-17,5949937103,THE POST OFFICE,9402,Postages,16.54,0,16.54
Children and Young Peoples Services,Head of Looked After Provision Permanence and Care Leavers,85957,Secure Management,Supplies and Services,304999,Equipment and Materials,10-Apr-17,5953132393,MAGSUBCRIPTIONS COM,5968,Misc equipment tools and materials,163,0,163
Regeneration and Local Services,Direct Services,21242,Catering - County Hall,Supplies and Services,324117,Provisions,10-Apr-17,5953132451,WWW.ADELIEFOODS.CO.UK,5499,Catering costs - provisions,159.66,0,159.66
Regeneration and Local Services,Direct Services,21242,Catering - County Hall,Supplies and Services,324117,Provisions,10-Apr-17,5953132455,WWW.ADELIEFOODS.CO.UK,5499,Catering costs - provisions,157.25,0,157.25
Regeneration and Local Services,Direct Services,21242,Catering - County Hall,Supplies and Services,324117,Provisions,10-Apr-17,5953132457,WWW.ADELIEFOODS.CO.UK,5499,Catering costs - provisions,141.23,0,141.23
Regeneration and Local Services,Direct Services,21242,Catering - County Hall,Supplies and Services,324117,Provisions,10-Apr-17,5953132459,WWW.ADELIEFOODS.CO.UK,5499,Catering costs - provisions,93.37,0,93.37
Regeneration and Local Services,Direct Services,21234,Catering - Locomotion,Supplies and Services,324117,Provisions,10-Apr-17,5953132681,WWW.ADELIEFOODS.CO.UK,5499,Catering costs - provisions,92.09,0,92.09
Regeneration and Local Services,Direct Services,21234,Catering - Locomotion,Supplies and Services,324117,Provisions,10-Apr-17,5953132685,WWW.ADELIEFOODS.CO.UK,5499,Catering costs - provisions,39.12,0,39.12
Regeneration and Local Services,Direct Services,21234,Catering - Locomotion,Supplies and Services,324117,Provisions,10-Apr-17,5953132689,WWW.ADELIEFOODS.CO.UK,5499,Catering costs - provisions,39.12,0,39.12
Regeneration and Local Services,Direct Services,21234,Catering - Locomotion,Supplies and Services,324117,Provisions,10-Apr-17,5953132693,WWW.ADELIEFOODS.CO.UK,5499,Catering costs - provisions,29.57,0,29.57
Regeneration and Local Services,Direct Services,10525,Catering - Green Lane,Supplies and Services,324117,Provisions,10-Apr-17,5953132705,WWW.ADELIEFOODS.CO.UK,5499,Catering costs - provisions,42.14,0,42.14
Regeneration and Local Services,Direct Services,10525,Catering - Green Lane,Supplies and Services,324117,Provisions,10-Apr-17,5953132709,WWW.ADELIEFOODS.CO.UK,5499,Catering costs - provisions,38.46,0,38.46
Regeneration and Local Services,Direct Services,10525,Catering - Green Lane,Supplies and Services,324117,Provisions,10-Apr-17,5953132711,WWW.ADELIEFOODS.CO.UK,5499,Catering costs - provisions,-5.21,0,-5.21
Regeneration and Local Services,Direct Services,21324,Catering - Meadowfield,Supplies and Services,324117,Provisions,10-Apr-17,5953132805,WWW.ADELIEFOODS.CO.UK,5499,Catering costs - provisions,44.65,0,44.65
Regeneration and Local Services,Direct Services,21324,Catering - Meadowfield,Supplies and Services,324117,Provisions,10-Apr-17,5953132807,WWW.ADELIEFOODS.CO.UK,5499,Catering costs - provisions,35.75,0,35.75
Regeneration and Local Services,Direct Services,10383,C&G - South Street Cleansing,Transport,215995,Running Costs of Vehicles,10-Apr-17,5957148207,SNOWBALLS (RAILWAY,5533,Vehicle running expenses,60,10,50
Regeneration and Local Services,Direct Services,21242,Catering - County Hall,Supplies and Services,324117,Provisions,10-Apr-17,6036408113,BATLEYS PERTH,5300,Catering costs - provisions,-61.8,0,-61.8
Regeneration and Local Services,Culture & Sport,54812,Gala Theatre - Catering etc,Supplies and Services,324117,Provisions,10-Apr-17,6036408133,BATLEYS PERTH,5300,Catering costs - provisions,55.74,9.29,46.45
Regeneration and Local Services,Culture & Sport,54812,Gala Theatre - Catering etc,Supplies and Services,324117,Provisions,10-Apr-17,000006036408133 - 1,BATLEYS PERTH,5300,Catering costs - provisions,136.38,,136.38
Children and Young Peoples Services,Head of Education,71801,Selby Cottage Childcare Centre,Supplies and Services,324117,Provisions,11-Apr-17,5953132349,ALDI,5411,Catering costs - provisions,6.98,0,6.98
Children and Young Peoples Services,Head of Education,71801,Selby Cottage Childcare Centre,Supplies and Services,304259,Equipment and Materials,11-Apr-17,5953132351,WILKO RETAIL LIMIT,5722,Equipment-purchase and rental,38.2,0,38.2
Children and Young Peoples Services,Head of Education,71801,Selby Cottage Childcare Centre,Supplies and Services,324117,Provisions,11-Apr-17,5953132353,TESCO STORES 2278,5411,Catering costs - provisions,25.6,0,25.6
Adult and Health Services,Head of Adults,51603,OP/PD Durham & CLS,Supplies and Services,340001,Postages,11-Apr-17,5953132371,ROYAL MAIL ONLINE SHOP,9402,Postages,56,0,56
Children and Young Peoples Services,Head of Looked After Provision Permanence and Care Leavers,85957,Secure Management,Supplies and Services,312011,Newspapers Books and Periodicals,11-Apr-17,5953132395,Amazon UK Marketplace,5942,Books-school library,6.98,0,6.98
Children and Young Peoples Services,Head of Early Help Assessment and Safeguarding,71440,Barnard Castle One Point Hub,Supplies and Services,328041,Clothing Uniforms and Laundry,11-Apr-17,5953132443,ARGOS RETAIL GROUP,5310,Clothing uniforms and laundry,7.99,0,7.99
Children and Young Peoples Services,Head of Early Help Assessment and Safeguarding,71440,Barnard Castle One Point Hub,Supplies and Services,304403,Equipment and Materials,11-Apr-17,5953132447,TESCO - Seller_IST_1_2,5999,Other consumables,119.99,0,119.99
Regeneration and Local Services,Direct Services,21242,Catering - County Hall,Supplies and Services,324117,Provisions,11-Apr-17,5953132463,JR HOLLAND FOODSERVICE,5422,Catering costs - provisions,61.28,0,61.28
Regeneration and Local Services,Direct Services,21242,Catering - County Hall,Supplies and Services,324117,Provisions,11-Apr-17,5953132469,JR HOLLAND FOODSERVICE,5422,Catering costs - provisions,6.58,0,6.58
Regeneration and Local Services,Culture & Sport,54812,Gala Theatre - Catering etc,Supplies and Services,324117,Provisions,11-Apr-17,5953132471,JR HOLLAND FOODSERVICE,5422,Catering costs - provisions,18.84,0,18.84
Children and Young Peoples Services,Head of Looked After Provision Permanence and Care Leavers,85351,Framwellgate Moor CU,Supplies and Services,324117,Provisions,11-Apr-17,5953132475,ASDA HOME SHOPPING,5411,Catering costs - provisions,128.36,0,128.36
Children and Young Peoples Services,Head of Looked After Provision Permanence and Care Leavers,85351,Framwellgate Moor CU,Supplies and Services,324117,Provisions,11-Apr-17,5953132477,ASDA HOME SHOPPING,5411,Catering costs - provisions,-0.5,0,-0.5
Regeneration and Local Services,Culture & Sport,11219,Office Services,Supplies and Services,308011,Furniture,11-Apr-17,5953132483,WWW.OFFICEFURNITUREONL,5712,Furniture repair and replacement,46.8,7.8,39
Regeneration and Local Services,Culture & Sport,11219,Office Services,Supplies and Services,344033,Telephones,11-Apr-17,5953132485,TEXTANYWHERE LTD,4814,Telephones general-all costs,500.4,83.4,417
Children and Young Peoples Services,Head of Early Help Assessment and Safeguarding,88094,Newton Aycliffe 5 - 19,Supplies and Services,384871,Miscellaneous Expenses,11-Apr-17,5953132489,Amazon UK Marketplace,5942,Training-other activities,36.79,0,36.79
Regeneration and Local Services,Economic Development and Housing,31576,B& B - Temp Accom,Supplies and Services,352001,Conference Expenses,11-Apr-17,5953132491,DAYS INN,7011,Conferencesseminars fees etc,50,0,50
Regeneration and Local Services,Direct Services,10900,Fleet - Meadowfield Fleet,Transport,215013,Running Costs of Vehicles,11-Apr-17,5953132495,DVLA VEHICLE TAX,9399,Vehicle Excise Duty (VED),242.5,0,242.5
Regeneration and Local Services,Direct Services,10561,Fleet - Morrison Busty Fleet,Transport,215013,Running Costs of Vehicles,11-Apr-17,5953132497,DVLA VEHICLE TAX,9399,Vehicle Excise Duty (VED),652.5,0,652.5
Regeneration and Local Services,Direct Services,10551,Fleet - Chilton Fleet,Transport,215013,Running Costs of Vehicles,11-Apr-17,5953132501,DVLA VEHICLE TAX,9399,Vehicle Excise Duty (VED),652.5,0,652.5
Regeneration and Local Services,Direct Services,10551,Fleet - Chilton Fleet,Transport,215013,Running Costs of Vehicles,11-Apr-17,5953132505,DVLA VEHICLE TAX,9399,Vehicle Excise Duty (VED),652.5,0,652.5
Regeneration and Local Services,Direct Services,10864,Fleet - Hackworth Road Fleet,Transport,215013,Running Costs of Vehicles,11-Apr-17,5953132509,DVLA VEHICLE TAX,9399,Vehicle Excise Duty (VED),652.5,0,652.5
Regeneration and Local Services,Direct Services,10864,Fleet - Hackworth Road Fleet,Transport,215013,Running Costs of Vehicles,11-Apr-17,5953132511,DVLA VEHICLE TAX,9399,Vehicle Excise Duty (VED),242.5,0,242.5
Regeneration and Local Services,Direct Services,10900,Fleet - Meadowfield Fleet,Transport,215013,Running Costs of Vehicles,11-Apr-17,5953132513,DVLA VEHICLE TAX,9399,Vehicle Excise Duty (VED),242.5,0,242.5
Regeneration and Local Services,Direct Services,10900,Fleet - Meadowfield Fleet,Transport,215013,Running Costs of Vehicles,11-Apr-17,5953132515,DVLA VEHICLE TAX,9399,Vehicle Excise Duty (VED),242.5,0,242.5
Regeneration and Local Services,Direct Services,10900,Fleet - Meadowfield Fleet,Transport,215013,Running Costs of Vehicles,11-Apr-17,5953132519,DVLA VEHICLE TAX,9399,Vehicle Excise Duty (VED),242.5,0,242.5
Regeneration and Local Services,Direct Services,10864,Fleet - Hackworth Road Fleet,Transport,215013,Running Costs of Vehicles,11-Apr-17,5953132521,DVLA VEHICLE TAX,9399,Vehicle Excise Duty (VED),652.5,0,652.5
Regeneration and Local Services,Direct Services,10900,Fleet - Meadowfield Fleet,Transport,215013,Running Costs of Vehicles,11-Apr-17,5953132525,DVLA VEHICLE TAX,9399,Vehicle Excise Duty (VED),242.5,0,242.5
Regeneration and Local Services,Direct Services,10561,Fleet - Morrison Busty Fleet,Transport,215013,Running Costs of Vehicles,11-Apr-17,5953132527,DVLA VEHICLE TAX,9399,Vehicle Excise Duty (VED),242.5,0,242.5
Regeneration and Local Services,Direct Services,10900,Fleet - Meadowfield Fleet,Transport,215013,Running Costs of Vehicles,11-Apr-17,5953132531,DVLA VEHICLE TAX,9399,Vehicle Excise Duty (VED),242.5,0,242.5
Regeneration and Local Services,Direct Services,10864,Fleet - Hackworth Road Fleet,Transport,215013,Running Costs of Vehicles,11-Apr-17,5953132533,DVLA VEHICLE TAX,9399,Vehicle Excise Duty (VED),352.5,0,352.5
Regeneration and Local Services,Direct Services,10900,Fleet - Meadowfield Fleet,Transport,215013,Running Costs of Vehicles,11-Apr-17,5953132535,DVLA VEHICLE TAX,9399,Vehicle Excise Duty (VED),242.5,0,242.5
Regeneration and Local Services,Direct Services,10900,Fleet - Meadowfield Fleet,Transport,215013,Running Costs of Vehicles,11-Apr-17,5953132537,DVLA VEHICLE TAX,9399,Vehicle Excise Duty (VED),242.5,0,242.5
Regeneration and Local Services,Direct Services,10561,Fleet - Morrison Busty Fleet,Transport,215013,Running Costs of Vehicles,11-Apr-17,5953132539,DVLA VEHICLE TAX,9399,Vehicle Excise Duty (VED),652.5,0,652.5
Regeneration and Local Services,Direct Services,10551,Fleet - Chilton Fleet,Transport,215013,Running Costs of Vehicles,11-Apr-17,5953132541,DVLA VEHICLE TAX,9399,Vehicle Excise Duty (VED),652.5,0,652.5
Regeneration and Local Services,Direct Services,10900,Fleet - Meadowfield Fleet,Transport,215013,Running Costs of Vehicles,11-Apr-17,5953132543,DVLA VEHICLE TAX,9399,Vehicle Excise Duty (VED),167.5,0,167.5
Regeneration and Local Services,Direct Services,10551,Fleet - Chilton Fleet,Transport,215013,Running Costs of Vehicles,11-Apr-17,5953132547,DVLA VEHICLE TAX,9399,Vehicle Excise Duty (VED),652.5,0,652.5
Regeneration and Local Services,Direct Services,10561,Fleet - Morrison Busty Fleet,Transport,215013,Running Costs of Vehicles,11-Apr-17,5953132549,DVLA VEHICLE TAX,9399,Vehicle Excise Duty (VED),167.5,0,167.5
Regeneration and Local Services,Direct Services,10900,Fleet - Meadowfield Fleet,Transport,215013,Running Costs of Vehicles,11-Apr-17,5953132551,DVLA VEHICLE TAX,9399,Vehicle Excise Duty (VED),652.5,0,652.5
Regeneration and Local Services,Direct Services,10900,Fleet - Meadowfield Fleet,Transport,215013,Running Costs of Vehicles,11-Apr-17,5953132553,DVLA VEHICLE TAX,9399,Vehicle Excise Duty (VED),242.5,0,242.5
Regeneration and Local Services,Direct Services,10551,Fleet - Chilton Fleet,Transport,215013,Running Costs of Vehicles,11-Apr-17,5953132555,DVLA VEHICLE TAX,9399,Vehicle Excise Duty (VED),652.5,0,652.5
Regeneration and Local Services,Direct Services,10551,Fleet - Chilton Fleet,Transport,215013,Running Costs of Vehicles,11-Apr-17,5953132559,DVLA VEHICLE TAX,9399,Vehicle Excise Duty (VED),242.5,0,242.5
Regeneration and Local Services,Direct Services,10900,Fleet - Meadowfield Fleet,Transport,215013,Running Costs of Vehicles,11-Apr-17,5953132561,DVLA VEHICLE TAX,9399,Vehicle Excise Duty (VED),242.5,0,242.5
Regeneration and Local Services,Direct Services,10900,Fleet - Meadowfield Fleet,Transport,215013,Running Costs of Vehicles,11-Apr-17,5953132563,DVLA VEHICLE TAX,9399,Vehicle Excise Duty (VED),242.5,0,242.5
Regeneration and Local Services,Direct Services,10900,Fleet - Meadowfield Fleet,Transport,215013,Running Costs of Vehicles,11-Apr-17,5953132565,DVLA VEHICLE TAX,9399,Vehicle Excise Duty (VED),167.5,0,167.5
Regeneration and Local Services,Direct Services,10900,Fleet - Meadowfield Fleet,Transport,215013,Running Costs of Vehicles,11-Apr-17,5953132567,DVLA VEHICLE TAX,9399,Vehicle Excise Duty (VED),242.5,0,242.5
Regeneration and Local Services,Direct Services,10900,Fleet - Meadowfield Fleet,Transport,215013,Running Costs of Vehicles,11-Apr-17,5953132569,DVLA VEHICLE TAX,9399,Vehicle Excise Duty (VED),242.5,0,242.5
Regeneration and Local Services,Direct Services,10900,Fleet - Meadowfield Fleet,Transport,215013,Running Costs of Vehicles,11-Apr-17,5953132571,DVLA VEHICLE TAX,9399,Vehicle Excise Duty (VED),242.5,0,242.5
Regeneration and Local Services,Direct Services,10900,Fleet - Meadowfield Fleet,Transport,215013,Running Costs of Vehicles,11-Apr-17,5953132575,DVLA VEHICLE TAX,9399,Vehicle Excise Duty (VED),242.5,0,242.5
Regeneration and Local Services,Direct Services,10900,Fleet - Meadowfield Fleet,Transport,215013,Running Costs of Vehicles,11-Apr-17,5953132579,DVLA VEHICLE TAX,9399,Vehicle Excise Duty (VED),242.5,0,242.5
Regeneration and Local Services,Direct Services,10900,Fleet - Meadowfield Fleet,Transport,215013,Running Costs of Vehicles,11-Apr-17,5953132581,DVLA VEHICLE TAX,9399,Vehicle Excise Duty (VED),242.5,0,242.5
Regeneration and Local Services,Direct Services,10900,Fleet - Meadowfield Fleet,Transport,215013,Running Costs of Vehicles,11-Apr-17,5953132587,DVLA VEHICLE TAX,9399,Vehicle Excise Duty (VED),242.5,0,242.5
Regeneration and Local Services,Direct Services,10864,Fleet - Hackworth Road Fleet,Transport,215013,Running Costs of Vehicles,11-Apr-17,5953132589,DVLA VEHICLE TAX,9399,Vehicle Excise Duty (VED),242.5,0,242.5
Children and Young Peoples Services,Head of Early Help Assessment and Safeguarding,88063,Bishop Auckland 0 - 5,Supplies and Services,328041,Clothing Uniforms and Laundry,11-Apr-17,5953132593,POUNDLAND LTD 1554,5310,Clothing uniforms and laundry,7,0,7
Children and Young Peoples Services,Head of Early Help Assessment and Safeguarding,88063,Bishop Auckland 0 - 5,Supplies and Services,324117,Provisions,11-Apr-17,5953132597,ASDA STORES,5411,Catering costs - provisions,10,0,10
Children and Young Peoples Services,Head of Looked After Provision Permanence and Care Leavers,85957,Secure Management,Supplies and Services,328041,Clothing Uniforms and Laundry,11-Apr-17,5953132607,M and M Direct Ltd,5941,Clothing uniforms and laundry,27.99,0,27.99
Children and Young Peoples Services,Head of Looked After Provision Permanence and Care Leavers,85956,Lumley,Premises,115125,Repairs to Grounds,11-Apr-17,5953132611,FAST KEY SERVICES LIMI,7399,General maintenance,7.25,1.21,6.04
Children and Young Peoples Services,Head of Looked After Provision Permanence and Care Leavers,85956,Lumley,Supplies and Services,324117,Provisions,11-Apr-17,5953132613,TESCO STORES 6329,5411,Catering costs - provisions,66.38,0,66.38
Children and Young Peoples Services,Head of Looked After Provision Permanence and Care Leavers,85957,Secure Management,Supplies and Services,304403,Equipment and Materials,11-Apr-17,5953132615,SUPERDRUG STORES PLC,5912,Other consumables,30,0,30
Children and Young Peoples Services,Head of Looked After Provision Permanence and Care Leavers,85957,Secure Management,Supplies and Services,328041,Clothing Uniforms and Laundry,11-Apr-17,5953132619,VERY.CO.UK,5964,Clothing uniforms and laundry,43,0,43
Children and Young Peoples Services,Head of Looked After Provision Permanence and Care Leavers,85957,Secure Management,Supplies and Services,328041,Clothing Uniforms and Laundry,11-Apr-17,5953132623,VERY.CO.UK,5964,Clothing uniforms and laundry,35,0,35
Children and Young Peoples Services,Head of Looked After Provision Permanence and Care Leavers,85957,Secure Management,Supplies and Services,328041,Clothing Uniforms and Laundry,11-Apr-17,5953132625,VERY.CO.UK,5964,Clothing uniforms and laundry,3.99,0,3.99
Regeneration and Local Services,Direct Services,10367,C&G - South Grounds Maintenance,Supplies and Services,304259,Equipment and Materials,11-Apr-17,5953132631,MKM PETERLEE,5211,Equipment-purchase and rental,82.02,13.67,68.35
Regeneration and Local Services,Direct Services,10301,C&G - North Grounds Maintenance,Supplies and Services,304403,Equipment and Materials,11-Apr-17,5953132635,BESCOL,5231,Other consumables,77.74,0,77.74
Regeneration and Local Services,Direct Services,10301,C&G - North Grounds Maintenance,Third Party Payments,430100,Rendered by Private Contractors,11-Apr-17,5953132637,JOHN WARREN (ANIMAL BY,7399,Payments to sub-contractors,9.6,0,9.6
Regeneration and Local Services,Culture & Sport,11060,Hardwick Park Catering,Supplies and Services,324117,Provisions,11-Apr-17,5953132641,JR HOLLAND FOODSERVICE,5422,Catering costs - provisions,56.68,0,56.68
Regeneration and Local Services,Culture & Sport,54815,Gala Theatre Stage School,Supplies and Services,304259,Equipment and Materials,11-Apr-17,5953132649,YOGA STUDIO,5941,Equipment-purchase and rental,67.04,11.17,55.87
Regeneration and Local Services,Economic Development and Housing,30762,Organisational Training & Development,Employees,40149,Recruitment Instruction and Training,11-Apr-17,5953132667,CITB,8220,Training-all costs,30,5,25
Regeneration and Local Services,Economic Development and Housing,30762,Organisational Training & Development,Employees,40149,Recruitment Instruction and Training,11-Apr-17,5953132669,CITB,8220,Training-all costs,30,5,25
Regeneration and Local Services,Economic Development and Housing,30762,Organisational Training & Development,Employees,40149,Recruitment Instruction and Training,11-Apr-17,5953132671,CITB,8220,Training-all costs,30,5,25
Regeneration and Local Services,Direct Services,21234,Catering - Locomotion,Supplies and Services,324117,Provisions,11-Apr-17,5953132695,JR HOLLAND FOODSERVICE,5422,Catering costs - provisions,24.92,0,24.92
Regeneration and Local Services,Direct Services,21234,Catering - Locomotion,Supplies and Services,324117,Provisions,11-Apr-17,5953132699,JR HOLLAND FOODSERVICE,5422,Catering costs - provisions,9.12,0,9.12
Children and Young Peoples Services,Head of Looked After Provision Permanence and Care Leavers,85352,Tow Law CU,Supplies and Services,324117,Provisions,11-Apr-17,5953132717,TESCO STORES 2371,5411,Catering costs - provisions,235.83,0,235.83
Regeneration and Local Services,Direct Services,10367,C&G - South Grounds Maintenance,Supplies and Services,304259,Equipment and Materials,11-Apr-17,5953132719,MARSHALLS,5261,Equipment-purchase and rental,11.7,1.95,9.75
Regeneration and Local Services,Direct Services,10367,C&G - South Grounds Maintenance,Supplies and Services,304259,Equipment and Materials,11-Apr-17,000005953132719 - 1,MARSHALLS,5261,Equipment-purchase and rental,95.2,,95.2
Regeneration and Local Services,Economic Development and Housing,30749,Employability - Youth Contract,Supplies and Services,384956,Miscellaneous Expenses,11-Apr-17,5953132739,DVLA DRIVER ONLINE,9399,Licences,34,0,34
Regeneration and Local Services,Economic Development and Housing,30749,Employability - Youth Contract,Transport,230031,Contract Hire,11-Apr-17,5953132741,ARRIVA NORTH EAST,4131,Pupils-transport to play fields etc,48,0,48
Regeneration and Local Services,Direct Services,10913,Bldg Serv - Construction General,Supplies and Services,304221,Equipment and Materials,11-Apr-17,5953132745,HSE BOOKS (INTERNET),9399,Direct materials,"1,900.00",316.67,1583.33
Regeneration and Local Services,Direct Services,10367,C&G - South Grounds Maintenance,Supplies and Services,304259,Equipment and Materials,11-Apr-17,5953132749,SCREWFIX DIRECT LT,5211,Equipment-purchase and rental,5.99,1,4.99
Regeneration and Local Services,Culture & Sport,11191,Wellbeing4Life,Supplies and Services,324117,Provisions,11-Apr-17,5953132753,CO-OP GROUP 108247,5411,Catering costs - provisions,12.62,0,12.62
Regeneration and Local Services,Direct Services,10301,C&G - North Grounds Maintenance,Supplies and Services,304221,Equipment and Materials,11-Apr-17,5953132791,SPALDINGS LIMITED,5085,Direct materials,374.33,62.39,311.94
Regeneration and Local Services,Direct Services,10301,C&G - North Grounds Maintenance,Supplies and Services,304259,Equipment and Materials,11-Apr-17,5953132793,SCREWFIX,5211,Equipment-purchase and rental,57.99,9.67,48.32
Regeneration and Local Services,Direct Services,10301,C&G - North Grounds Maintenance,Supplies and Services,304259,Equipment and Materials,11-Apr-17,5953132815,MKM BUILDING SUPPLIES,5211,Equipment-purchase and rental,237.6,0,237.6
Regeneration and Local Services,Direct Services,10301,C&G - North Grounds Maintenance,Supplies and Services,312011,Newspapers Books and Periodicals,11-Apr-17,5953132819,TOOLSTATION LTD,5251,Books-school library,449.35,74.89,374.46
Regeneration and Local Services,Direct Services,10301,C&G - North Grounds Maintenance,Employees,40149,Recruitment Instruction and Training,11-Apr-17,5953132823,BLACK/DECKER,7629,Training-all costs,299,49.83,249.17
Regeneration and Local Services,Culture & Sport,11086,Positive Futures,Supplies and Services,324117,Provisions,11-Apr-17,5953132833,ASDA STORES,5411,Catering costs - provisions,24.1,0,24.1
Regeneration and Local Services,Technical Services,10984,Training and Development,Supplies and Services,312011,Newspapers Books and Periodicals,11-Apr-17,5953132837,WATERSTONES.COM,5942,Books-school library,227.75,0,227.75
Regeneration and Local Services,Culture & Sport,11191,Wellbeing4Life,Supplies and Services,384999,Miscellaneous Expenses,11-Apr-17,5953132849,HOBBYCRAFT,5970,Other expenses,114.65,0,114.65
Regeneration and Local Services,Culture & Sport,11191,Wellbeing4Life,Supplies and Services,324117,Provisions,11-Apr-17,5953132851,ASDA STORES 4333,5411,Catering costs - provisions,7.5,0,7.5
Children and Young Peoples Services,Head of Looked After Provision Permanence and Care Leavers,85331,New Lea Childrens Home,Supplies and Services,312011,Newspapers Books and Periodicals,11-Apr-17,5953132855,Amazon UK Marketplace,5942,Books-school library,15.99,0,15.99
Children and Young Peoples Services,Head of Looked After Provision Permanence and Care Leavers,85331,New Lea Childrens Home,Supplies and Services,312011,Newspapers Books and Periodicals,11-Apr-17,5953132859,Amazon UK Marketplace,5942,Books-school library,40.57,0,40.57
Regeneration and Local Services,Economic Development and Housing,30737,Durham Works Flexible Fund,Transport,235057,Public Transport,11-Apr-17,5953132863,WWW.SIMPLYGO.COM,4131,Staff travelling,89,0,89
Resources,I.C.T. Services,65487,ICT Telephony Recharges,Supplies and Services,344033,Telephones,11-Apr-17,5953132881,Amazon UK Marketplace,5942,Telephones general-all costs,89.44,0,89.44
Children and Young Peoples Services,Head of Early Help Assessment and Safeguarding,71404,Laurel Avenue Childrens Centre,Supplies and Services,324117,Provisions,11-Apr-17,5953132893,ALDI,5411,Catering costs - provisions,4.27,0,4.27
Children and Young Peoples Services,Head of Early Help Assessment and Safeguarding,71404,Laurel Avenue Childrens Centre,Supplies and Services,328041,Clothing Uniforms and Laundry,11-Apr-17,5953132897,POUNDWORLD RETAIL,5310,Clothing uniforms and laundry,4,0,4
Regeneration and Local Services,Direct Services,21235,Catering - Wharton Park,Supplies and Services,324117,Provisions,11-Apr-17,5953132901,JR HOLLAND FOODSERVICE,5422,Catering costs - provisions,32.76,0,32.76
Regeneration and Local Services,Direct Services,21235,Catering - Wharton Park,Supplies and Services,324117,Provisions,11-Apr-17,5953132903,JR HOLLAND FOODSERVICE,5422,Catering costs - provisions,13.98,0,13.98
Regeneration and Local Services,Culture & Sport,11230,Operations Locality 2,Supplies and Services,304259,Equipment and Materials,11-Apr-17,5953132913,SCREWFIX DIRECT,5211,Equipment-purchase and rental,34.98,5.83,29.15
Children and Young Peoples Services,Head of Early Help Assessment and Safeguarding,71693,Brandon Childrens Centre,Supplies and Services,312011,Newspapers Books and Periodicals,11-Apr-17,5953132917,Amazon UK Marketplace,5942,Books-school library,3.85,0,3.85
Children and Young Peoples Services,Head of Early Help Assessment and Safeguarding,71693,Brandon Childrens Centre,Supplies and Services,312011,Newspapers Books and Periodicals,11-Apr-17,5953132921,Amazon UK Marketplace,5942,Books-school library,2.99,0,2.99
Children and Young Peoples Services,Head of Early Help Assessment and Safeguarding,71693,Brandon Childrens Centre,Supplies and Services,312011,Newspapers Books and Periodicals,11-Apr-17,5953132925,THE BOOK PEOPLE,5942,Books-school library,49.82,0,49.82
Children and Young Peoples Services,Head of Early Help Assessment and Safeguarding,71693,Brandon Childrens Centre,Employees,40149,Recruitment Instruction and Training,11-Apr-17,5953132927,PAYPAL FAMILYLINKS,8398,Training-all costs,48.2,0,48.2
Children and Young Peoples Services,Head of Early Help Assessment and Safeguarding,71693,Brandon Childrens Centre,Supplies and Services,312011,Newspapers Books and Periodicals,11-Apr-17,5953132929,Amazon UK Marketplace,5942,Books-school library,9.46,0,9.46
Children and Young Peoples Services,Head of Early Help Assessment and Safeguarding,71693,Brandon Childrens Centre,Supplies and Services,324117,Provisions,11-Apr-17,5953132933,TESCO STORES 2371,5411,Catering costs - provisions,13.5,0,13.5
Regeneration and Local Services,Spatial Policy Planning Assets & Environment,31200,North Pennines Core,Supplies and Services,384999,Miscellaneous Expenses,11-Apr-17,5953132937,EDEN FARM SUPPLIES (BR,5995,Other expenses,51,0,51
Regeneration and Local Services,Spatial Policy Planning Assets & Environment,31200,North Pennines Core,Supplies and Services,342033,Computers and Communications,11-Apr-17,5953132941,WWW.NISBETS.COM,5964,Computer hardware,117.6,19.6,98
Children and Young Peoples Services,Head of Early Help Assessment and Safeguarding,85555,Child Protection Team Peterlee,Supplies and Services,304259,Equipment and Materials,11-Apr-17,5953132945,SUNDERLAND CC,9399,Equipment-purchase and rental,60,0,60
Regeneration and Local Services,Direct Services,11100,Meadowfield Depot - Running Costs,Supplies and Services,384956,Miscellaneous Expenses,11-Apr-17,5957148261,TVLICENSING.CO.UK,7392,Licences,147,0,147
Children and Young Peoples Services,Head of Looked After Provision Permanence and Care Leavers,85957,Secure Management,Supplies and Services,328041,Clothing Uniforms and Laundry,11-Apr-17,5957148335,NEW LOOK INTERNET,5621,Clothing uniforms and laundry,39.96,0,39.96
Children and Young Peoples Services,Head of Looked After Provision Permanence and Care Leavers,85957,Secure Management,Supplies and Services,328041,Clothing Uniforms and Laundry,11-Apr-17,5970944133,gethelabel.com,5651,Clothing uniforms and laundry,18.94,0,18.94
Regeneration and Local Services,Direct Services,21242,Catering - County Hall,Supplies and Services,324117,Provisions,11-Apr-17,6036408081,BATLEYS PERTH,5300,Catering costs - provisions,220.02,36.67,183.35
Regeneration and Local Services,Direct Services,21242,Catering - County Hall,Supplies and Services,324117,Provisions,11-Apr-17,000006036408081 - 1,BATLEYS PERTH,5300,Catering costs - provisions,217.63,,217.63
Regeneration and Local Services,Direct Services,21242,Catering - County Hall,Supplies and Services,324117,Provisions,11-Apr-17,6036408115,BATLEYS PERTH,5300,Catering costs - provisions,-19.92,0,-19.92
Regeneration and Local Services,Culture & Sport,11060,Hardwick Park Catering,Supplies and Services,324117,Provisions,11-Apr-17,6036408317,BATLEYS PERTH,5300,Catering costs - provisions,586.32,97.72,488.6
Regeneration and Local Services,Culture & Sport,11060,Hardwick Park Catering,Supplies and Services,324117,Provisions,11-Apr-17,000006036408317 - 1,BATLEYS PERTH,5300,Catering costs - provisions,214.09,,214.09
Regeneration and Local Services,Culture & Sport,11060,Hardwick Park Catering,Supplies and Services,324117,Provisions,11-Apr-17,6036408323,BATLEYS PERTH,5300,Catering costs - provisions,77.1,12.85,64.25
Regeneration and Local Services,Culture & Sport,11060,Hardwick Park Catering,Supplies and Services,324117,Provisions,11-Apr-17,000006036408323 - 1,BATLEYS PERTH,5300,Catering costs - provisions,67.85,,67.85
Regeneration and Local Services,Culture & Sport,11060,Hardwick Park Catering,Supplies and Services,324117,Provisions,11-Apr-17,6036408327,BATLEYS PERTH,5300,Catering costs - provisions,5.45,0,5.45
Regeneration and Local Services,Culture & Sport,11060,Hardwick Park Catering,Supplies and Services,324117,Provisions,11-Apr-17,6036408329,BATLEYS PERTH,5300,Catering costs - provisions,15.82,0,15.82
Regeneration and Local Services,Culture & Sport,11060,Hardwick Park Catering,Supplies and Services,324117,Provisions,11-Apr-17,6036408331,BATLEYS PERTH,5300,Catering costs - provisions,23.45,0,23.45
Regeneration and Local Services,Culture & Sport,11060,Hardwick Park Catering,Supplies and Services,324117,Provisions,11-Apr-17,6036408395,BATLEYS PERTH,5300,Catering costs - provisions,-12.64,0,-12.64
Regeneration and Local Services,Culture & Sport,11060,Hardwick Park Catering,Supplies and Services,324117,Provisions,11-Apr-17,6036408399,BATLEYS PERTH,5300,Catering costs - provisions,-49.47,-6.24,-43.23
Regeneration and Local Services,Direct Services,21234,Catering - Locomotion,Supplies and Services,324117,Provisions,11-Apr-17,6036408439,BATLEYS PERTH,5300,Catering costs - provisions,141.48,23.58,117.9
Regeneration and Local Services,Direct Services,21234,Catering - Locomotion,Supplies and Services,324117,Provisions,11-Apr-17,000006036408439 - 1,BATLEYS PERTH,5300,Catering costs - provisions,81.36,,81.36
Regeneration and Local Services,Culture & Sport,54235,Bp Auckland Town Hall Cafe,Supplies and Services,324117,Provisions,11-Apr-17,6036408675,BATLEYS PERTH,5300,Catering costs - provisions,31.27,0,31.27
Regeneration and Local Services,Direct Services,21324,Catering - Meadowfield,Supplies and Services,324117,Provisions,11-Apr-17,6036408703,BATLEYS PERTH,5300,Catering costs - provisions,144.06,24.01,120.05
Regeneration and Local Services,Direct Services,21324,Catering - Meadowfield,Supplies and Services,324117,Provisions,11-Apr-17,000006036408703 - 1,BATLEYS PERTH,5300,Catering costs - provisions,121.19,,121.19
Children and Young Peoples Services,Head of Education,71801,Selby Cottage Childcare Centre,Supplies and Services,324117,Provisions,12-Apr-17,5957148181,TESCO STORES 2278,5411,Catering costs - provisions,14.71,0,14.71
Regeneration and Local Services,Economic Development and Housing,31576,B& B - Temp Accom,Supplies and Services,364320,Grants to Voluntary Organisations,12-Apr-17,5957148183,DAYS INN,7011,Accommodation assistance,55,9.17,45.83
Regeneration and Local Services,Direct Services,10383,C&G - South Street Cleansing,Supplies and Services,324117,Provisions,12-Apr-17,5957148205,J M RAINE,5399,Catering costs - provisions,41.2,6.87,34.33
Children and Young Peoples Services,Head of Looked After Provision Permanence and Care Leavers,85957,Secure Management,Supplies and Services,304403,Equipment and Materials,12-Apr-17,5957148211,TESCO DIRECT,5999,Other consumables,96,0,96
Children and Young Peoples Services,Head of Looked After Provision Permanence and Care Leavers,85342,9 Cedar Drive Aycliffe,Supplies and Services,328041,Clothing Uniforms and Laundry,12-Apr-17,5957148215,SP RASCAL CLOTHING,5691,Clothing uniforms and laundry,43.95,0,43.95
Regeneration and Local Services,Direct Services,21242,Catering - County Hall,Supplies and Services,324117,Provisions,12-Apr-17,5957148267,JR HOLLAND FOODSERVICE,5422,Catering costs - provisions,174.32,0,174.32
Regeneration and Local Services,Direct Services,21242,Catering - County Hall,Supplies and Services,324117,Provisions,12-Apr-17,5957148271,JR HOLLAND FOODSERVICE,5422,Catering costs - provisions,37.96,0,37.96
Regeneration and Local Services,Direct Services,21242,Catering - County Hall,Supplies and Services,324117,Provisions,12-Apr-17,5957148273,JR HOLLAND FOODSERVICE,5422,Catering costs - provisions,31.35,0,31.35
Regeneration and Local Services,Culture & Sport,11219,Office Services,Third Party Payments,430100,Rendered by Private Contractors,12-Apr-17,5957148285,CAMPAIGNMONITOR,7399,Payments to sub-contractors,528.8,0,528.8
Children and Young Peoples Services,Head of Education,71732,Dean Bank Childcare,Supplies and Services,324117,Provisions,12-Apr-17,5957148299,ASDA HOME SHOPPING,5411,Catering costs - provisions,5,0,5
Regeneration and Local Services,Economic Development and Housing,30737,Durham Works Flexible Fund,Supplies and Services,328041,Clothing Uniforms and Laundry,12-Apr-17,5957148325,ASDA GEORGE COM LEEDS,5411,Clothing uniforms and laundry,29.5,4.92,24.58
Children and Young Peoples Services,Head of Looked After Provision Permanence and Care Leavers,85957,Secure Management,Supplies and Services,304649,Equipment and Materials,12-Apr-17,5957148331,Amazon UK Marketplace,5942,Toys,4.79,0,4.79
Children and Young Peoples Services,Head of Looked After Provision Permanence and Care Leavers,85957,Secure Management,Supplies and Services,304649,Equipment and Materials,12-Apr-17,5957148333,Amazon UK Marketplace,5942,Toys,50.28,0,50.28
Children and Young Peoples Services,Head of Looked After Provision Permanence and Care Leavers,85957,Secure Management,Supplies and Services,324117,Provisions,12-Apr-17,5957148339,TESCO STORES 6329,5411,Catering costs - provisions,70.96,0,70.96
Regeneration and Local Services,Culture & Sport,11060,Hardwick Park Catering,Supplies and Services,324117,Provisions,12-Apr-17,5957148355,JR HOLLAND FOODSERVICE,5422,Catering costs - provisions,111.78,0,111.78
Regeneration and Local Services,Culture & Sport,11060,Hardwick Park Catering,Supplies and Services,324117,Provisions,12-Apr-17,5957148359,JR HOLLAND FOODSERVICE,5422,Catering costs - provisions,46.81,0,46.81
Regeneration and Local Services,Economic Development and Housing,30762,Organisational Training & Development,Employees,40149,Recruitment Instruction and Training,12-Apr-17,5957148363,CITB,8220,Training-all costs,30,5,25
Regeneration and Local Services,Economic Development and Housing,30762,Organisational Training & Development,Employees,40149,Recruitment Instruction and Training,12-Apr-17,5957148367,CITB,8220,Training-all costs,30,5,25
Regeneration and Local Services,Economic Development and Housing,30762,Organisational Training & Development,Employees,40149,Recruitment Instruction and Training,12-Apr-17,5957148369,CITB,8220,Training-all costs,30,5,25
Regeneration and Local Services,Economic Development and Housing,30762,Organisational Training & Development,Employees,40149,Recruitment Instruction and Training,12-Apr-17,5957148373,CITB,8220,Training-all costs,30,5,25
Regeneration and Local Services,Economic Development and Housing,30762,Organisational Training & Development,Employees,40149,Recruitment Instruction and Training,12-Apr-17,5957148375,CITB,8220,Training-all costs,30,5,25
Regeneration and Local Services,Economic Development and Housing,30762,Organisational Training & Development,Employees,40149,Recruitment Instruction and Training,12-Apr-17,5957148377,CITB,8220,Training-all costs,30,5,25
Regeneration and Local Services,Economic Development and Housing,30762,Organisational Training & Development,Employees,40149,Recruitment Instruction and Training,12-Apr-17,5957148379,CITB,8220,Training-all costs,30,5,25
Regeneration and Local Services,Economic Development and Housing,30762,Organisational Training & Development,Employees,40149,Recruitment Instruction and Training,12-Apr-17,5957148383,CITB,8220,Training-all costs,30,5,25
Regeneration and Local Services,Economic Development and Housing,31576,B& B - Temp Accom,Supplies and Services,364320,Grants to Voluntary Organisations,12-Apr-17,5957148389,DAYS INN,7011,Accommodation assistance,55,9.17,45.83
Regeneration and Local Services,Direct Services,10525,Catering - Green Lane,Supplies and Services,324117,Provisions,12-Apr-17,5957148403,JR HOLLAND FOODSERVICE,5422,Catering costs - provisions,38.13,0,38.13
Regeneration and Local Services,Direct Services,10367,C&G - South Grounds Maintenance,Supplies and Services,304259,Equipment and Materials,12-Apr-17,5957148423,SCREWFIX,5211,Equipment-purchase and rental,30.28,0,30.28
Regeneration and Local Services,Culture & Sport,54399,Local Delivery-Libraries,Supplies and Services,312011,Newspapers Books and Periodicals,12-Apr-17,5957148467,Amazon EU,5969,Books-school library,9.99,0,9.99
Regeneration and Local Services,Culture & Sport,54399,Local Delivery-Libraries,Supplies and Services,312011,Newspapers Books and Periodicals,12-Apr-17,5957148471,Amazon EU,5969,Books-school library,5.99,0,5.99
Regeneration and Local Services,Culture & Sport,54235,Bp Auckland Town Hall Cafe,Supplies and Services,324117,Provisions,12-Apr-17,5957148493,JR HOLLAND FOODSERVICE,5422,Catering costs - provisions,37.49,0,37.49
Regeneration and Local Services,Direct Services,21324,Catering - Meadowfield,Supplies and Services,324117,Provisions,12-Apr-17,5957148497,JR HOLLAND FOODSERVICE,5422,Catering costs - provisions,26.87,0,26.87
Regeneration and Local Services,Direct Services,21324,Catering - Meadowfield,Supplies and Services,324117,Provisions,12-Apr-17,5957148501,JR HOLLAND FOODSERVICE,5422,Catering costs - provisions,13.87,0,13.87
Regeneration and Local Services,Direct Services,21324,Catering - Meadowfield,Supplies and Services,324117,Provisions,12-Apr-17,5957148503,JR HOLLAND FOODSERVICE,5422,Catering costs - provisions,8.16,0,8.16
Regeneration and Local Services,Culture & Sport,11191,Wellbeing4Life,Supplies and Services,324117,Provisions,12-Apr-17,5957148523,SAINSBURYS SACAT 0776,5411,Catering costs - provisions,11.25,0,11.25
Regeneration and Local Services,Economic Development and Housing,30737,Durham Works Flexible Fund,Transport,235057,Public Transport,12-Apr-17,5957148525,WWW.SIMPLYGO.COM,4131,Staff travelling,64,0,64
Resources,I.C.T. Services,65487,ICT Telephony Recharges,Supplies and Services,344033,Telephones,12-Apr-17,5957148545,Amazon UK Marketplace,5942,Telephones general-all costs,83.4,0,83.4
Resources,I.C.T. Services,65487,ICT Telephony Recharges,Supplies and Services,344033,Telephones,12-Apr-17,5957148549,Amazon UK Marketplace,5942,Telephones general-all costs,83.4,0,83.4
Resources,I.C.T. Services,69010,Administration,Supplies and Services,340001,Postages,12-Apr-17,5957148553,WWW.NEOPOST.CO.UK,5111,Postages,"8,160.00",0,8160
Resources,I.C.T. Services,69010,Administration,Supplies and Services,340001,Postages,12-Apr-17,5957148555,ROYAL MAIL ONLINE SHOP,9402,Postages,"5,135.00",0,5135
Regeneration and Local Services,Spatial Policy Planning Assets & Environment,31029,Business Development Support,Supplies and Services,352001,Conference Expenses,12-Apr-17,5957148559,PAYPAL RTPI,8398,Conferencesseminars fees etc,10.01,0,10.01
Resources,I.C.T. Services,65487,ICT Telephony Recharges,Supplies and Services,344033,Telephones,12-Apr-17,5957148561,Amazon UK Marketplace,5942,Telephones general-all costs,149.7,0,149.7
Resources,I.C.T. Services,65487,ICT Telephony Recharges,Supplies and Services,344033,Telephones,12-Apr-17,5957148563,AMZ Style Your Mobile,5999,Telephones general-all costs,-83.4,0,-83.4
Resources,I.C.T. Services,65487,ICT Telephony Recharges,Supplies and Services,344033,Telephones,12-Apr-17,5957148565,AMZ Style Your Mobile,5999,Telephones general-all costs,-83.4,0,-83.4
Regeneration and Local Services,Culture & Sport,11060,Hardwick Park Catering,Supplies and Services,332047,Printing Stationery and Gen Off Exps,12-Apr-17,5957148573,WWW.UKPACKAGING.COM,5111,Stationery,68.63,11.44,57.19
Regeneration and Local Services,Culture & Sport,26591,Hardwick Park,Supplies and Services,304245,Equipment and Materials,12-Apr-17,5957148575,SCREWFIX DIRECT LT,5211,Materials,19.98,3.33,16.65
Regeneration and Local Services,Culture & Sport,10605,Woodhouse Close Leisure Complex,Supplies and Services,324117,Provisions,12-Apr-17,5957148587,JR HOLLAND FOODSERVICE,5422,Catering costs - provisions,30.5,0,30.5
Children and Young Peoples Services,Head of Early Help Assessment and Safeguarding,71693,Brandon Childrens Centre,Supplies and Services,312011,Newspapers Books and Periodicals,12-Apr-17,5957148599,Amazon UK Marketplace,5942,Books-school library,2.78,0,2.78
Regeneration and Local Services,Economic Development and Housing,30737,Durham Works Flexible Fund,Supplies and Services,328041,Clothing Uniforms and Laundry,12-Apr-17,5957148603,ARGOS LTD,5310,Clothing uniforms and laundry,29.99,0,29.99
Regeneration and Local Services,Culture & Sport,10870,Chester-le-street Leisure Centre,Supplies and Services,384956,Miscellaneous Expenses,12-Apr-17,5970943991,TVLICENSING.CO.UK,7392,Licences,147,0,147
Regeneration and Local Services,Direct Services,15016,Seaham CAP Library St Johns Square Seaham,Supplies and Services,384956,Miscellaneous Expenses,12-Apr-17,5970943995,TVLICENSING.CO.UK,7392,Licences,147,0,147
Children and Young Peoples Services,Head of Early Help Assessment and Safeguarding,74000,TTF-Attachment and Results,Supplies and Services,384999,Miscellaneous Expenses,12-Apr-17,5970944081,POST OFFICE SHOP,9402,Other expenses,181.31,30.22,151.09
Children and Young Peoples Services,Head of Looked After Provision Permanence and Care Leavers,85954,Walworth,Supplies and Services,332047,Printing Stationery and Gen Off Exps,12-Apr-17,5970944085,POST OFFICE SHOP,9402,Stationery,41.18,6.86,34.32
Regeneration and Local Services,Culture & Sport,54399,Local Delivery-Libraries,Supplies and Services,312011,Newspapers Books and Periodicals,12-Apr-17,5970944223,AMAZON UK RETAIL AMAZO,5999,Books-school library,13.99,0,13.99
Regeneration and Local Services,Economic Development and Housing,30749,Employability - Youth Contract,Supplies and Services,312011,Newspapers Books and Periodicals,12-Apr-17,5973584331,1&1 INTERNET LIMITED,4816,Books-school library,57.31,9.55,47.76
Children and Young Peoples Services,Head of Looked After Provision Permanence and Care Leavers,85954,Walworth,Supplies and Services,332047,Printing Stationery and Gen Off Exps,12-Apr-17,5977511595,POST OFFICE SHOP,9402,Stationery,20.59,3.43,17.16
Regeneration and Local Services,Culture & Sport,10605,Woodhouse Close Leisure Complex,Supplies and Services,324117,Provisions,12-Apr-17,6036408871,BATLEYS PERTH,5300,Catering costs - provisions,90.36,15.06,75.3
Regeneration and Local Services,Culture & Sport,10605,Woodhouse Close Leisure Complex,Supplies and Services,324117,Provisions,12-Apr-17,000006036408871 - 1,BATLEYS PERTH,5300,Catering costs - provisions,102.61,,102.61
Regeneration and Local Services,Economic Development and Housing,30699,Business Growth and Innovation General,Supplies and Services,342033,Computers and Communications,13-Apr-17,5957148219,AdRoll_EMEA,7372,Computer hardware,28.28,0,28.28
Regeneration and Local Services,Economic Development and Housing,30699,Business Growth and Innovation General,Supplies and Services,336005,Advertising,13-Apr-17,5957148223,ADROLL,7311,Advertising other than for staff,0.78,0,0.78
Regeneration and Local Services,Culture & Sport,11219,Office Services,Third Party Payments,430100,Rendered by Private Contractors,13-Apr-17,5957148289,CAMPAIGNMONITOR,7399,Payments to sub-contractors,14.54,0,14.54
Children and Young Peoples Services,Head of Education,71801,Selby Cottage Childcare Centre,Supplies and Services,324117,Provisions,13-Apr-17,5970943945,TESCO STORES 2278,5411,Catering costs - provisions,19.98,0,19.98
Children and Young Peoples Services,Head of Education,71801,Selby Cottage Childcare Centre,Supplies and Services,324117,Provisions,13-Apr-17,5970943947,TESCO STORES 2278,5411,Catering costs - provisions,4,0,4
Regeneration and Local Services,Economic Development and Housing,31576,B& B - Temp Accom,Supplies and Services,364320,Grants to Voluntary Organisations,13-Apr-17,5970943957,DAYS INN,7011,Accommodation assistance,268,44.67,223.33
Regeneration and Local Services,Economic Development and Housing,31576,B& B - Temp Accom,Supplies and Services,364320,Grants to Voluntary Organisations,13-Apr-17,5970943959,DAYS INN,7011,Accommodation assistance,55,9.17,45.83
Regeneration and Local Services,Direct Services,21242,Catering - County Hall,Supplies and Services,324117,Provisions,13-Apr-17,5970943997,WWW.ADELIEFOODS.CO.UK,5499,Catering costs - provisions,46.83,0,46.83
Regeneration and Local Services,Direct Services,21242,Catering - County Hall,Supplies and Services,324117,Provisions,13-Apr-17,5970944001,JR HOLLAND FOODSERVICE,5422,Catering costs - provisions,108.57,0,108.57
Regeneration and Local Services,Direct Services,21242,Catering - County Hall,Supplies and Services,324117,Provisions,13-Apr-17,5970944005,JR HOLLAND FOODSERVICE,5422,Catering costs - provisions,13.16,0,13.16
Regeneration and Local Services,Culture & Sport,54812,Gala Theatre - Catering etc,Supplies and Services,324117,Provisions,13-Apr-17,5970944009,JR HOLLAND FOODSERVICE,5422,Catering costs - provisions,70.82,0,70.82
Regeneration and Local Services,Spatial Policy Planning Assets & Environment,31200,North Pennines Core,Supplies and Services,384999,Miscellaneous Expenses,13-Apr-17,5970944055,HOBBYCRAFT,5970,Other expenses,19.8,3.3,16.5
Regeneration and Local Services,Economic Development and Housing,30749,Employability - Youth Contract,Transport,235057,Public Transport,13-Apr-17,5970944061,WWW.SIMPLYGO.COM,4131,Staff travelling,24.9,0,24.9
Children and Young Peoples Services,Head of Looked After Provision Permanence and Care Leavers,85332,Middlestone Moor CU,Supplies and Services,324117,Provisions,13-Apr-17,5970944079,TESCO STORES 2371,5411,Catering costs - provisions,154.4,0,154.4
Resources,I.C.T. Services,65305,Design & Print - Digital,Supplies and Services,384999,Miscellaneous Expenses,13-Apr-17,5970944087,KEY INDUSTRIAL EQUIPME,5072,Other expenses,201.6,33.6,168
Children and Young Peoples Services,Head of Education,71903,EYDCP-Sustainability EDS,Supplies and Services,328041,Clothing Uniforms and Laundry,13-Apr-17,5970944103,B & M RETAIL,5310,Clothing uniforms and laundry,19.98,0,19.98
Children and Young Peoples Services,Head of Education,71903,EYDCP-Sustainability EDS,Supplies and Services,328041,Clothing Uniforms and Laundry,13-Apr-17,5970944109,B & M RETAIL,5310,Clothing uniforms and laundry,321.51,0,321.51
Regeneration and Local Services,Direct Services,10301,C&G - North Grounds Maintenance,Supplies and Services,304999,Equipment and Materials,13-Apr-17,5970944123,NEW ROW FARM NURSERIES,5193,Misc equipment tools and materials,495,82.5,412.5
Regeneration and Local Services,Direct Services,10301,C&G - North Grounds Maintenance,Supplies and Services,304999,Equipment and Materials,13-Apr-17,5970944127,NEW ROW FARM NURSERIES,5193,Misc equipment tools and materials,406.08,67.68,338.4
Regeneration and Local Services,Economic Development and Housing,30737,Durham Works Flexible Fund,Transport,230031,Contract Hire,13-Apr-17,5970944129,ARRIVA NORTH EAST,4131,Pupils-transport to play fields etc,17.2,0,17.2
Children and Young Peoples Services,Head of Looked After Provision Permanence and Care Leavers,85957,Secure Management,Supplies and Services,324117,Provisions,13-Apr-17,5970944137,TESCO STORES 6329,5411,Catering costs - provisions,79.34,0,79.34
Regeneration and Local Services,Direct Services,10367,C&G - South Grounds Maintenance,Supplies and Services,384999,Miscellaneous Expenses,13-Apr-17,5970944147,WWW.GUSTHARTS.COM,5046,Other expenses,264.74,0,264.74
Regeneration and Local Services,Culture & Sport,11060,Hardwick Park Catering,Supplies and Services,324117,Provisions,13-Apr-17,5970944155,JR HOLLAND FOODSERVICE,5422,Catering costs - provisions,59.96,0,59.96
Resources,I.C.T. Services,65335,Implementation,Supplies and Services,304639,Equipment and Materials,13-Apr-17,5970944159,AMZ replacebase,4816,Technicians-supplies,65.1,0,65.1
Regeneration and Local Services,Direct Services,21234,Catering - Locomotion,Supplies and Services,324117,Provisions,13-Apr-17,5970944177,WWW.ADELIEFOODS.CO.UK,5499,Catering costs - provisions,39.12,0,39.12
Regeneration and Local Services,Direct Services,15016,Seaham CAP Library St Johns Square Seaham,Supplies and Services,384999,Miscellaneous Expenses,13-Apr-17,5970944199,Amazon UK Marketplace,5942,Other expenses,17.28,0,17.28
Regeneration and Local Services,Economic Development and Housing,31576,B& B - Temp Accom,Supplies and Services,364320,Grants to Voluntary Organisations,13-Apr-17,5970944215,DAYS INN,7011,Accommodation assistance,219,36.5,182.5
Regeneration and Local Services,Direct Services,10301,C&G - North Grounds Maintenance,Supplies and Services,304403,Equipment and Materials,13-Apr-17,5970944257,BESCOL,5231,Other consumables,53.95,8.99,44.96
Children and Young Peoples Services,Head of Early Help Assessment and Safeguarding,88001,Peterlee Locality,Supplies and Services,352001,Conference Expenses,13-Apr-17,5970944271,OFFICIALRECORDCOUK,7392,Conferencesseminars fees etc,18.49,0,18.49
Regeneration and Local Services,Transport and Contracted Services,31701,Care Connect All Localities,Supplies and Services,344033,Telephones,13-Apr-17,5970944275,BT BILL PAYMENT 2,4812,Telephones general-all costs,90.03,15.01,75.02
Regeneration and Local Services,Direct Services,10301,C&G - North Grounds Maintenance,Supplies and Services,304999,Equipment and Materials,13-Apr-17,5970944297,GUSTHARTS CHAINSAW CTR,7699,Misc equipment tools and materials,172.8,28.8,144
Regeneration and Local Services,Direct Services,10301,C&G - North Grounds Maintenance,Third Party Payments,430100,Rendered by Private Contractors,13-Apr-17,5970944299,JOHN WARREN (ANIMAL BY,7399,Payments to sub-contractors,9.6,1.6,8
Children and Young Peoples Services,Head of Looked After Provision Permanence and Care Leavers,85331,New Lea Childrens Home,Supplies and Services,304403,Equipment and Materials,13-Apr-17,5970944331,AMAZON UK RETAIL AMAZO,5999,Other consumables,27.62,0,27.62
Adult and Health Services,Head of Adults,51622,OP/PD Dales,Supplies and Services,340001,Postages,13-Apr-17,5970944335,ROYAL MAIL ONLINE SHOP,9402,Postages,112,0,112
Regeneration and Local Services,Economic Development and Housing,30737,Durham Works Flexible Fund,Transport,235057,Public Transport,13-Apr-17,5970944363,WWW.SIMPLYGO.COM,4131,Staff travelling,68,0,68
Regeneration and Local Services,Economic Development and Housing,30737,Durham Works Flexible Fund,Supplies and Services,328041,Clothing Uniforms and Laundry,13-Apr-17,5970944365,MATALAN.CO.UK,5691,Clothing uniforms and laundry,34.95,0,34.95
Regeneration and Local Services,Culture & Sport,11060,Hardwick Park Catering,Supplies and Services,324117,Provisions,13-Apr-17,6036408333,BATLEYS PERTH,5300,Catering costs - provisions,284.64,47.44,237.2
Regeneration and Local Services,Culture & Sport,11060,Hardwick Park Catering,Supplies and Services,324117,Provisions,13-Apr-17,000006036408333 - 1,BATLEYS PERTH,5300,Catering costs - provisions,158.15,,158.15
Regeneration and Local Services,Culture & Sport,11060,Hardwick Park Catering,Supplies and Services,324117,Provisions,13-Apr-17,6036408339,BATLEYS PERTH,5300,Catering costs - provisions,220.92,36.82,184.1
Regeneration and Local Services,Culture & Sport,11060,Hardwick Park Catering,Supplies and Services,324117,Provisions,13-Apr-17,000006036408339 - 1,BATLEYS PERTH,5300,Catering costs - provisions,90.1,,90.1
Regeneration and Local Services,Direct Services,21234,Catering - Locomotion,Supplies and Services,324117,Provisions,13-Apr-17,6036408443,BATLEYS PERTH,5300,Catering costs - provisions,141.48,23.58,117.9
Regeneration and Local Services,Direct Services,21234,Catering - Locomotion,Supplies and Services,324117,Provisions,13-Apr-17,000006036408443 - 1,BATLEYS PERTH,5300,Catering costs - provisions,45.44,,45.44
Regeneration and Local Services,Direct Services,21234,Catering - Locomotion,Supplies and Services,324117,Provisions,13-Apr-17,6036408445,BATLEYS PERTH,5300,Catering costs - provisions,0.68,0,0.68
Regeneration and Local Services,Direct Services,21235,Catering - Wharton Park,Supplies and Services,324117,Provisions,13-Apr-17,6036408831,BATLEYS PERTH,5300,Catering costs - provisions,368.82,61.47,307.35
Regeneration and Local Services,Direct Services,21235,Catering - Wharton Park,Supplies and Services,324117,Provisions,13-Apr-17,000006036408831 - 1,BATLEYS PERTH,5300,Catering costs - provisions,63.11,,63.11
Regeneration and Local Services,Culture & Sport,11199,Service Development Management,Supplies and Services,342033,Computers and Communications,14-Apr-17,5970943949,Amazon UK Marketplace,5942,Computer hardware,13.44,0,13.44
Children and Young Peoples Services,Head of Looked After Provision Permanence and Care Leavers,85957,Secure Management,Supplies and Services,304403,Equipment and Materials,14-Apr-17,5970943969,AMAZON UK RETAIL AMAZO,5999,Other consumables,99.5,0,99.5
Regeneration and Local Services,Economic Development and Housing,30699,Business Growth and Innovation General,Supplies and Services,342033,Computers and Communications,14-Apr-17,5970943975,WATCHFULPAYPAL,7379,Computer hardware,15.99,0,15.99
Children and Young Peoples Services,Head of Looked After Provision Permanence and Care Leavers,85341,High Etherley Satelite Home,Supplies and Services,324117,Provisions,14-Apr-17,5970944071,TESCO STORES 6329,5411,Catering costs - provisions,152.16,0,152.16
Children and Young Peoples Services,Head of Looked After Provision Permanence and Care Leavers,85957,Secure Management,Supplies and Services,324117,Provisions,14-Apr-17,5970944139,TESCO STORES 6329,5411,Catering costs - provisions,84.77,0,84.77
Regeneration and Local Services,Economic Development and Housing,31500,Housing Solutions - Core Team,Supplies and Services,352001,Conference Expenses,14-Apr-17,5970944205,ROADCHEF DURHAM,7011,Conferencesseminars fees etc,59,0,59
Regeneration and Local Services,Culture & Sport,54399,Local Delivery-Libraries,Supplies and Services,312011,Newspapers Books and Periodicals,14-Apr-17,5970944227,Amazon Prime,5968,Books-school library,7.99,0,7.99
Regeneration and Local Services,Culture & Sport,11191,Wellbeing4Life,Supplies and Services,304259,Equipment and Materials,14-Apr-17,5970944325,WILKO DURHAM 426,5722,Equipment-purchase and rental,11,0,11
Children and Young Peoples Services,Head of Looked After Provision Permanence and Care Leavers,85331,New Lea Childrens Home,Transport,235057,Public Transport,14-Apr-17,5970944329,WWW.SIMPLYGO.COM,4131,Staff travelling,15.5,0,15.5
Regeneration and Local Services,Culture & Sport,26591,Hardwick Park,Supplies and Services,384999,Miscellaneous Expenses,14-Apr-17,5970944349,WWW.ANGELWHOLESALE.CO.,5641,Other expenses,220.62,36.77,183.85
Children and Young Peoples Services,Head of Looked After Provision Permanence and Care Leavers,85957,Secure Management,Supplies and Services,324117,Provisions,15-Apr-17,5970944141,TESCO STORES 6329,5411,Catering costs - provisions,65.46,0,65.46
Regeneration and Local Services,Economic Development and Housing,31576,B& B - Temp Accom,Supplies and Services,364320,Grants to Voluntary Organisations,15-Apr-17,5970944195,DAYS INN,7011,Accommodation assistance,154,25.67,128.33
Regeneration and Local Services,Culture & Sport,54399,Local Delivery-Libraries,Supplies and Services,312011,Newspapers Books and Periodicals,16-Apr-17,5970944229,AMAZON UK RETAIL AMAZO,5999,Books-school library,11.87,0,11.87
Children and Young Peoples Services,Head of Looked After Provision Permanence and Care Leavers,85957,Secure Management,Supplies and Services,324117,Provisions,17-Apr-17,5970944143,TESCO STORES 6329,5411,Catering costs - provisions,40.71,0,40.71
Resources,Resources Management,69000,Resources Management,Supplies and Services,324117,Provisions,17-Apr-17,5970944201,CO-OP GROUP 010830,5411,Catering costs - provisions,12,0,12
Regeneration and Local Services,Culture & Sport,11060,Hardwick Park Catering,Supplies and Services,324117,Provisions,17-Apr-17,5970944351,BESTWAY WHOLESALE,5451,Catering costs - provisions,287.28,47.88,239.4
Regeneration and Local Services,Economic Development and Housing,30699,Business Growth and Innovation General,Supplies and Services,342033,Computers and Communications,18-Apr-17,5970943977,WATCHFULPAYPAL,7379,Computer hardware,0.44,0,0.44
Children and Young Peoples Services,Head of Education,71801,Selby Cottage Childcare Centre,Supplies and Services,304259,Equipment and Materials,18-Apr-17,5973584221,WILKO RETAIL LIMIT,5722,Equipment-purchase and rental,5.5,0,5.5
Children and Young Peoples Services,Head of Education,71801,Selby Cottage Childcare Centre,Supplies and Services,324117,Provisions,18-Apr-17,5973584223,TESCO STORES 2278,5411,Catering costs - provisions,14.66,0,14.66
Resources,Financial Services,65180,Collections,Income,720130,Fees and Charges,18-Apr-17,5973584227,HMCOURT-SERVICES.G,9222,Fees-legal,110,0,110
Children and Young Peoples Services,Head of Education,78411,16-19 Education & Training,Supplies and Services,340001,Postages,18-Apr-17,5973584231,ROYAL MAIL ONLINE SHOP,9402,Postages,389,0,389
Children and Young Peoples Services,Head of Looked After Provision Permanence and Care Leavers,85342,9 Cedar Drive Aycliffe,Supplies and Services,324117,Provisions,18-Apr-17,5973584239,ASDA GEORGE COM LEEDS,5411,Catering costs - provisions,5.5,0,5.5
Resources,Financial Services,52865,SF-Financial Services Team,Supplies and Services,304403,Equipment and Materials,18-Apr-17,5973584247,TESCO - Childrens Room,5999,Other consumables,10.95,0,10.95
Resources,Financial Services,52865,SF-Financial Services Team,Supplies and Services,304403,Equipment and Materials,18-Apr-17,5973584249,TESCO - Seller_IST_1_2,5999,Other consumables,124.99,0,124.99
Resources,Financial Services,52865,SF-Financial Services Team,Supplies and Services,304403,Equipment and Materials,18-Apr-17,5973584251,TESCO - Seller_IST_1_2,5999,Other consumables,119.99,0,119.99
Resources,Financial Services,52865,SF-Financial Services Team,Supplies and Services,304403,Equipment and Materials,18-Apr-17,5973584255,TESCO - Seller_IST_1_2,5999,Other consumables,66.99,0,66.99
Resources,Financial Services,52865,SF-Financial Services Team,Supplies and Services,304403,Equipment and Materials,18-Apr-17,5973584257,TESCO - Seller_IST_1_2,5999,Other consumables,28.3,0,28.3
Resources,Financial Services,52865,SF-Financial Services Team,Supplies and Services,304403,Equipment and Materials,18-Apr-17,5973584261,TESCO - SDY LTD,5999,Other consumables,54.99,0,54.99
Resources,Financial Services,52865,SF-Financial Services Team,Supplies and Services,304403,Equipment and Materials,18-Apr-17,5973584263,TESCO - Tescopay,5999,Other consumables,25,0,25
Resources,Financial Services,52865,SF-Financial Services Team,Supplies and Services,304403,Equipment and Materials,18-Apr-17,5973584267,TESCO DIRECT,5999,Other consumables,9.8,0,9.8
Regeneration and Local Services,Direct Services,21242,Catering - County Hall,Supplies and Services,324117,Provisions,18-Apr-17,5973584287,WWW.ADELIEFOODS.CO.UK,5499,Catering costs - provisions,231.27,0,231.27
Regeneration and Local Services,Direct Services,21242,Catering - County Hall,Supplies and Services,324117,Provisions,18-Apr-17,5973584291,WWW.ADELIEFOODS.CO.UK,5499,Catering costs - provisions,107.55,0,107.55
Regeneration and Local Services,Direct Services,21242,Catering - County Hall,Supplies and Services,324117,Provisions,18-Apr-17,5973584297,WWW.ADELIEFOODS.CO.UK,5499,Catering costs - provisions,83.14,0,83.14
Regeneration and Local Services,Direct Services,21242,Catering - County Hall,Supplies and Services,324117,Provisions,18-Apr-17,5973584299,WWW.ADELIEFOODS.CO.UK,5499,Catering costs - provisions,52.82,0,52.82
Regeneration and Local Services,Direct Services,21242,Catering - County Hall,Supplies and Services,324117,Provisions,18-Apr-17,5973584301,FREEMAN CATERING BUTCH,5422,Catering costs - provisions,264.71,0,264.71
Regeneration and Local Services,Direct Services,21242,Catering - County Hall,Supplies and Services,324117,Provisions,18-Apr-17,5973584303,FREEMAN CATERING BUTCH,5422,Catering costs - provisions,15.6,0,15.6
Regeneration and Local Services,Direct Services,21242,Catering - County Hall,Supplies and Services,324117,Provisions,18-Apr-17,5973584307,JR HOLLAND FOODSERVICE,5422,Catering costs - provisions,33.1,0,33.1
Regeneration and Local Services,Direct Services,21242,Catering - County Hall,Supplies and Services,324117,Provisions,18-Apr-17,5973584311,JR HOLLAND FOODSERVICE,5422,Catering costs - provisions,13.16,0,13.16
Regeneration and Local Services,Culture & Sport,54812,Gala Theatre - Catering etc,Supplies and Services,324117,Provisions,18-Apr-17,5973584315,FREEMAN CATERING BUTCH,5422,Catering costs - provisions,51.22,0,51.22
Regeneration and Local Services,Economic Development and Housing,30749,Employability - Youth Contract,Transport,235057,Public Transport,18-Apr-17,5973584335,WWW.SIMPLYGO.COM,4131,Staff travelling,5,0,5
Adult and Health Services,Head of Adults,53812,Maple Court Extra,Supplies and Services,304403,Equipment and Materials,18-Apr-17,5973584341,TESCO - Heritage,5999,Other consumables,36.6,0,36.6
Regeneration and Local Services,Economic Development and Housing,30737,Durham Works Flexible Fund,Transport,230031,Contract Hire,18-Apr-17,5973584353,WWW.SIMPLYGO.COM,4131,Pupils-transport to play fields etc,6.4,0,6.4
Regeneration and Local Services,Economic Development and Housing,30737,Durham Works Flexible Fund,Supplies and Services,328041,Clothing Uniforms and Laundry,18-Apr-17,5973584357,ASDA STORES,5411,Clothing uniforms and laundry,38.05,0,38.05
Children and Young Peoples Services,Head of Looked After Provision Permanence and Care Leavers,85957,Secure Management,Supplies and Services,324117,Provisions,18-Apr-17,5973584365,TESCO STORES 6329,5411,Catering costs - provisions,72.87,0,72.87
Children and Young Peoples Services,Head of Looked After Provision Permanence and Care Leavers,85957,Secure Management,Supplies and Services,384999,Miscellaneous Expenses,18-Apr-17,5973584369,SOUTHPAW.CO.UK,5945,Other expenses,-140.4,0,-140.4
Regeneration and Local Services,Culture & Sport,11060,Hardwick Park Catering,Supplies and Services,324117,Provisions,18-Apr-17,5973584371,FREEMAN CATERING BUTCH,5422,Catering costs - provisions,117.92,0,117.92
Regeneration and Local Services,Culture & Sport,11060,Hardwick Park Catering,Supplies and Services,324117,Provisions,18-Apr-17,5973584375,FREEMAN CATERING BUTCH,5422,Catering costs - provisions,37.21,0,37.21
Regeneration and Local Services,Culture & Sport,11060,Hardwick Park Catering,Supplies and Services,324117,Provisions,18-Apr-17,5973584377,FREEMAN CATERING BUTCH,5422,Catering costs - provisions,13.14,0,13.14
Regeneration and Local Services,Culture & Sport,11060,Hardwick Park Catering,Supplies and Services,324117,Provisions,18-Apr-17,5973584379,JR HOLLAND FOODSERVICE,5422,Catering costs - provisions,77.57,0,77.57
Regeneration and Local Services,Culture & Sport,11060,Hardwick Park Catering,Supplies and Services,324117,Provisions,18-Apr-17,5973584383,JR HOLLAND FOODSERVICE,5422,Catering costs - provisions,1.98,0,1.98
Regeneration and Local Services,Direct Services,21234,Catering - Locomotion,Supplies and Services,324117,Provisions,18-Apr-17,5973584401,JR HOLLAND FOODSERVICE,5422,Catering costs - provisions,19.01,0,19.01
Regeneration and Local Services,Direct Services,10525,Catering - Green Lane,Supplies and Services,324117,Provisions,18-Apr-17,5973584405,WWW.ADELIEFOODS.CO.UK,5499,Catering costs - provisions,33.16,0,33.16
Regeneration and Local Services,Direct Services,10525,Catering - Green Lane,Supplies and Services,324117,Provisions,18-Apr-17,5973584407,WWW.ADELIEFOODS.CO.UK,5499,Catering costs - provisions,24.43,0,24.43
Regeneration and Local Services,Direct Services,10525,Catering - Green Lane,Supplies and Services,324117,Provisions,18-Apr-17,5973584409,FREEMAN CATERING BUTCH,5422,Catering costs - provisions,35.46,0,35.46
Regeneration and Local Services,Direct Services,10525,Catering - Green Lane,Supplies and Services,324117,Provisions,18-Apr-17,5973584413,JR HOLLAND FOODSERVICE,5422,Catering costs - provisions,20.59,0,20.59
Regeneration and Local Services,Direct Services,10525,Catering - Green Lane,Supplies and Services,324117,Provisions,18-Apr-17,5973584415,JR HOLLAND FOODSERVICE,5422,Catering costs - provisions,2.04,0,2.04
Regeneration and Local Services,Direct Services,10525,Catering - Green Lane,Supplies and Services,324117,Provisions,18-Apr-17,5973584417,WWW.ADELIEFOODS.CO.UK,5499,Catering costs - provisions,-10.65,0,-10.65
Children and Young Peoples Services,Head of Looked After Provision Permanence and Care Leavers,85333,Coxhoe Satelite Home,Supplies and Services,324117,Provisions,18-Apr-17,5973584439,TESCO STORES 2371,5411,Catering costs - provisions,91.07,0,91.07
Children and Young Peoples Services,Head of Looked After Provision Permanence and Care Leavers,85333,Coxhoe Satelite Home,Supplies and Services,324117,Provisions,18-Apr-17,5973584443,TESCO STORES 2371,5411,Catering costs - provisions,20,0,20
Regeneration and Local Services,Culture & Sport,54235,Bp Auckland Town Hall Cafe,Supplies and Services,324117,Provisions,18-Apr-17,5973584481,JR HOLLAND FOODSERVICE,5422,Catering costs - provisions,18.56,0,18.56
Regeneration and Local Services,Direct Services,21324,Catering - Meadowfield,Supplies and Services,324117,Provisions,18-Apr-17,5973584489,WWW.ADELIEFOODS.CO.UK,5499,Catering costs - provisions,44.65,0,44.65
Regeneration and Local Services,Direct Services,21324,Catering - Meadowfield,Supplies and Services,324117,Provisions,18-Apr-17,5973584491,WWW.ADELIEFOODS.CO.UK,5499,Catering costs - provisions,35.75,0,35.75
Regeneration and Local Services,Direct Services,21324,Catering - Meadowfield,Supplies and Services,324117,Provisions,18-Apr-17,5973584493,FREEMAN CATERING BUTCH,5422,Catering costs - provisions,92.33,0,92.33
Regeneration and Local Services,Direct Services,21324,Catering - Meadowfield,Supplies and Services,324117,Provisions,18-Apr-17,5973584497,FREEMAN CATERING BUTCH,5422,Catering costs - provisions,51.64,0,51.64
Regeneration and Local Services,Direct Services,21324,Catering - Meadowfield,Supplies and Services,324117,Provisions,18-Apr-17,5973584499,JR HOLLAND FOODSERVICE,5422,Catering costs - provisions,37.44,0,37.44
Regeneration and Local Services,Direct Services,21324,Catering - Meadowfield,Supplies and Services,324117,Provisions,18-Apr-17,5973584501,JR HOLLAND FOODSERVICE,5422,Catering costs - provisions,9.87,0,9.87
Regeneration and Local Services,Direct Services,10301,C&G - North Grounds Maintenance,Third Party Payments,430100,Rendered by Private Contractors,18-Apr-17,5973584503,JOHN WARREN (ANIMAL BY,7399,Payments to sub-contractors,9.6,1.6,8
Regeneration and Local Services,Culture & Sport,11191,Wellbeing4Life,Supplies and Services,304403,Equipment and Materials,18-Apr-17,5973584535,PAPERCHASE,5947,Other consumables,40.55,0,40.55
Regeneration and Local Services,Economic Development and Housing,30737,Durham Works Flexible Fund,Supplies and Services,324117,Provisions,18-Apr-17,5973584539,ASDA STORES,5411,Catering costs - provisions,40.84,0,40.84
Regeneration and Local Services,Economic Development and Housing,30737,Durham Works Flexible Fund,Supplies and Services,324117,Provisions,18-Apr-17,5973584541,ONE STOP 2969,5411,Catering costs - provisions,59,0,59
Children and Young Peoples Services,Head of Early Help Assessment and Safeguarding,74000,TTF-Attachment and Results,Supplies and Services,324117,Provisions,18-Apr-17,5973584553,ASDA GEORGE COM LEEDS,5411,Catering costs - provisions,146.95,0,146.95
Children and Young Peoples Services,Head of Early Help Assessment and Safeguarding,74000,TTF-Attachment and Results,Supplies and Services,304403,Equipment and Materials,18-Apr-17,5973584557,TESCO DIRECT,5999,Other consumables,126.95,0,126.95
Resources,Legal & Democratic Services,69556,Electoral Registration,Supplies and Services,332047,Printing Stationery and Gen Off Exps,18-Apr-17,5973584559,Amazon UK Marketplace,5942,Stationery,64.35,0,64.35
Resources,Legal & Democratic Services,69556,Electoral Registration,Supplies and Services,332047,Printing Stationery and Gen Off Exps,18-Apr-17,5973584563,Amazon UK Marketplace,5942,Stationery,21.03,0,21.03
Resources,Legal & Democratic Services,69556,Electoral Registration,Supplies and Services,332047,Printing Stationery and Gen Off Exps,18-Apr-17,5973584567,Amazon UK Marketplace,5942,Stationery,21.03,0,21.03
Resources,Legal & Democratic Services,69556,Electoral Registration,Supplies and Services,332047,Printing Stationery and Gen Off Exps,18-Apr-17,5973584569,Amazon UK Marketplace,5942,Stationery,21.04,0,21.04
Regeneration and Local Services,Economic Development and Housing,31500,Housing Solutions - Core Team,Supplies and Services,338064,Services,18-Apr-17,5973584571,DISCLOSURE SCOT,9399,Disclosure & Barring (DBS) Fees,25,0,25
Regeneration and Local Services,Direct Services,21235,Catering - Wharton Park,Supplies and Services,324117,Provisions,18-Apr-17,5973584575,JR HOLLAND FOODSERVICE,5422,Catering costs - provisions,35.61,0,35.61
Regeneration and Local Services,Culture & Sport,10605,Woodhouse Close Leisure Complex,Supplies and Services,324117,Provisions,18-Apr-17,5973584579,FREEMAN CATERING BUTCH,5422,Catering costs - provisions,66.4,0,66.4
Regeneration and Local Services,Economic Development and Housing,30554,International Relations,Transport,235057,Public Transport,18-Apr-17,5973584615,PRINCE BISHOP SHOPPING,7523,Staff travelling,2.1,0,2.1
Regeneration and Local Services,Culture & Sport,54813,Gala Theatre - Technical,Supplies and Services,304403,Equipment and Materials,18-Apr-17,5977511589,CPC,5065,Other consumables,53.76,8.96,44.8
Regeneration and Local Services,Direct Services,21242,Catering - County Hall,Supplies and Services,324117,Provisions,18-Apr-17,6036408087,BATLEYS PERTH,5300,Catering costs - provisions,257.46,42.91,214.55
Regeneration and Local Services,Direct Services,21242,Catering - County Hall,Supplies and Services,324117,Provisions,18-Apr-17,000006036408087 - 1,BATLEYS PERTH,5300,Catering costs - provisions,171.56,,171.56
Regeneration and Local Services,Culture & Sport,11060,Hardwick Park Catering,Supplies and Services,324117,Provisions,18-Apr-17,6036408343,BATLEYS PERTH,5300,Catering costs - provisions,119.88,19.98,99.9
Regeneration and Local Services,Culture & Sport,11060,Hardwick Park Catering,Supplies and Services,324117,Provisions,18-Apr-17,000006036408343 - 1,BATLEYS PERTH,5300,Catering costs - provisions,339.84,,339.84
Regeneration and Local Services,Direct Services,21234,Catering - Locomotion,Supplies and Services,324117,Provisions,18-Apr-17,6036408447,BATLEYS PERTH,5300,Catering costs - provisions,192.54,32.09,160.45
Regeneration and Local Services,Direct Services,21234,Catering - Locomotion,Supplies and Services,324117,Provisions,18-Apr-17,000006036408447 - 1,BATLEYS PERTH,5300,Catering costs - provisions,34,,34
Regeneration and Local Services,Direct Services,21234,Catering - Locomotion,Supplies and Services,324117,Provisions,18-Apr-17,6036408451,BATLEYS PERTH,5300,Catering costs - provisions,78.06,13.01,65.05
Regeneration and Local Services,Direct Services,21234,Catering - Locomotion,Supplies and Services,324117,Provisions,18-Apr-17,000006036408451 - 1,BATLEYS PERTH,5300,Catering costs - provisions,0.04,,0.04
Regeneration and Local Services,Direct Services,10525,Catering - Green Lane,Supplies and Services,324117,Provisions,18-Apr-17,6036408487,BATLEYS PERTH,5300,Catering costs - provisions,56.58,9.43,47.15
Regeneration and Local Services,Direct Services,10525,Catering - Green Lane,Supplies and Services,324117,Provisions,18-Apr-17,000006036408487 - 1,BATLEYS PERTH,5300,Catering costs - provisions,10.02,,10.02
Regeneration and Local Services,Direct Services,21324,Catering - Meadowfield,Supplies and Services,324117,Provisions,18-Apr-17,6036408709,BATLEYS PERTH,5300,Catering costs - provisions,132.36,22.06,110.3
Regeneration and Local Services,Direct Services,21324,Catering - Meadowfield,Supplies and Services,324117,Provisions,18-Apr-17,000006036408709 - 1,BATLEYS PERTH,5300,Catering costs - provisions,54.3,,54.3
Children and Young Peoples Services,Head of Education,71801,Selby Cottage Childcare Centre,Supplies and Services,324117,Provisions,19-Apr-17,5977511527,ASDA HOME SHOPPING,5411,Catering costs - provisions,31.04,0,31.04
Children and Young Peoples Services,Head of Education,71801,Selby Cottage Childcare Centre,Supplies and Services,324117,Provisions,19-Apr-17,5977511529,ASDA HOME SHOPPING,5411,Catering costs - provisions,105.43,0,105.43
Children and Young Peoples Services,Head of Early Help Assessment and Safeguarding,85622,Families First Ferryhill,Supplies and Services,342033,Computers and Communications,19-Apr-17,5977511533,Amazon UK Marketplace,5942,Computer hardware,74.99,0,74.99
Resources,I.C.T. Services,65481,Technical Services,Supplies and Services,342033,Computers and Communications,19-Apr-17,5977511535,AMAZON UK RETAIL AMAZO,5999,Computer hardware,159.98,0,159.98
Children and Young Peoples Services,Head of Early Help Assessment and Safeguarding,88033,Durham 0 - 5,Supplies and Services,304259,Equipment and Materials,19-Apr-17,5977511537,GRO HM PASSPORT OFFICE,9399,Equipment-purchase and rental,18.5,0,18.5
Children and Young Peoples Services,Head of Early Help Assessment and Safeguarding,88033,Durham 0 - 5,Supplies and Services,304259,Equipment and Materials,19-Apr-17,5977511541,GRO HM PASSPORT OFFICE,9399,Equipment-purchase and rental,9.25,0,9.25
Children and Young Peoples Services,Head of Looked After Provision Permanence and Care Leavers,85957,Secure Management,Supplies and Services,328041,Clothing Uniforms and Laundry,19-Apr-17,5977511543,WWW.NIKESTORE.COM,5691,Clothing uniforms and laundry,60,10,50
Regeneration and Local Services,Economic Development and Housing,31576,B& B - Temp Accom,Supplies and Services,364320,Grants to Voluntary Organisations,19-Apr-17,5977511561,DAYS INN,7011,Accommodation assistance,55,0,55
Children and Young Peoples Services,Head of Education,79599,Psychological-HQ,Supplies and Services,384999,Miscellaneous Expenses,19-Apr-17,5977511567,LEGO EDUCATION,5945,Other expenses,47.94,0,47.94
Regeneration and Local Services,Economic Development and Housing,30749,Employability - Youth Contract,Transport,235057,Public Transport,19-Apr-17,5977511585,WWW.SIMPLYGO.COM,4131,Staff travelling,6.4,0,6.4
Children and Young Peoples Services,Head of Looked After Provision Permanence and Care Leavers,85332,Middlestone Moor CU,Supplies and Services,324117,Provisions,19-Apr-17,5977511591,TESCO STORES 2371,5411,Catering costs - provisions,76.11,0,76.11
Regeneration and Local Services,Economic Development and Housing,30554,International Relations,Supplies and Services,384437,Miscellaneous Expenses,19-Apr-17,5977511599,PRINCE BISHOP SHOPPING,7523,International exchange,2.1,0,2.1
Children and Young Peoples Services,Head of Education,74973,HI Resources Base - Fund,Supplies and Services,372009,Subscriptions,19-Apr-17,5977511615,HALL HILL FARM,7299,Subscriptions,257,0,257
Children and Young Peoples Services,Head of Early Help Assessment and Safeguarding,71443,Stanley One Point Hub,Supplies and Services,324117,Provisions,19-Apr-17,5977511633,ASDA GEORGE COM LEEDS,5411,Catering costs - provisions,147.45,0,147.45
Regeneration and Local Services,Direct Services,10367,C&G - South Grounds Maintenance,Supplies and Services,304221,Equipment and Materials,19-Apr-17,5977511655,WWW.DIAMONDINDUSTRIAL.,5085,Direct materials,13.09,2.18,10.91
Regeneration and Local Services,Economic Development and Housing,31576,B& B - Temp Accom,Supplies and Services,364320,Grants to Voluntary Organisations,19-Apr-17,5977511661,DAYS INN,7011,Accommodation assistance,50,8.33,41.67
Regeneration and Local Services,Economic Development and Housing,31576,B& B - Temp Accom,Supplies and Services,364320,Grants to Voluntary Organisations,19-Apr-17,5977511663,DAYS INN,7011,Accommodation assistance,99,16.5,82.5
Children and Young Peoples Services,Head of Early Help Assessment and Safeguarding,88001,Peterlee Locality,Supplies and Services,324117,Provisions,19-Apr-17,5977511685,ASDA STORES LTD,5411,Catering costs - provisions,9.97,0,9.97
Regeneration and Local Services,Direct Services,10301,C&G - North Grounds Maintenance,Supplies and Services,304999,Equipment and Materials,19-Apr-17,5977511693,GUSTHARTS CHAINSAW CTR,7699,Misc equipment tools and materials,28.27,4.71,23.56
Regeneration and Local Services,Direct Services,10301,C&G - North Grounds Maintenance,Supplies and Services,304259,Equipment and Materials,19-Apr-17,5977511697,B & Q 1343,5211,Equipment-purchase and rental,110,18.33,91.67
Children and Young Peoples Services,Head of Early Help Assessment and Safeguarding,74000,TTF-Attachment and Results,Supplies and Services,324117,Provisions,19-Apr-17,5977511721,ASDA GEORGE COM LEEDS,5411,Catering costs - provisions,125,0,125
Regeneration and Local Services,Economic Development and Housing,30676,Business Development - Durham City Promotions,Supplies and Services,384956,Miscellaneous Expenses,19-Apr-17,5977511725,HELIGUY.COM,5945,Licences,700.56,0,700.56
Resources,Internal Audit and Insurance,65104,Internal Audit,Supplies and Services,352001,Conference Expenses,19-Apr-17,5977511729,PAYPAL TEICCAF,7392,Conferencesseminars fees etc,348,0,348
Resources,I.C.T. Services,65487,ICT Telephony Recharges,Supplies and Services,344033,Telephones,19-Apr-17,5977511731,Amazon UK Marketplace,5942,Telephones general-all costs,49.9,0,49.9
Resources,I.C.T. Services,65487,ICT Telephony Recharges,Supplies and Services,344033,Telephones,19-Apr-17,5977511733,Amazon UK Marketplace,5942,Telephones general-all costs,149.7,0,149.7
Resources,Legal & Democratic Services,66564,Lord Lieutenancy,Supplies and Services,336005,Advertising,19-Apr-17,5977511737,STATIONERY OFFICE BOOK,5942,Advertising other than for staff,51,8.5,42.5
Regeneration and Local Services,Spatial Policy Planning Assets & Environment,31200,North Pennines Core,Supplies and Services,312011,Newspapers Books and Periodicals,19-Apr-17,5977511753,Amazon UK Marketplace,5942,Books-school library,32.98,0,32.98
Children and Young Peoples Services,Head of Early Help Assessment and Safeguarding,88083,Ferryhill 0 - 5,Supplies and Services,328041,Clothing Uniforms and Laundry,19-Apr-17,5981847375,WWW.ARGOS.CO.UK,5310,Clothing uniforms and laundry,44.9,0,44.9
Regeneration and Local Services,Direct Services,21242,Catering - County Hall,Supplies and Services,324117,Provisions,19-Apr-17,5986774561,JR HOLLAND FOODSERVICE,5422,Catering costs - provisions,8.58,0,8.58
Regeneration and Local Services,Culture & Sport,11060,Hardwick Park Catering,Supplies and Services,324117,Provisions,19-Apr-17,5986774655,JR HOLLAND FOODSERVICE,5422,Catering costs - provisions,75.09,0,75.09
Regeneration and Local Services,Culture & Sport,10605,Woodhouse Close Leisure Complex,Supplies and Services,324117,Provisions,19-Apr-17,5986774853,JR HOLLAND FOODSERVICE,5422,Catering costs - provisions,73.59,0,73.59
Children and Young Peoples Services,Head of Early Help Assessment and Safeguarding,85555,Child Protection Team Peterlee,Supplies and Services,304259,Equipment and Materials,19-Apr-17,5986774881,HARTLEPOOL BC CNP,9399,Equipment-purchase and rental,42.76,0,42.76
Children and Young Peoples Services,Head of Early Help Assessment and Safeguarding,85555,Child Protection Team Peterlee,Supplies and Services,304259,Equipment and Materials,19-Apr-17,5986774883,HARTLEPOOL BC CNP,9399,Equipment-purchase and rental,42.76,0,42.76
Children and Young Peoples Services,Head of Early Help Assessment and Safeguarding,85555,Child Protection Team Peterlee,Supplies and Services,304259,Equipment and Materials,19-Apr-17,5986774885,HARTLEPOOL BC CNP,9399,Equipment-purchase and rental,-42.76,0,-42.76
Children and Young Peoples Services,Head of Early Help Assessment and Safeguarding,85555,Child Protection Team Peterlee,Supplies and Services,304259,Equipment and Materials,19-Apr-17,5986774887,HARTLEPOOL BC CNP,9399,Equipment-purchase and rental,-42.76,0,-42.76
Regeneration and Local Services,Culture & Sport,11060,Hardwick Park Catering,Supplies and Services,324117,Provisions,19-Apr-17,6036408401,BATLEYS PERTH,5300,Catering costs - provisions,-6.5,0,-6.5
Regeneration and Local Services,Direct Services,21242,Catering - County Hall,Supplies and Services,304259,Equipment and Materials,20-Apr-17,5981847175,WILKO RETAIL LIMIT,5722,Equipment-purchase and rental,84,0,84
Regeneration and Local Services,Direct Services,21242,Catering - County Hall,Supplies and Services,324117,Provisions,20-Apr-17,5981847179,TESCO STORES 2916,5411,Catering costs - provisions,24,0,24
Regeneration and Local Services,Direct Services,21242,Catering - County Hall,Supplies and Services,324117,Provisions,20-Apr-17,5981847181,TESCO STORES 2916,5411,Catering costs - provisions,7.96,0,7.96
Children and Young Peoples Services,Head of Education,71801,Selby Cottage Childcare Centre,Supplies and Services,324117,Provisions,20-Apr-17,5981847183,TESCO STORES 2278,5411,Catering costs - provisions,26.2,0,26.2
Children and Young Peoples Services,Head of Education,71801,Selby Cottage Childcare Centre,Supplies and Services,324117,Provisions,20-Apr-17,5981847187,TESCO STORES 2278,5411,Catering costs - provisions,22.41,0,22.41
Children and Young Peoples Services,Head of Looked After Provision Permanence and Care Leavers,85342,9 Cedar Drive Aycliffe,Supplies and Services,328041,Clothing Uniforms and Laundry,20-Apr-17,5981847201,DARLINGTON,5310,Clothing uniforms and laundry,109.99,18.33,91.66
Regeneration and Local Services,Direct Services,10367,C&G - South Grounds Maintenance,Supplies and Services,304221,Equipment and Materials,20-Apr-17,5981847209,ARCO LTD,5085,Direct materials,360,60,300
Children and Young Peoples Services,Head of Early Help Assessment and Safeguarding,71440,Barnard Castle One Point Hub,Supplies and Services,312011,Newspapers Books and Periodicals,20-Apr-17,5981847223,Amazon UK Marketplace,5942,Books-school library,15.44,0,15.44
Children and Young Peoples Services,Head of Early Help Assessment and Safeguarding,71440,Barnard Castle One Point Hub,Supplies and Services,308011,Furniture,20-Apr-17,5981847227,FRANKS THE FLOORING ST,5713,Furniture repair and replacement,150,0,150
Regeneration and Local Services,Direct Services,10367,C&G - South Grounds Maintenance,Supplies and Services,304259,Equipment and Materials,20-Apr-17,5981847231,BTL TIMBER AND HARDWAR,5099,Equipment-purchase and rental,170.1,28.35,141.75
Regeneration and Local Services,Economic Development and Housing,31576,B& B - Temp Accom,Supplies and Services,364320,Grants to Voluntary Organisations,20-Apr-17,5981847235,DAYS INN,7011,Accommodation assistance,55,0,55
Regeneration and Local Services,Economic Development and Housing,30749,Employability - Youth Contract,Supplies and Services,324117,Provisions,20-Apr-17,5981847253,ASDA STORES LTD,5411,Catering costs - provisions,38.05,0,38.05
Regeneration and Local Services,Culture & Sport,54813,Gala Theatre - Technical,Supplies and Services,304221,Equipment and Materials,20-Apr-17,5981847269,MONSTER PEACOCK LTD,7394,Direct materials,90,15,75
Resources,Legal & Democratic Services,67910,Democratic Representation,Supplies and Services,384960,Miscellaneous Expenses,20-Apr-17,5981847271,PRINCE BISHOP SHOPPING,7523,National and major functions,2.1,0,2.1
Resources,Legal & Democratic Services,67910,Democratic Representation,Supplies and Services,384960,Miscellaneous Expenses,20-Apr-17,5981847275,MARKS&SPENCER PLC,5411,National and major functions,18,0,18
Resources,Legal & Democratic Services,67910,Democratic Representation,Supplies and Services,384960,Miscellaneous Expenses,20-Apr-17,5981847277,EWM,5691,National and major functions,21.98,0,21.98
Regeneration and Local Services,Direct Services,10301,C&G - North Grounds Maintenance,Supplies and Services,304403,Equipment and Materials,20-Apr-17,5981847281,BESCOL,5231,Other consumables,32.1,5.35,26.75
Regeneration and Local Services,Culture & Sport,54815,Gala Theatre Stage School,Supplies and Services,328041,Clothing Uniforms and Laundry,20-Apr-17,5981847295,NEW LOOK 2036,5621,Clothing uniforms and laundry,25.97,0,25.97
Regeneration and Local Services,Economic Development and Housing,30732,Rural Employability Project - South Durham,Employees,40149,Recruitment Instruction and Training,20-Apr-17,5981847321,EASY AS HGV LTD,8299,Training-all costs,202.98,33.83,169.15
Children and Young Peoples Services,Head of Looked After Provision Permanence and Care Leavers,85333,Coxhoe Satelite Home,Supplies and Services,324117,Provisions,20-Apr-17,5981847325,TESCO STORES 2371,5411,Catering costs - provisions,135.16,0,135.16
Children and Young Peoples Services,Head of Looked After Provision Permanence and Care Leavers,85333,Coxhoe Satelite Home,Supplies and Services,324117,Provisions,20-Apr-17,5981847329,TESCO STORES 2371,5411,Catering costs - provisions,16.85,0,16.85
Regeneration and Local Services,Economic Development and Housing,31576,B& B - Temp Accom,Supplies and Services,364320,Grants to Voluntary Organisations,20-Apr-17,5981847347,DAYS INN,7011,Accommodation assistance,55,9.17,45.83
Regeneration and Local Services,Culture & Sport,54399,Local Delivery-Libraries,Supplies and Services,312011,Newspapers Books and Periodicals,20-Apr-17,5981847359,Amazon UK Marketplace,5942,Books-school library,2.81,0,2.81
Regeneration and Local Services,Culture & Sport,54399,Local Delivery-Libraries,Supplies and Services,312011,Newspapers Books and Periodicals,20-Apr-17,5981847361,Amazon EU,5969,Books-school library,21.98,0,21.98
Children and Young Peoples Services,Head of Early Help Assessment and Safeguarding,88083,Ferryhill 0 - 5,Supplies and Services,324117,Provisions,20-Apr-17,5981847379,CO-OP GROUP 010518,5411,Catering costs - provisions,43.33,0,43.33
Children and Young Peoples Services,Head of Early Help Assessment and Safeguarding,88083,Ferryhill 0 - 5,Supplies and Services,324117,Provisions,20-Apr-17,5981847381,CO-OP GROUP 010518,5411,Catering costs - provisions,20,0,20
Transformation and Partnerships,Comms & Information Management,60270,Communications and Marketing,Supplies and Services,372009,Subscriptions,20-Apr-17,5981847385,HOOTSUITE MEDIA INC.,7399,Subscriptions,5.63,0,5.63
Children and Young Peoples Services,Head of Early Help Assessment and Safeguarding,71404,Laurel Avenue Childrens Centre,Supplies and Services,304999,Equipment and Materials,20-Apr-17,5981847397,MINI MOOS FARM,7032,Misc equipment tools and materials,402,0,402
Children and Young Peoples Services,Head of Early Help Assessment and Safeguarding,71404,Laurel Avenue Childrens Centre,Supplies and Services,304999,Equipment and Materials,20-Apr-17,5981847401,MINI MOOS FARM,7032,Misc equipment tools and materials,36,0,36
Children and Young Peoples Services,Head of Looked After Provision Permanence and Care Leavers,85957,Secure Management,Supplies and Services,304259,Equipment and Materials,20-Apr-17,5986774481,SPORTSDIRECT.COM,5941,Equipment-purchase and rental,68.96,11.49,57.47
Regeneration and Local Services,Transport and Contracted Services,31701,Care Connect All Localities,Supplies and Services,304259,Equipment and Materials,20-Apr-17,5986774781,WWW.ACTIVEMOBILITY.CO.,8099,Equipment-purchase and rental,74,12.33,61.67
Regeneration and Local Services,Culture & Sport,54812,Gala Theatre - Catering etc,Supplies and Services,324117,Provisions,20-Apr-17,6036408139,BATLEYS PERTH,5300,Catering costs - provisions,91.92,15.32,76.6
Regeneration and Local Services,Culture & Sport,54812,Gala Theatre - Catering etc,Supplies and Services,324117,Provisions,20-Apr-17,000006036408139 - 1,BATLEYS PERTH,5300,Catering costs - provisions,54.68,,54.68
Regeneration and Local Services,Culture & Sport,54812,Gala Theatre - Catering etc,Supplies and Services,324117,Provisions,20-Apr-17,6036408141,BATLEYS PERTH,5300,Catering costs - provisions,28.87,4.81,24.06
Regeneration and Local Services,Culture & Sport,11060,Hardwick Park Catering,Supplies and Services,324117,Provisions,20-Apr-17,6036408349,BATLEYS PERTH,5300,Catering costs - provisions,471.42,78.57,392.85
Regeneration and Local Services,Culture & Sport,11060,Hardwick Park Catering,Supplies and Services,324117,Provisions,20-Apr-17,000006036408349 - 1,BATLEYS PERTH,5300,Catering costs - provisions,245.6,,245.6
Regeneration and Local Services,Culture & Sport,11060,Hardwick Park Catering,Supplies and Services,324117,Provisions,20-Apr-17,6036408359,BATLEYS PERTH,5300,Catering costs - provisions,130.14,21.69,108.45
Regeneration and Local Services,Culture & Sport,11060,Hardwick Park Catering,Supplies and Services,324117,Provisions,20-Apr-17,000006036408359 - 1,BATLEYS PERTH,5300,Catering costs - provisions,22.27,,22.27
Regeneration and Local Services,Direct Services,10525,Catering - Green Lane,Supplies and Services,324117,Provisions,20-Apr-17,6036408495,BATLEYS PERTH,5300,Catering costs - provisions,-8.4,-1.4,-7
Regeneration and Local Services,Direct Services,21235,Catering - Wharton Park,Supplies and Services,324117,Provisions,20-Apr-17,6036408835,BATLEYS PERTH,5300,Catering costs - provisions,299.4,49.9,249.5
Regeneration and Local Services,Direct Services,21235,Catering - Wharton Park,Supplies and Services,324117,Provisions,20-Apr-17,000006036408835 - 1,BATLEYS PERTH,5300,Catering costs - provisions,16.42,,16.42
Regeneration and Local Services,Culture & Sport,10605,Woodhouse Close Leisure Complex,Supplies and Services,324117,Provisions,20-Apr-17,6036408877,BATLEYS PERTH,5300,Catering costs - provisions,53.22,8.87,44.35
Regeneration and Local Services,Culture & Sport,10605,Woodhouse Close Leisure Complex,Supplies and Services,324117,Provisions,20-Apr-17,000006036408877 - 1,BATLEYS PERTH,5300,Catering costs - provisions,71.15,,71.15
Transformation and Partnerships,Comms & Information Management,60270,Communications and Marketing,Supplies and Services,372009,Subscriptions,21-Apr-17,5981847387,HOOTSUITE MEDIA INC.,7399,Subscriptions,0.15,0,0.15
Regeneration and Local Services,Direct Services,21242,Catering - County Hall,Supplies and Services,324117,Provisions,21-Apr-17,5986774417,TESCO STORES 2916,5411,Catering costs - provisions,25.75,0,25.75
Children and Young Peoples Services,Head of Education,71801,Selby Cottage Childcare Centre,Supplies and Services,304259,Equipment and Materials,21-Apr-17,5986774431,WILKO RETAIL LIMIT,5722,Equipment-purchase and rental,9.4,0,9.4
Children and Young Peoples Services,Head of Looked After Provision Permanence and Care Leavers,85957,Secure Management,Supplies and Services,304221,Equipment and Materials,21-Apr-17,5986774469,WWW.SIMPLYPLASTICS.COM,5085,Direct materials,264.23,44.04,220.19
Children and Young Peoples Services,Head of Looked After Provision Permanence and Care Leavers,85957,Secure Management,Supplies and Services,324117,Provisions,21-Apr-17,5986774471,TESCO STORES 6329,5411,Catering costs - provisions,295.36,0,295.36
Children and Young Peoples Services,Head of Looked After Provision Permanence and Care Leavers,85342,9 Cedar Drive Aycliffe,Supplies and Services,324117,Provisions,21-Apr-17,5986774507,ASDA HOME SHOPPING,5411,Catering costs - provisions,188.2,0,188.2
Children and Young Peoples Services,Head of Looked After Provision Permanence and Care Leavers,85342,9 Cedar Drive Aycliffe,Supplies and Services,304259,Equipment and Materials,21-Apr-17,5986774511,WWW.FOOTASYLUM.COM,5941,Equipment-purchase and rental,40.99,0,40.99
Children and Young Peoples Services,Head of Early Help Assessment and Safeguarding,71440,Barnard Castle One Point Hub,Supplies and Services,312011,Newspapers Books and Periodicals,21-Apr-17,5986774539,Amazon UK Marketplace,5942,Books-school library,8.95,0,8.95
Regeneration and Local Services,Direct Services,21242,Catering - County Hall,Supplies and Services,324117,Provisions,21-Apr-17,5986774543,JR HOLLAND FOODSERVICE,5422,Catering costs - provisions,131.67,0,131.67
Regeneration and Local Services,Direct Services,21242,Catering - County Hall,Supplies and Services,324117,Provisions,21-Apr-17,5986774549,JR HOLLAND FOODSERVICE,5422,Catering costs - provisions,128.67,0,128.67
Regeneration and Local Services,Direct Services,21242,Catering - County Hall,Supplies and Services,324117,Provisions,21-Apr-17,5986774555,JR HOLLAND FOODSERVICE,5422,Catering costs - provisions,44.3,0,44.3
Regeneration and Local Services,Direct Services,21242,Catering - County Hall,Supplies and Services,324117,Provisions,21-Apr-17,5986774559,JR HOLLAND FOODSERVICE,5422,Catering costs - provisions,31.35,0,31.35
Regeneration and Local Services,Direct Services,21242,Catering - County Hall,Supplies and Services,324117,Provisions,21-Apr-17,5986774565,JR HOLLAND FOODSERVICE,5422,Catering costs - provisions,8.58,0,8.58
Regeneration and Local Services,Culture & Sport,54812,Gala Theatre - Catering etc,Supplies and Services,324117,Provisions,21-Apr-17,5986774569,JR HOLLAND FOODSERVICE,5422,Catering costs - provisions,68,0,68
Regeneration and Local Services,Culture & Sport,54812,Gala Theatre - Catering etc,Supplies and Services,324117,Provisions,21-Apr-17,5986774571,JR HOLLAND FOODSERVICE,5422,Catering costs - provisions,15.66,0,15.66
Regeneration and Local Services,Culture & Sport,11219,Office Services,Supplies and Services,304999,Equipment and Materials,21-Apr-17,5986774585,GOOGLE ADWS2420292471,5968,Misc equipment tools and materials,44.83,0,44.83
Regeneration and Local Services,Economic Development and Housing,30737,Durham Works Flexible Fund,Employees,40029,Recruitment Instruction and Training,21-Apr-17,5986774607,ARRIVA NORTH EAST,4131,Interview expenses,25,0,25
Regeneration and Local Services,Economic Development and Housing,30737,Durham Works Flexible Fund,Employees,40029,Recruitment Instruction and Training,21-Apr-17,5986774611,ARRIVA NORTH EAST,4131,Interview expenses,14,0,14
Regeneration and Local Services,Economic Development and Housing,30737,Durham Works Flexible Fund,Employees,40029,Recruitment Instruction and Training,21-Apr-17,5986774613,ARRIVA NORTH EAST,4131,Interview expenses,25,0,25
Regeneration and Local Services,Spatial Policy Planning Assets & Environment,31204,North Pennines Nectarworks,Supplies and Services,324117,Provisions,21-Apr-17,5986774619,SCOTMID CO-OP STANHOPE,5411,Catering costs - provisions,5.39,0,5.39
Regeneration and Local Services,Economic Development and Housing,30737,Durham Works Flexible Fund,Transport,230031,Contract Hire,21-Apr-17,5986774633,ARRIVA NORTH EAST,4131,Pupils-transport to play fields etc,17.2,0,17.2
Regeneration and Local Services,Direct Services,10301,C&G - North Grounds Maintenance,Supplies and Services,304259,Equipment and Materials,21-Apr-17,5986774647,SCREWFIX CHESTER L,5211,Equipment-purchase and rental,18.22,0,18.22
Regeneration and Local Services,Culture & Sport,11060,Hardwick Park Catering,Supplies and Services,324117,Provisions,21-Apr-17,5986774651,JR HOLLAND FOODSERVICE,5422,Catering costs - provisions,144.01,0,144.01
Regeneration and Local Services,Culture & Sport,11060,Hardwick Park Catering,Supplies and Services,324117,Provisions,21-Apr-17,5986774659,JR HOLLAND FOODSERVICE,5422,Catering costs - provisions,75.09,0,75.09
Regeneration and Local Services,Culture & Sport,11060,Hardwick Park Catering,Supplies and Services,324117,Provisions,21-Apr-17,5986774661,JR HOLLAND FOODSERVICE,5422,Catering costs - provisions,54.56,0,54.56
Regeneration and Local Services,Culture & Sport,11060,Hardwick Park Catering,Supplies and Services,324117,Provisions,21-Apr-17,5986774665,JR HOLLAND FOODSERVICE,5422,Catering costs - provisions,51.51,0,51.51
Regeneration and Local Services,Culture & Sport,11060,Hardwick Park Catering,Supplies and Services,324117,Provisions,21-Apr-17,5986774669,JR HOLLAND FOODSERVICE,5422,Catering costs - provisions,39.78,0,39.78
Regeneration and Local Services,Culture & Sport,11060,Hardwick Park Catering,Supplies and Services,324117,Provisions,21-Apr-17,5986774671,JR HOLLAND FOODSERVICE,5422,Catering costs - provisions,32.22,0,32.22
Regeneration and Local Services,Culture & Sport,11060,Hardwick Park Catering,Supplies and Services,324117,Provisions,21-Apr-17,5986774675,JR HOLLAND FOODSERVICE,5422,Catering costs - provisions,25.66,0,25.66
Regeneration and Local Services,Spatial Policy Planning Assets & Environment,31200,North Pennines Core,Supplies and Services,348037,Subsistence,21-Apr-17,5986774677,J38 CAFE,5812,Subsistence,11.8,0,11.8
Regeneration and Local Services,Direct Services,21234,Catering - Locomotion,Supplies and Services,324117,Provisions,21-Apr-17,5986774687,JR HOLLAND FOODSERVICE,5422,Catering costs - provisions,59.39,0,59.39
Regeneration and Local Services,Direct Services,21234,Catering - Locomotion,Supplies and Services,324117,Provisions,21-Apr-17,5986774689,JR HOLLAND FOODSERVICE,5422,Catering costs - provisions,55.63,0,55.63
Regeneration and Local Services,Direct Services,21234,Catering - Locomotion,Supplies and Services,324117,Provisions,21-Apr-17,5986774693,JR HOLLAND FOODSERVICE,5422,Catering costs - provisions,2.75,0,2.75
Regeneration and Local Services,Direct Services,10525,Catering - Green Lane,Supplies and Services,324117,Provisions,21-Apr-17,5986774701,JR HOLLAND FOODSERVICE,5422,Catering costs - provisions,56.95,0,56.95
Children and Young Peoples Services,Head of Looked After Provision Permanence and Care Leavers,85352,Tow Law CU,Supplies and Services,324117,Provisions,21-Apr-17,5986774707,TESCO STORES 2371,5411,Catering costs - provisions,239.91,0,239.91
Regeneration and Local Services,Economic Development and Housing,31576,B& B - Temp Accom,Supplies and Services,364320,Grants to Voluntary Organisations,21-Apr-17,5986774717,TRAVELODGE,3615,Accommodation assistance,138,23,115
Regeneration and Local Services,Economic Development and Housing,31576,B& B - Temp Accom,Supplies and Services,364320,Grants to Voluntary Organisations,21-Apr-17,5986774719,TRAVELODGE,3615,Accommodation assistance,168,28,140
Regeneration and Local Services,Economic Development and Housing,30749,Employability - Youth Contract,Transport,230031,Contract Hire,21-Apr-17,5986774723,WWW.SIMPLYGO.COM,4131,Pupils-transport to play fields etc,18.9,0,18.9
Regeneration and Local Services,Economic Development and Housing,30749,Employability - Youth Contract,Transport,230031,Contract Hire,21-Apr-17,5986774725,ARRIVA NORTH EAST,4131,Pupils-transport to play fields etc,17.7,0,17.7
Regeneration and Local Services,Direct Services,10900,Fleet - Meadowfield Fleet,Premises,115125,Repairs to Grounds,21-Apr-17,5986774745,HODDY`S RECOVERY,7538,General maintenance,459,0,459
Regeneration and Local Services,Direct Services,10900,Fleet - Meadowfield Fleet,Transport,235005,Public Transport,21-Apr-17,5986774747,HODDY`S RECOVERY,7538,Contract tickets,-153,0,-153
Regeneration and Local Services,Economic Development and Housing,31576,B& B - Temp Accom,Supplies and Services,364320,Grants to Voluntary Organisations,21-Apr-17,5986774753,DAYS INN,7011,Accommodation assistance,165,27.5,137.5
Regeneration and Local Services,Economic Development and Housing,31576,B& B - Temp Accom,Supplies and Services,364320,Grants to Voluntary Organisations,21-Apr-17,5986774757,DAYS INN,7011,Accommodation assistance,165,27.5,137.5
Regeneration and Local Services,Economic Development and Housing,31576,B& B - Temp Accom,Supplies and Services,364320,Grants to Voluntary Organisations,21-Apr-17,5986774761,DAYS INN,7011,Accommodation assistance,-106,-17.67,-88.33
Regeneration and Local Services,Economic Development and Housing,31576,B& B - Temp Accom,Supplies and Services,364320,Grants to Voluntary Organisations,21-Apr-17,5986774763,PREMIER INN,3811,Accommodation assistance,175,29.17,145.83
Regeneration and Local Services,Culture & Sport,54235,Bp Auckland Town Hall Cafe,Supplies and Services,324117,Provisions,21-Apr-17,5986774777,JR HOLLAND FOODSERVICE,5422,Catering costs - provisions,32.37,0,32.37
Regeneration and Local Services,Direct Services,21324,Catering - Meadowfield,Supplies and Services,324117,Provisions,21-Apr-17,5986774783,JR HOLLAND FOODSERVICE,5422,Catering costs - provisions,41.58,0,41.58
Regeneration and Local Services,Direct Services,21324,Catering - Meadowfield,Supplies and Services,324117,Provisions,21-Apr-17,5986774785,JR HOLLAND FOODSERVICE,5422,Catering costs - provisions,9.87,0,9.87
Regeneration and Local Services,Technical Services,10984,Training and Development,Supplies and Services,304259,Equipment and Materials,21-Apr-17,5986774789,DSA,9399,Equipment-purchase and rental,111,0,111
Regeneration and Local Services,Economic Development and Housing,30737,Durham Works Flexible Fund,Supplies and Services,324001,Provisions,21-Apr-17,5986774811,WINE CELLAR,5921,Bar supplies,27.5,0,27.5
Regeneration and Local Services,Economic Development and Housing,30676,Business Development - Durham City Promotions,Supplies and Services,332047,Printing Stationery and Gen Off Exps,21-Apr-17,5986774813,Amazon EU,5969,Stationery,43.77,0,43.77
Resources,Legal & Democratic Services,67953,Coroner County Durham & Darlington,Supplies and Services,312009,Newspapers Books and Periodicals,21-Apr-17,5986774815,PAYPAL INQUEST,8398,Newspapers books and periodicals,75,0,75
Regeneration and Local Services,Direct Services,21235,Catering - Wharton Park,Supplies and Services,324117,Provisions,21-Apr-17,5986774833,JR HOLLAND FOODSERVICE,5422,Catering costs - provisions,27.63,0,27.63
Regeneration and Local Services,Direct Services,21235,Catering - Wharton Park,Supplies and Services,324117,Provisions,21-Apr-17,5986774837,JR HOLLAND FOODSERVICE,5422,Catering costs - provisions,23.3,0,23.3
Regeneration and Local Services,Technical Services,25121,Strategic Highways - Drainage and Coast Protection,Supplies and Services,304259,Equipment and Materials,21-Apr-17,5986774839,UK CAA GATWICK,9399,Equipment-purchase and rental,112,0,112
Regeneration and Local Services,Culture & Sport,10605,Woodhouse Close Leisure Complex,Supplies and Services,324117,Provisions,21-Apr-17,5986774859,JR HOLLAND FOODSERVICE,5422,Catering costs - provisions,73.59,0,73.59
Regeneration and Local Services,Direct Services,21242,Catering - County Hall,Supplies and Services,324117,Provisions,21-Apr-17,6036408091,BATLEYS PERTH,5300,Catering costs - provisions,283.38,47.23,236.15
Regeneration and Local Services,Direct Services,21242,Catering - County Hall,Supplies and Services,324117,Provisions,21-Apr-17,000006036408091 - 1,BATLEYS PERTH,5300,Catering costs - provisions,181,,181
Regeneration and Local Services,Culture & Sport,11060,Hardwick Park Catering,Supplies and Services,324117,Provisions,21-Apr-17,6036408365,BATLEYS PERTH,5300,Catering costs - provisions,273.42,45.57,227.85
Regeneration and Local Services,Culture & Sport,11060,Hardwick Park Catering,Supplies and Services,324117,Provisions,21-Apr-17,000006036408365 - 1,BATLEYS PERTH,5300,Catering costs - provisions,162.82,,162.82
Regeneration and Local Services,Direct Services,10525,Catering - Green Lane,Supplies and Services,324117,Provisions,21-Apr-17,6036408489,BATLEYS PERTH,5300,Catering costs - provisions,107.52,17.92,89.6
Regeneration and Local Services,Direct Services,10525,Catering - Green Lane,Supplies and Services,324117,Provisions,21-Apr-17,000006036408489 - 1,BATLEYS PERTH,5300,Catering costs - provisions,34.84,,34.84
Regeneration and Local Services,Direct Services,21242,Catering - County Hall,Supplies and Services,324117,Provisions,22-Apr-17,5986774423,TESCO STORES 2916,5411,Catering costs - provisions,6.4,0,6.4
Regeneration and Local Services,Direct Services,21242,Catering - County Hall,Supplies and Services,324117,Provisions,22-Apr-17,5986774427,TESCO STORES 2916,5411,Catering costs - provisions,5.46,0,5.46
Regeneration and Local Services,Economic Development and Housing,30699,Business Growth and Innovation General,Supplies and Services,312011,Newspapers Books and Periodicals,22-Apr-17,5986774497,FASTHOSTS INTERNET,4816,Books-school library,12.59,2.1,10.49
Regeneration and Local Services,Economic Development and Housing,31576,B& B - Temp Accom,Supplies and Services,364320,Grants to Voluntary Organisations,22-Apr-17,5986774577,TRAVELODGE,3615,Accommodation assistance,95,0,95
Resources,I.C.T. Services,65321,Operations,Supplies and Services,342033,Computers and Communications,22-Apr-17,5986774683,AMAZON UK RETAIL AMAZO,5999,Computer hardware,10.97,0,10.97
Resources,Resources Management,69000,Resources Management,Supplies and Services,324117,Provisions,22-Apr-17,5986774731,CO-OP GROUP 010830,5411,Catering costs - provisions,4,0,4
Regeneration and Local Services,Culture & Sport,54399,Local Delivery-Libraries,Supplies and Services,312011,Newspapers Books and Periodicals,22-Apr-17,5986774767,Amazon UK Marketplace,5942,Books-school library,11.51,0,11.51
Regeneration and Local Services,Culture & Sport,54399,Local Delivery-Libraries,Supplies and Services,312011,Newspapers Books and Periodicals,22-Apr-17,5986774769,AMAZON UK RETAIL AMAZO,5999,Books-school library,9.99,0,9.99
Regeneration and Local Services,Culture & Sport,26591,Hardwick Park,Supplies and Services,332047,Printing Stationery and Gen Off Exps,22-Apr-17,5986774847,Amazon UK Marketplace,5942,Stationery,19.98,0,19.98
Children and Young Peoples Services,Head of Education,78411,16-19 Education & Training,Supplies and Services,304999,Equipment and Materials,23-Apr-17,5986774463,GOOGLE ADWS7021127990,5968,Misc equipment tools and materials,447.99,0,447.99
Children and Young Peoples Services,Head of Looked After Provision Permanence and Care Leavers,85957,Secure Management,Supplies and Services,312011,Newspapers Books and Periodicals,23-Apr-17,5986774475,Amazon UK Marketplace,5942,Books-school library,6.94,0,6.94
Children and Young Peoples Services,Head of Looked After Provision Permanence and Care Leavers,85957,Secure Management,Supplies and Services,312011,Newspapers Books and Periodicals,23-Apr-17,5986774477,Amazon UK Marketplace,5942,Books-school library,7.98,0,7.98
Children and Young Peoples Services,Head of Looked After Provision Permanence and Care Leavers,85957,Secure Management,Supplies and Services,312011,Newspapers Books and Periodicals,23-Apr-17,5986774483,Amazon UK Marketplace,5942,Books-school library,13.88,0,13.88
Regeneration and Local Services,Economic Development and Housing,30699,Business Growth and Innovation General,Third Party Payments,430100,Rendered by Private Contractors,23-Apr-17,5986774493,MAILCHIMP MONTHLY,7399,Payments to sub-contractors,58.77,0,58.77
Regeneration and Local Services,Economic Development and Housing,30699,Business Growth and Innovation General,Supplies and Services,348037,Subsistence,23-Apr-17,5986774501,THE BADGER,5812,Subsistence,15,2.5,12.5
Children and Young Peoples Services,Head of Looked After Provision Permanence and Care Leavers,85333,Coxhoe Satelite Home,Supplies and Services,324117,Provisions,23-Apr-17,5986774727,CO-OP GROUP 310016,5411,Catering costs - provisions,16.46,0,16.46
Resources,Legal & Democratic Services,67953,Coroner County Durham & Darlington,Supplies and Services,332047,Printing Stationery and Gen Off Exps,23-Apr-17,5986774819,Amazon UK Marketplace,5942,Stationery,25.99,0,25.99
Regeneration and Local Services,Economic Development and Housing,30699,Business Growth and Innovation General,Supplies and Services,342033,Computers and Communications,23-Apr-17,5994110617,FONTS.COM,7372,Computer hardware,9.6,1.6,8
Regeneration and Local Services,Economic Development and Housing,30699,Business Growth and Innovation General,Third Party Payments,430100,Rendered by Private Contractors,24-Apr-17,5986774503,MAILCHIMP MONTHLY,7399,Payments to sub-contractors,1.62,0,1.62
